{"text_format":"1","workbook":"xlsx","n_sheets":4,"sheets":["Initial analysis","Summary-Sheet","Unit Inventory","Data availability"],"not_rendered":{"charts":2,"images":0,"macros":1,"external_links":1,"defined_names":69,"comments":0,"pivot_tables":0},"unopened":[],"bounds":{"document_bytes":16777216,"sheet_cells":100000,"rows_first":2000,"rows_last":500,"rows_between":2000,"halvings":0,"cell_chars":16384,"cell_head_chars":4096},"cells_cut":0,"cells_raw":0,"read":"whole","date_system":"1900"}

{"sheet":"Initial analysis","index":0,"n_rows":2000,"n_cols":19,"rows_kept":2000,"cut":false,"hidden":false,"merged":[]}
["App ID","Unit Name","Department Name","App name","Current Status","Business Owner","Business Contact","Technical Owners","Technical Contact","BV Score","Cost Score","BV/Cost Ratio","Not scored reason","Comments","Primary Functional Purpose","Secondary Functional Purpose"]
[{"$f":"ROW(2:2)-1","v":1},"Library","Access Services","Ares","Not Scored","Michael Cook",null,"Thomas Trutt",null,null,null,0,"Other(add comment)","Academic application","Academic Administration",null,null,"Functional Purpose","Primary"]
[2,"Library","CUL-IT","arXiv","Not Scored","Oya Reiger",null,"Simeon Warner",null,null,null,0,"Other(add comment)","Academic application","Academic Administration",null,null,"Academic Administration",77]
[3,"Library","CUL-IT","CULLR","Not Scored","Dean Krafft",null,"Jim Riedy",null,null,null,0,"Other(add comment)","Academic application","Academic Administration",null,null,"Admissions",22]
[4,"Library","CUL-IT","Digital collection mirrors","Not Scored","John Saylor",null,"George Kozak",null,null,null,0,"Other(add comment)","Academic application","Academic Administration",null,null,"Alumni Development",11]
[5,"Library","CUL-IT","Digital Collections","Not Scored","John Saylor",null,"George Kozak",null,null,null,0,"Other(add comment)","Academic application","Academic Administration",null,null,"Budget Planning",3]
[6,"Library","CUL-IT","DLXS","Not Scored","Dean Krafft",null,"George Kozak",null,null,null,0,"Other(add comment)","Academic application","Academic Administration",null,null,"Career Services",3]
[7,"Library","CUL-IT","eCommons","Not Scored","Dean Krafft & Oya Reiger",null,"George Kozak",null,null,null,0,"Other(add comment)","Academic application","Academic Administration",null,null,"Collaboration Tool",13]
[8,"Library","CUL-IT","Euclid","Not Scored","David Ruddy",null,"Simeon Warner",null,null,null,0,"Other(add comment)","Academic application","Academic Administration",null,null,"Facilities & Space Management",13]
[9,"Library","CUL-IT","EZ-Proxy","Not Scored","Jim LeBlanc",null,"Chris Manly",null,null,null,0,"Other(add comment)","Academic application","Academic Administration",null,null,"IT Utility",84]
[10,"Library","CUL-IT","Luna","Not Scored","Danielle Mericle",null,"Chris Manly",null,null,null,0,"Other(add comment)","Academic application","Academic Administration",null,null,"Research Administration",3]
[11,"Library","CUL-IT","Persistent URL services","Not Scored","Dean Krafft",null,"Chris Manly",null,null,null,0,"Other(add comment)","Academic application","Academic Administration",null,null,"SIP Awards",0]
[12,"Library","CUL-IT","PICTOR","Not Scored","Danielle Mericle",null,"Chris Manly",null,null,null,0,"Other(add comment)","Academic application","Academic Administration",null,null,"Time Management",3]
[13,"Library","CUL-IT","Vet Media Archive","Not Scored","Erla Heyns",null,"Adam Smith",null,null,null,0,"Other(add comment)","Academic application","Academic Administration",null,null,"Finance- Other",75]
[14,"Graduate School","Grad School","gradschool.cornell.edu/intranet/postdoc","Done","Grad School","Jason Kahabka","SAS-IT","John Tonello",77,20,3.85,null,"Primarily designed and supported by a 3rd party vendor; Drupal is the content management tool used by the graduate school to delivery dynamic and current information to constituents via the web pages.  The intranet is a portal (programmed in PHP) that has both web and data delivery components. Data delivery reports developed in Tableau and Brio (pointing to SDM).","Academic Administration",null,null,"HR- Other",12]
[15,"Graduate School","Grad School","Faculty Manager","Done","Grad School","Kat Empson","SAS-IT","John Tonello",90,20,4.5,null,"A custom application (back-end MySQL; front-end is PHP) supporting faculty representation in the graduate fields. ","Academic Administration",null,null,"Student- Other",5]
[16,"Graduate School","Grad School","General Committee Vote","Done","Grad School","Kat Empson","SAS-IT","John Tonello",82,15,5.4666666666666668,null,null,"Academic Administration",null,null,"Other",45]
[17,"Graduate School","Grad School","Online Rolodex","Done","Grad School","Kat Empson","SAS-IT","John Tonello",87,20,4.3499999999999996,null,"The online Rolodex is an app that is ‘plugged in’ to the intranet and displays a database (mySQL) of users associated with graduate fields.  This app also support the security and access rights of field level users to some online reports.","Academic Administration",null,null,null,{"$f":"SUM(S3:S17)","v":369}]
[18,"CIT Applications","Comm Apps","PeopleSoft Student Records/Student Faculty Self-Service and Campus Community","Done","Cassie Dembosky","Cassie Dembosky","Commercial Apps","pssupport-backline@cornell.edu",97,65,1.4923076923076923,null,"https://confluence.cornell.edu/display/commappl/Alphabetical+List+of+Products","Academic Administration"]
[19,"CIT Applications","Comm Apps","PeopleSoft Student/Faculty Self Service","BV Complete","Cassie Dembosky","Cassie Dembosky","Commercial Apps","pssupport-backline@cornell.edu",78,{"$error":"#N/A"},0,null,"https://confluence.cornell.edu/display/commappl/Alphabetical+List+of+Products","Academic Administration"]
[20,"CIT Applications","Comm Apps","Blackboard","Cost Complete","Clare van den Blink","Todd Maniscalco","Commercial Apps","blackboard-backline@cornell.edu",{"$error":"#N/A"},80,0,null,"https://confluence.cornell.edu/display/commappl/Alphabetical+List+of+Products","Academic Administration"]
[21,"CIT Applications","Custom Dev","Graduate Special Committee Request (GSC)","Done","Jason Kahabka","Jason Kahabka","Nazrin Tingstrom","gsc-support-l@cornell.edu",81,20,4.05,null,"Graduate Special Committee Request (GSC)","Academic Administration"]
[22,"CIT Applications","Custom Dev","Graduation Manager","Done","Sarah Hale","Sarah Hale","Nazrin Tingstrom","gradmngsupport-l@cornell.edu",85,20,4.25,null,"https://confluence.cornell.edu/display/citapps/Graduation+Manager\", In Graduation List","Academic Administration","Student- Other"]
[23,"ILR","Dean Office","Activity Insights / Faculty Reporting","Done","Harry Katz","Theresa Woodhouse","Don Friedricksen","Don Friedricksen",null,null,0,null,"Academic Adminsitration","Academic Administration"]
[24,"ILR","Extension","SDC II (Student Data Center)","Done","Joe Grasso","Renee Monroe","Jeff Bishop","Jeff Bishop",80,45,1.7777777777777777,null,"Academic Administration","Academic Administration"]
[25,"ILR","Student Services","Student Credit Summaries","Done","Laura Lewis","Jenn Weidner","Kelley Sullivan","Kelley Sullivan",69,15,4.5999999999999996,null,"Academic Administration","Academic Administration"]
[26,"Law","Administration","Cornell Law Review Subscription database","Not Scored","Administration","Susan Pado -  sgp6@cornell.edu","Law IT","Dave Semo -  djs16@cornell.edu",null,null,0,"Total cost < unit threshold","Approx 1 day per year","Academic Administration"]
[27,"Law","Administration","ILJ Subscription database","Not Scored","Administration","Susan Pado -  sgp6@cornell.edu","Law IT","Dave Semo -  djs16@cornell.edu",null,null,0,"Total cost < unit threshold","Approx 1 day per year","Academic Administration"]
[28,"Law","Administration","JLPP Subscription Database","Not Scored","Administration","Susan Pado -  sgp6@cornell.edu","Law IT","Dave Semo -  djs16@cornell.edu",null,null,0,"Total cost < unit threshold","Approx 1 day per year","Academic Administration"]
[29,"Law","Avon","Conference Management and Online Registration","Not Scored","Avon","Elizabeth Brundige - eb456@cornell.edu","Law IT","Dan Jones -  dcj8@cornell.edu",null,null,0,"Other(add comment)","Grouped.keep. Conference Related. This varies for every event, and can take up to 40 hours/conference (usually once per year)","Academic Administration"]
[30,"Law","Avon","User Subscriptions","Not Scored","Avon","Elizabeth Brundige - eb456@cornell.edu","Law IT","Dan Jones -  dcj8@cornell.edu",null,null,0,"Total cost < unit threshold","Approx 2 hrs/ year for maintainance - changes will result in more hours/year","Academic Administration"]
[31,"Law","Law IT","Group Conference Registration and Management for Law School (Avon)","BV Complete","Avon","Elizabeth Brundige - eb456@cornell.edu\nAndrew Courtney Orr - aco37@cornell.edu","Law IT","Dan Jones -  dcj8@cornell.edu",75,{"$error":"#N/A"},0,null,"This is a group of applications: ILJ Symposium Management and Online Registration (ILI) and Conference Management and Online Registration (Avon)","Academic Administration"]
[32,"Law","Clarke Program","Annual report","Not Scored","Clarke Program","Guillaume Ratel - gr37@cornell.edu","Law IT","Maren Herman -  mh103@cornell.edu",null,null,0,"Total cost < unit threshold","Approx 2 days/year","Academic Administration"]
[33,"Law","ILJ","ILJ Symposium Management and Online Registration","Not Scored","ILJ","Andrew Courtney Orr - aco37@cornell.edu","Law IT","Dan Jones -  dcj8@cornell.edu",null,null,0,null,"Keep- Grouped with Conference Registration and Management. Conference related. Approx 12 hrs/ year - creating and updating the registration site, and also creating and updating the event site on the Law School website","Academic Administration"]
[34,"Law","International","JSD admitted database","Not Scored","International","Charlie Cramton-cdc7@cornell.edu","Law IT","Maren Herman -  mh103@cornell.edu",null,null,0,"Total cost < unit threshold","Approx 24 hrs/ year","Academic Administration"]
[35,"Law","International","Semester Abroad Application and Management pages","Not Scored","International","Larry Bush -  lsb13@cornell.edu","Law IT","Dan Jones -  dcj8@cornell.edu",null,null,0,"Other(add comment)","keep- new app being developed currently. - Thus far it's taken about 40 hours total, with further development time to come. Busness contact declined to participate.","Academic Administration"]
[36,"Law","International ","LLM admitted database","Not Scored","International ","Charlie Cramton-cdc7@cornell.edu","Law IT","Maren Herman -  mh103@cornell.edu",null,null,0,"Total cost < unit threshold","Approx 2 hrs/ year","Academic Administration"]
[37,"Law","International ","Paris","Not Scored","International ","Larry Bush - lsb13@cornell.edu","Law IT","Maren Herman -  mh103@cornell.edu",null,null,0,"Other(add comment)","keep -  Approx 3 weeks/year - plans to redevelop for web. Business contact declined to participate.","Academic Administration"]
[38,"Law","Law IT","Exam 4  software (Extegrity, Inc.)","BV Complete","Law IT","Nan Colvin - nac7@cornell.edu","Law IT","Juan Lube -  jgl23@cornell.edu",68,null,0,null,"Exam support  4weeks/year for 3 techs. Juan would like to change from the current PDF form to an online web form.","Academic Administration"]
[39,"Law","Law IT","Final Cut Studio /Adobe CS5 Production Premium ","BV Complete","Law IT","Michale d'Estries -  md262","Law IT","Michale d'Estries -  md262@cornell.edu",65,{"$error":"#N/A"},null,null,"Keep. Process videos","Academic Administration"]
[40,"Law","Law IT","Mediasite ","BV Complete","Law IT","Michale d'Estries -  md262","Law IT","Michale d'Estries -  md262@cornell.edu",65,{"$error":"#N/A"},null,null,"Keep. $18,000/ year license. Records classes for students and faculty and accessed through Blackboard.","Academic Administration"]
[41,"Law","Law IT","WordPerfect Office ","Not Scored","Law IT","Paul Weber prw1@cornell.edu","Law IT","Paul Weber prw1@cornell.edu",null,null,null,null,"Keep. Talk to Barbara Holden-Smith. Costs are above threshold.","Academic Administration"]
[42,"Law","Legal Aid","Legal Aid Client database","BV Complete","Legal Aid","Susan Tosto","Law IT","Dave Semo - djs16@cornell.edu",78,{"$error":"#N/A"},null,null,"Keep. Going forward will need support. 1 hr per year;  Will require several weeks if it is determined tha the application needs to be redesigned for new clinic.","Academic Administration"]
[43,"Law","Public Service","Connect program","BV Complete","Public Service","Karen Comstock -  kvc2@cornell.edu","Law IT","Dave Semo -  djs16@cornell.edu",70,{"$error":"#N/A"},0,null,"Keep. In progress.  Will probably require 1 week more, then 1 day/year","Academic Administration"]
[44,"Law","Public Service","PSANominations","Not Scored","Public Service","Karen Comstock - kvc2@cornell.edu","Law IT","Dan Jones -  dcj8@cornell.edu",null,null,0,"total cost < unit threshold","Requires about 8 hours/year to maintain","Academic Administration"]
[45,"Law","Public Service","Graduate Fellowship Grant","BV Complete","Public Service","Karen Comstock - kvc2@cornell.edu","Law IT","Dan Jones -  dcj8@cornell.edu",75,{"$error":"#N/A"},0,null,"Keep. Probably only used for 2011 - 2012 - custom application for graduated law students - approx. 60 hours to create and maintain to this point","Academic Administration"]
[46,"Law","Public Service","PIF Grant","BV Complete","Public Service","Karen Comstock - kvc2@cornell.edu","Law IT","Dan Jones -  dcj8@cornell.edu",90,{"$error":"#N/A"},0,null,"Keep. Close to threshold, may need maintenance eg. When rules are changed. Created for 2009-2010 year, used yearly since then.  Approx 16 hours/year to maintain","Academic Administration"]
[47,"Law","Registrar","Bar Exam Spreadsheets","Not Scored","Registrar","Nan Colvin - nac7@cornell.edu","Law IT","Dan Jones -  dcj8@cornell.edu",null,null,0,"Total cost < unit threshold","This is a mature and stable application, and requires about 4 hours/year to maintain","Academic Administration"]
[48,"Law","Registrar","BookList","Not Scored","Registrar","Nan Colvin - nac7@cornell.edu","Law IT","Dan Jones -  dcj8@cornell.edu",null,null,0,"Total cost < unit threshold","This is a stable application, and requires 4 hours/year to maintain","Academic Administration"]
[49,"Law","Registrar","Class Year Email Lists","Not Scored","Registrar","Nan Colvin - nac7@cornell.edu","Law IT","Dan Jones -  dcj8@cornell.edu",null,null,0,"Total cost < unit threshold","This is a mature and stable application, and requires about 4 hours/year to maintain","Academic Administration"]
[50,"Law","Registrar","CLSA Course Evaluations","Not Scored","Registrar","Nan Colvin - nac7@cornell.edu","Law IT","Dave Semo -  djs16@cornell.edu",null,null,0,"Total cost < unit threshold","3 days per year","Academic Administration"]
[51,"Law","Registrar","Concentration Declarations","Not Scored","Registrar","Nan Colvin - nac7@cornell.edu","Law IT","Dan Jones -  dcj8@cornell.edu",null,null,0,"Total cost < unit threshold","This is a mature and stable application, and requires about 4 hours/year to maintain","Academic Administration"]
[52,"Law","Registrar","Course Evaluations","Not Scored","Registrar","Nan Colvin - nac7@cornell.edu","Law IT","Dan Jones -  dcj8@cornell.edu",null,null,0,"Total cost < unit threshold","This is a mature and stable application, and requires about 8 hours/year to maintain","Academic Administration"]
[53,"Law","Registrar","Dean's List MPR/Rank","Not Scored","Registrar","Nan Colvin - nac7@cornell.edu","Law IT","Dave Semo -  djs16@cornell.edu",null,null,0,"Total cost < unit threshold","1 day/year","Academic Administration"]
[54,"Law","Registrar","Lockers","Not Scored","Registrar","Nan Colvin - nac7@cornell.edu","Law IT","Dan Jones -  dcj8@cornell.edu",null,null,0,"Total cost < unit threshold","This is a stable and mature application, and requires about 4 hours/year to maintain and update","Academic Administration"]
[55,"Law","Registrar","Move PreRegistration/Add/Drop data to StuCourse","Not Scored","Registrar","Nan Colvin - nac7@cornell.edu","Law IT","Dave Semo -  djs16@cornell.edu",null,null,0,"Total cost < unit threshold","2 days/year","Academic Administration"]
[56,"Law","Registrar","PreRegistration","Not Scored","Registrar","Nan Colvin - nac7@cornell.edu","Law IT","Dan Jones -  dcj8@cornell.edu",null,null,0,"Total cost < unit threshold","This is a mature application, and requires about 16 hours/year to maintain and make minor updates","Academic Administration"]
[57,"Law","Registrar","Registrar Pinkforms","Not Scored","Registrar","Nan Colvin - nac7@cornell.edu","Law IT","Dan Jones -  dcj8@cornell.edu",null,null,0,"Total cost < unit threshold","This is a mature and stable application, and requires about 8 hours/year to maintain","Academic Administration"]
[58,"Law","Registrar","Schedule Book/Course List","Not Scored","Registrar","Nan Colvin - nac7@cornell.edu","Law IT","Dave Semo -  djs16@cornell.edu",null,null,0,"Total cost < unit threshold","1 day/year","Academic Administration"]
[59,"Law","Registrar","Special Emails","Not Scored","Registrar","Nan Colvin - nac7@cornell.edu","Law IT","Dan Jones -  dcj8@cornell.edu",null,null,0,"Total cost < unit threshold","This is a stable and mature application, and requires about 4 hours/year to maintain and update","Academic Administration"]
[60,"Law","Registrar","SpecialNotices","Not Scored","Registrar","Nan Colvin - nac7@cornell.edu","Law IT","Dan Jones -  dcj8@cornell.edu",null,null,0,"Total cost < unit threshold","This is a stable application, and requires 4 hours/year to maintain","Academic Administration"]
[61,"Law","Registrar","StuCourse","Not Scored","Registrar","Nan Colvin - nac7@cornell.edu","Law IT","Dan Jones -  dcj8@cornell.edu",null,null,0,"Total cost < unit threshold","This is a mature and stable application, and unless changes are required (as happened for Spring 2012!), requires about 16 hours/year to maintain","Academic Administration"]
[62,"Law","Registrar","Student Actions","Not Scored","Registrar","Nan Colvin - nac7@cornell.edu","Law IT","Dave Semo -  djs16@cornell.edu",null,null,0,"Total cost < unit threshold","1 day/year","Academic Administration"]
[63,"Law","Registrar","Student Address Management","Not Scored","Registrar","Nan Colvin - nac7@cornell.edu","Law IT","Dan Jones -  dcj8@cornell.edu",null,null,0,"Total cost < unit threshold","This is a mature and stable application, and requires about 4 hours/year to maintain","Academic Administration"]
[64,"Law","Registrar","Student Course Questionnaire","Not Scored","Registrar","Nan Colvin - nac7@cornell.edu","Law IT","Dave Semo -  djs16@cornell.edu",null,null,0,"Total cost < unit threshold","1 day/year","Academic Administration"]
[{"$f":"ROW(66:66)-1","v":65},"Law","Registrar","Update Class Year Status for New Academic Year","Not Scored","Registrar","Nan Colvin - nac7@cornell.edu","Law IT","Dave Semo -  djs16@cornell.edu",null,null,0,"Total cost < unit threshold","1 hr per year","Academic Administration"]
[66,"Law","Registrar","Lottery, Pre-registration and Add-Drop systems (Combined)","BV Complete","Registrar","Nan Colvin - nac7@cornell.edu","Law IT","Dan Jones -  dcj8@cornell.edu",93,{"$error":"#N/A"},0,null,"Keep. This is a mature and stable application, and unless changes are required, requires about 16 hours/year to maintain","Academic Administration"]
[67,"Law","Registrar","Upload new students to University PeopleSoft App","Not Scored","Registrar","Nan Colvin - nac7@cornell.edu","Law IT","Dave Semo -  djs16@cornell.edu",null,null,0,"Total cost < unit threshold","3 days/ year","Academic Administration"]
[68,"Law","Registrar","Blackboard -  Populate with Courses","BV Complete","Registrar","Nan Colvin - nac7@cornell.edu","Law IT","Dan Jones -  dcj8@cornell.edu",43,{"$error":"#N/A"},0,null,"Keep. Supporting the Law School Blackboard requirements consumes on average 80 hours/semester - this includes updating the programs that generate the batch files used to update enrollments, and also creating new student/TA/Instructor accounts, and creating new course sites.  It also includes creating, storing, and restoring archive files.","Academic Administration"]
[69,"Law","Registrar","Course  Management System","BV Complete","Registrar","Nan Colvin - nac7@cornell.edu","Law IT","Dan Jones -  dcj8@cornell.edu",100,{"$error":"#N/A"},0,null,"Keep. Check with Nan on opportunity to combine with other course management related apps. This is a stable and mature application, and requires about 16 hours/year to maintain and update","Academic Administration"]
[70,"Law","Registrar","Grade Portal","BV Complete","Registrar","Nan Colvin - nac7@cornell.edu","Law IT","Dave Semo -  djs16@cornell.edu",97,{"$error":"#N/A"},0,null,"Keep. Approximately 1 week per year required for programming and support","Academic Administration"]
[71,"Law","Registrar","Lottery","BV Complete","Registrar","Nan Colvin - nac7@cornell.edu","Law IT","Dave Semo - djs16@cornell.edu",null,null,null,null,"Keep. 3 weeks to redevelop from scratch","Academic Administration"]
[72,"Law","Registrar","Personalized Letters App",null,"Registrar","Nan Colvin - nac7@cornell.edu","Law IT","Dave Semo -  djs16@cornell.edu",null,{"$error":"#REF!"},0,null,"Keep. Between 1 and 2 weeks required","Academic Administration"]
[73,"Law","Registrar","Database Application Query Tool and Reports (MS Access)","BV Complete","Registrar","Nan Colvin - nac7@cornell.edu","Law IT","Maren Herman -  mh103@cornell.edu",91,{"$error":"#REF!"},0,null,"Keep. Approx  2weeks/year - special requests","Academic Administration"]
[74,"Law","Registrar","SeatGen seating chart software (AppointLink, Inc.)","BV Complete","Registrar","Nan Colvin - nac7@cornell.edu","Law IT","Maren Herman -  mh103@cornell.edu",43,{"$error":"#N/A"},0,null,"Keep. Approx 3 weeks/year  + $1,560 license/year","Academic Administration"]
[75,"Law","Registrar","Unofficial Grade Reports","BV Complete","Registrar","Nan Colvin - nac7@cornell.edu","Law IT","Maren Herman -  mh103@cornell.edu",85,{"$error":"#N/A"},0,null,"Keep. Currently redeveloping in ColdFusion - possible 1-2 week/year to maintain, depending on change requests","Academic Administration"]
[76,"Law","Registrar","Room Scheduler",null,"Registrar","Nancy Osborn - no23@cornell.edu","Law IT","Dave Semo - djs16@cornell.edu/Maren Herman -  mh103@cornell.edu",{"$error":"#REF!"},{"$error":"#N/A"},0,null,"Keep. 1 to 2 weeks to redevelop","Academic Administration"]
[77,"Law","Registrar"," Exam Archives","Not Scored","Registrar","Pat Halstead - paf7@cornell.edu","Law IT","Dan Jones -  dcj8@cornell.edu",91,{"$error":"#N/A"},0,"Total cost < unit threshold","This is a mature and stable application, and requires about 4 hours/year to maintain","Academic Administration"]
[78,"Graduate School","Grad School","CollegeNet","Done","Grad School","Jason Kahabka","SAS-IT","John Tonello",100,20,5,null,"CollegeNET is a third party-supported, hosted systemapp that includes modules for collection admissions data via a web form from applicants and recommenders as well as back-end administrative functions.  The system supportsthe admission process of over 100 graduate fields and have over 1,100 unique staff and faculty users.  It processes approximately 20,000 applications annually.","Admissions"]
[79,"AFA","Fin Aid and Stdt Employ","Image Now","Not Scored","Fin Aid and Student Employment","Lori Hulse","SAS-IT","Susan Li",null,null,0,"Other(add comment)"," Image Now for Admissions and Financial Aid.  Have Combined the two, same system.  There's a gap right now for Technical Contact due to the consolidation with SAS-IT","Admissions"]
[80,"AFA","UG Adm and FA","admissions.cornell.edu\nfinaid.cornell.edu\nstudentemployment.cornell.edu\nadmit.cornell.edu","Done","Undergraduate Admissions and Financial Aid","Lori Hulse\nDoug Elliott","SAS-IT","Susan Li",77,35,2.2000000000000002,null,"These are all the websites together for the area, they show information,  give links to forms and other websites","Admissions"]
[81,"AFA","Undergraduate Admissions","CAAAN-DO ","Done","Undergraduate Admissions","Kyle Downey\nColleen Chaffe","SAS-IT","Susan Li",82,15,5.4666666666666668,null,"Website and web application for alumnae volunteer","Admissions"]
[82,"AFA","Undergraduate Admissions","Athletics Database","Not Scored","Undergraduate Admissions","Patty Grace\nEllen Shields","SAS-IT","Susan Li",null,null,0,"Not in use","This database was abandoned as there was no support.  The customer uses Excel now to do work. This is very time consuming and labor intensive.Database in support of athletics Early Credential Review (ECR) process","Admissions"]
[83,"AFA","Undergraduate Admissions","Regional Recruitment System ","Done","Undergraduate Admissions","Shawn Felton","SAS-IT","Susan Li",54,15,3.6,null,"`","Admissions"]
[84,"AFA","Undergraduate Admissions","EMT/iCLass/Decision Notification/Apply Yourself","Done","Undergraduate Admissions","Doug Elliot","SAS-IT","Doug Elliot",47,35,1.3428571428571427,null,"used to deliver decisions to freshmen","Admissions"]
[85,"AFA","Undergraduate Admissions","Common App ","Done","Undergraduate Admissions","Doug Elliot","SAS-IT","Doug Elliot\nJoseph Saponaro",85,25,3.4,null,"Used by freshman and transfer students to submit applications.  Also used by teachers and guidance counselors","Admissions"]
[86,"AFA","Undergraduate Admissions","Recruitment Event Database","Done","Undergraduate Admissions","Shawn Felton","SAS-IT",null,53,15,3.5333333333333332,null,"Used to enter recruitment data from admissions staff: track invitations to, attendance at events such as college fairs.","Admissions"]
[87,"AFA","Undergraduate Admissions","Undergraduate Admissions Self Service","BV Complete","Undergraduate Admissions","Lloyd Hall","SAS-IT",null,67,{"$error":"#N/A"},0,null,"Used by applicants to check documents received, update some data, withdraw application","Admissions"]
[88,"AFA","Undergraduate Admissions","Prospect Scrubbing Database","Done","Undergraduate Admissions","Doug Elliot","SAS-IT","Susan Li\nDoug Elliot",72,15,4.8,null,"Used to scrub purchased prospect datasets before loading into PS","Admissions"]
[89,"AFA","Undergraduate Admissions","Beyond Compare","Done","Undergraduate Admissions","Carla Harding","SAS-IT",null,62,20,3.1,null,"Used to compare lists & datasets, typically by matching on emplid.","Admissions"]
[90,"AFA","Undergraduate Admissions","Commitment Database","Done","Undergraduate Admissions","Shawn Felton","SAS-IT"," ",81,15,5.4,null,"This is a FM database used to facilitate selection of students for the 3 Commitment Programs","Admissions"]
[91,"CIT Applications","Comm Apps","PeopleSoft Recruitment/Admissions","Done","Lee Melvin (TBD)","Lee Melvin (TBD)","Commercial Apps","pssupport-backline@cornell.edu",85,65,1.3076923076923077,null,"https://confluence.cornell.edu/display/commappl/Alphabetical+List+of+Products","Admissions"]
[92,"CIT Applications","Custom Dev","Electronic Student Records (ESR)","Done","Cassie Dembosky","Eric Lavin","Mike Oltz","customdev-support@cornell.edu",83,25,3.32,null,"Electronic Student Records (ESR)","Admissions","Academic Administration"]
[93,"CIT Applications","Custom Dev","AdmissionsSS (Admissions Self-Service)","Done","Lloyd Hall","Lloyd Hall","Nazrin Tingstrom","admiss-support-l@cornell.edu",67,20,3.35,null,"https://confluence.cornell.edu/display/citapps/AdmissionsSS+%28Admissions+Self-Service%29\", In Janet Grays list","Admissions"]
[94,"CIT Applications","Custom Dev","OUR (Office of University Registrar) Historic Imaged Transcripts","Done","Terry Thompson","Terry Thompson","Rich Marisa","our_citapps_support-l@cornell.edu",87,20,4.3499999999999996,null,"OUR (Office of University Registrar) Transcripts","Admissions","Student- Other"]
[95,"Law","Admissions","Archiving  Electronic Student Folders","Not Scored","Admissions","Pam Eaton - pse4@cornell.edu","Law IT","Maren Herman -  mh103@cornell.edu",null,null,0,"Total cost < unit threshold",null,"Admissions"]
[96,"Law","Admissions","Admissions - Travel Subsidy","Not Scored","Admissions","Patina Janisko -  pc52@cornell.edu","Law IT","Dan Jones -  dcj8@cornell.edu",null,null,0,"Total cost < unit threshold","Unless changes or additions are made to this program, time should remain at about 4 hours/year","Admissions"]
[97,"Law","Admissions","Admissions - Viewbook Request","Not Scored","Admissions","Patina Janisko -  pc52@cornell.edu","Law IT","Dan Jones -  dcj8@cornell.edu",null,null,0,"Total cost < unit threshold","Approx 2 hours/year to update program to reflect current admissions cycle year","Admissions"]
[98,"Law","Admissions","Admitted Student Day RSVP","Not Scored","Admissions","Sarah Ann Busse  - sal13@cornell.edu","Law IT","Dan Jones -  dcj8@cornell.edu",null,null,0,"Total cost < unit threshold","Since this changes yearly, unless additional changes (besides dates and activities) time spend should be about six hours/year","Admissions"]
[99,"Law","Admissions ","Admissions - JD/LLM/JSD application process and database","BV Complete","Admissions ","Patina Janisko - pc522cornell.edu","Law IT","Maren Herman -  mh103@cornell.edu",96,{"$error":"#N/A"},0,null,"Keep. Approx 3 weeks/year - plan to create SQL stored procs for importing data from ACES2 to Registrar db","Admissions"]
[100,"CIT Applications","Comm Apps","PeopleSoft Contributor Relations","Done","David Pinker","David Pinker","Commercial Apps","pssupport-backline@cornell.edu",83,60,1.3833333333333333,null,"https://confluence.cornell.edu/display/commappl/Alphabetical+List+of+Products","Alumni Development"]
[101,"CIT Applications","Custom Dev","CR_ACK (Contributor Relations -- Acknowledgements)","Done","David Pinker","David Pinker, Colleen Drozd","Rich Marisa","customdev-support@cornell.edu",93,20,4.6500000000000004,null,"CR_ACK (Contributor Relations -- Acknowledgements)","Alumni Development","Collaboration Tool"]
[102,"CIT Applications","Custom Dev","doCUments (AA&D Document Management )","Done","David Pinker","David Pinker","Rich Marisa","customdev-support@cornell.edu",100,20,5,null,"doCUments (AA&D Document Management )","Alumni Development"]
[103,"CIT Applications","Custom Dev","JRP (Joint Records Processing)","Done","David Pinker","David Pinker","Rich Marisa ","customdev-support@cornell.edu",75,20,3.75,null,"JRP (Joint Records Processing)","Alumni Development","Collaboration Tool"]
[104,"Law","Alumni","Reunion","Not Scored","Alumni","Kristine Hoffmeister - ksh54@cornell.edu","Law IT","Dan Jones -  dcj8@cornell.edu",null,null,0,"Not in use","Will be discontinued. Harris Connect being used centrally currently.","Alumni Development"]
[105,"Law","Alumni","Alumni - Events online registration","Not Scored","Alumni","Kristine Hoffmeister - ksh54@cornell.edu","Law IT","Dan Jones -  dcj8@cornell.edu",null,null,0,"Total cost < unit threshold","this is stable, and the only usual action needed is to comment out the SQL Injection prevention code to permit addition of links to .jsp pages.  Currently, it takes about 6 hours/year to maintain this program.","Alumni Development"]
[106,"Law","Alumni","Class Notes","Not Scored","Alumni","Kristine Hoffmeister - ksh54@cornell.edu","Law IT","Dave Semo -  djs16@cornell.edu",null,null,0,"Total cost < unit threshold","Approx 1 day per year","Alumni Development"]
[107,"Law","Alumni","Class Notes Administration page","Not Scored","Alumni","Kristine Hoffmeister - ksh54@cornell.edu","Law IT","Dave Semo -  djs16@cornell.edu",null,null,0,"Total cost < unit threshold","Approx 1 hour per year","Alumni Development"]
[108,"Law","Alumni","Merchandise","Not Scored","Alumni","Kristine Hoffmeister - ksh54@cornell.edu","Law IT","Dan Jones -  dcj8@cornell.edu",null,null,0,"Total cost < unit threshold","This is a stable application, and consumes Approx 4 hrs/ year - this will go up if changes or additions are requested.","Alumni Development"]
[109,"Law","Alumni","Moot Court Club Membership","Not Scored","Alumni","Kristine Hoffmeister - ksh54@cornell.edu","Law IT","Dan Jones -  dcj8@cornell.edu",null,null,0,"Total cost < unit threshold","Approx 2 hrs/ year","Alumni Development"]
[110,"Law","Alumni","Alumni -Special Gatherings/Alumni International Symposiums","BV Complete","Alumni","Kristine Hoffmeister - ksh54@cornell.edu","Law IT","Dan Jones -  dcj8@cornell.edu",81,{"$error":"#N/A"},0,null,"keep - these special reunion requests are all different, and can take up to 80 hours/year on average","Alumni Development"]
[111,"DPB","Capital Planning","CF&PC","BV Complete","Tom Cole","Tom Cole","Dan McGough","Dan McGough",75,20,3.75,null,null,"Budget Planning"]
[112,"DPB","Budget","G2 Summary","BV Complete","Davina Desnoes","Davina Desnoes","Davina Desnoes","Davina Desnoes",80,20,null,null,null,"Budget Planning"]
[113,"DPB","BI","SU Group Summary","BV Complete","Dan McGough","Dan McGough","Dan McGough","Dan McGough",78,55,1.4181818181818182,null,"Group as server user SU","Budget Planning"]
[114,"CIT Applications","Comm Apps","PeopleSoft Student Employment","Done","Lee Melvin/Kim Cassell","Lee Melvin/Kim Cassell","Commercial Apps","pssupport-backline@cornell.edu",75,50,1.5,null,"https://confluence.cornell.edu/display/commappl/Alphabetical+List+of+Products","Career Services"]
[115,"Law","Career Office","Create Student Schedule Listings for Symplicity","Not Scored","Career Office"," Donna Dingy - dad28@cornell.edu","Law IT","Dave Semo -  djs16@cornell.edu",null,null,0,"Total cost < unit threshold","Approx 4 hrs per year","Career Services"]
[116,"Law","Career Office","Law Career Student Export","Not Scored","Career Office"," Donna Dingy - dad28@cornell.edu","Law IT","Dave Semo -  djs16@cornell.edu",null,null,0,"Total cost < unit threshold","Approx 4 hrs per year","Career Services"]
[117,"AFA","UG Adm and FA","ImageNow","Done","Undergraduate Admissions and Financial Aid","Lloyd Hall (Adm)\nLori Hulse (Fin Aid)","SAS-IT","Susan Li\nJoseph Saponaro",95,45,2.1111111111111112,null," Image Now for Admissions and Financial Aid.  Have Combined the two, same system.Captures all UG application documents (application forms, supplements, school forms, etc.).  Applications are automatically routed through queues for decisioning and other actions.","Collaboration Tool"]
[118,"CIT Applications","Comm Apps","Confluence","Done","Benoit McNicoll","Benoit McNicoll","Commercial Apps","confluence-backline@cornell.edu",67,25,2.68,null,"https://confluence.cornell.edu/display/commappl/Alphabetical+List+of+Products","Collaboration Tool"]
[119,"CIT Applications","Comm Apps","Jira","Cost Complete","Vicky Mikula","Vicky Mikula",null,"jira-backline@cornell.edu",{"$error":"#N/A"},25,0,null,"https://confluence.cornell.edu/display/commappl/Alphabetical+List+of+Products","Collaboration Tool"]
[120,"CIT Applications","Custom Dev","United Way","Done","Cornell United Way -- Linda Charles","Cornell United Way -- Linda Charles","Nazrin Tingstrom","united-way-support-l@cornell.edu",84,25,3.36,null,"United Way","Collaboration Tool","Other"]
[121,"CIT Applications","Custom Dev","LaunchPad 2010","Done","Jon Atherton","Jon Atherton","Rich Marisa","basil-launchpad-support-l@cornell.edu",47,20,2.35,null,"LaunchPad 2010","Collaboration Tool"]
[122,"ILR","HCD","Salesforce","Done","Michael Serino","Donna Stone","Laura Robinson","Don Friedricksen",58,20,2.9,null,"Collaboration tool","Collaboration Tool"]
[123,"ILR","CAHRS","eSales Tracker","Done","Chris Collins","Jo Hagin","eSalesTracker.com","eSalesTracker.com",30,15,2,null,"Collaboration tool","Collaboration Tool"]
[124,"ILR","Catherwood Library","Contacts and Invoicing System","Done","Curtis Lyons","Curtis Lyons","Data Momentum","Data Momentum",21,15,1.4,null,"Collaboration tool","Collaboration Tool"]
[125,"CIT","SUPPORT","Blogs",null,"Diane Sempler","Benoit McNicoll ",null,null,38,20,1.9,null,null,"Collaboration Tool"]
[126,"CIT","SUPPORT","Confluence",null,"Diane Sempler","Benoit McNicoll ",null,null,67,25,2.68,null,null,"Collaboration Tool"]
[127,"CIT","SUPPORT","myCornell",null,"Diane Sempler","Jon Atherton",null,null,58,45,1.288888888888889,null,null,"Collaboration Tool"]
[128,"CIT","SUPPORT","SourceForge",null,"Diane Sempler","Benoit McNicoll ",null,null,77,40,1.925,null,null,"Collaboration Tool"]
[{"$f":"ROW(130:130)-1","v":129},"DFA","UBSC","SharePoint","Not Scored","rmy1","rmy1","mjk276","mjk276",79,15,5.2666666666666666,null,null,"Collaboration Tool"]
[130,"CIT Applications","Custom Dev","SUNY TRAN Stored Procedures  (part of Fac Inv)","Done","Jane Van DerZee","Jane Van DerZee","Nazrin Tingstrom","part of fac inv spt list",100,25,4,null,"SUNY TRAN Stored Procedures  (part of Fac Inv)","Facilities & Space Management"]
[131,"CIT Applications","Custom Dev","Facilities Inventory","Done","Jane Van Derzee & Lori Barry","Jane Van Derzee & Lori Barry","Hugh Edwards","email or call Hugh Edwards",100,40,2.5,null,"Facilities Inventory","Facilities & Space Management"]
[132,"CIT Applications","Custom Dev","Special Conditions  (mailblaster)","Done","Joe Lalley ","Tom Young with Facilities, Office of Emergency Planning, University Communications and CUPD.","Nazrin Tingstrom","customdev-support@cornell.edu",94,20,4.7,null,"Special Conditions  (mailblaster)","Facilities & Space Management","Collaboration Tool"]
[133,"CIT Applications","Custom Dev","Emergency Mass Notification","Done","Joe Lally","Joe Lally","Nazrin Tingstrom","Facilities mgs list",94,20,4.7,null,"Emergency Mass Notification","Facilities & Space Management","Collaboration Tool"]
[134,"CIT Applications","Custom Dev","Office of Fire Prevention and Control","Done","Ron Flynn","Ron Flynn","Hugh Edwards","customdev-support@cornell.edu",100,20,5,null,"Office of Fire Prevention and Control","Facilities & Space Management"]
[135,"CIT Applications","Custom Dev","Key Management","Done","Peggy Matta","Peggy Matta","Hugh Edwards","customdev-support@cornell.edu",83,20,4.1500000000000004,null,"Key Management","Facilities & Space Management"]
[136,"CIT Applications","Custom Dev","HASP (Hazard Assessment Signage Program)","Done","Jim Greiger","Jim Greiger","Hugh Edwards","customdev-support@cornell.edu",93,20,4.6500000000000004,null,"HASP (Hazard Assessment Signage Program)","Facilities & Space Management"]
[137,"ILR","Conference Center","Access TV","Done","Ann Herson","Ann Herson","Access TV","Access TV",10,15,0.66666666666666663,null,"Functional Purpose: Facilities & Space Management","Facilities & Space Management"]
[138,"ILR","Conference Center","Dean Evans Event Management System (EMS) ","Done","Ann Herson","Ann Herson","Don Friedricksen","Don Friedricksen",58,15,3.8666666666666667,null,"Facilities and Space Management","Facilities & Space Management"]
[139,"Law","Facilitles","Facilitles - Cashbox","Not Scored","Facilitles","Mark Hickey -  mdh242@cornell.edu","Law IT","Dave Semo -  djs16@cornell.edu",null,null,0,"Total cost < unit threshold","Approx 2 hrs per year","Facilities & Space Management"]
[140,"Law","Facilitles","Facilitles - Tickets","Not Scored","Facilitles","Mike Pado - mjp20@cornell.edu","Law IT","Dave Semo -  djs16@cornell.edu",null,null,0,"Total cost < unit threshold","Approx 1 hr per year","Facilities & Space Management"]
[141,"Law","Facilitles","Keys Database","Not Scored","Facilitles","Mike Pado - mjp20@cornell.edu","Law IT","Dave Semo -  djs16@cornell.edu",null,null,0,"Total cost < unit threshold","Approx 2 hrs per year","Facilities & Space Management"]
[142,"Law","Registrar","Meeting Room Manager (NetSimplicity, Inc.)",null,"Registrar","Lisa Carberry","Law IT","Dave Semo -  djs16@cornell.edu",68,{"$error":"#N/A"},0,null,"Keep. Approximately 2 weeks per year to be spent managing data, users and background programming + $3,850 license/year","Facilities & Space Management"]
[143,"Library","Accounting","Endowment reporting (Access)","Done","Tami Magnus",null,"Tami Magnus",null,38,20,1.9,null,"Function: Finance - Other","Finance- Other"]
[144,"Library","Accounting","Travel Database (Access)","Done","Tami Magnus",null,"Tami Magnus",null,33,20,1.65,null,"Function: Finance - Other","Finance- Other"]
[145,"CIT Applications","Comm Apps","PeopleSoft Payroll and Epay","Done","Kim Cassell","Kim Cassell","Commercial Apps","pssupport-backline@cornell.edu",93,75,1.24,null,"https://confluence.cornell.edu/display/commappl/Alphabetical+List+of+Products","Finance- Other"]
[146,"CIT Applications","Comm Apps","PeopleSoft Epay","BV Complete","Kim Cassell","Kim Cassell","Commercial Apps","pssupport-backline@cornell.edu",53,{"$error":"#N/A"},0,null,"https://confluence.cornell.edu/display/commappl/Alphabetical+List+of+Products","Finance- Other"]
[147,"CIT Applications","Comm Apps","PeopleSoft Financial Aid","Done","Lee Melvin (TBD)","Lee Melvin (TBD)","Commercial Apps","pssupport-backline@cornell.edu",93,65,1.4307692307692308,null,"https://confluence.cornell.edu/display/commappl/Alphabetical+List+of+Products","Finance- Other","Admissions"]
[148,"CIT Applications","Comm Apps","PeopleSoft Student Finance","Done","Peter Olcott","Peter Olcott","Commercial Apps","pssupport-backline@cornell.edu",93,65,1.4307692307692308,null,"https://confluence.cornell.edu/display/commappl/Alphabetical+List+of+Products","Finance- Other"]
[149,"CIT Applications","Custom Dev","Actuate Retirement PDF Server","Done","Dave Wakoff","Dave Waykoff","Rich Marisa","customdev-support@cornell.edu",97,20,4.8499999999999996,null,"https://confluence.cornell.edu/display/citapps/Actuate+Retirement+PDF+server; Low support","Finance- Other"]
[150,"CIT Applications","Custom Dev","NUBB (Network Usage Based Billing)","Done","Mscott Walters","Mscott Walters","Hugh Edwards, Mike Oltz","customdev-support@cornell.edu",77,45,1.711111111111111,null,"NUBB and WUBB (Network Usage Based Billing)","Finance- Other"]
[151,"CIT Applications","Custom Dev","CATS (Asset Transfer System)","Done","Nancy Abbott","DFA's capital assets team","Mike Oltz","customdev-support@cornell.edu",81,20,4.05,null,"CATS (Asset Transfer System), Minimal Support. This application is in the DFA ASI List and the BV is going to be provided by the unit.\n","Finance- Other"]
[152,"CIT Applications","Custom Dev","Online Service Agreements","Done","Scott Sheavly","Scott Sheavly","IWS Team","IWS Team",56,20,null,null,null,"Finance- Other"]
[153,"Law","Administration","Online Payment Application","Not Scored","Administration","Diane Cross - dsr2@cornell.edu","Law IT","Dave Semo -  djs16@cornell.edu",null,null,0,"Total cost < unit threshold","Approx 2 days per year","Finance- Other"]
[154,"DFA","Accounting","Account Management",null,"as57","ccs1","gh17","gh17",48,20,2.4,null,null,"Finance- Other"]
[155,"DFA","Accounting","Account Stop/Delete request","Not Scored","as57","ccs1","gh17","gh17",10,20,0.5,null,null,"Finance- Other"]
[156,"DFA","Accounting","AP/ACH (direct deposit)","Not Scored","as57","ccs1","gh17","gh17",10,20,0.5,null,null,"Finance- Other"]
[157,"DFA","Accounting","APPS Dept. Profile","Not Scored","as57","ccs1","gh17","gh17",{"$error":"#N/A"},20,0,"Other(add comment)","Mainframe application","Finance- Other"]
[158,"DFA","Accounting","APPS Pcard Update","Not Scored","as57","ccs1","gh17","gh17",{"$error":"#N/A"},20,0,"Other(add comment)","Mainframe application","Finance- Other"]
[159,"DFA","Accounting","APPS request for solicitation","Not Scored","as57","ccs1","gh17","gh17",{"$error":"#N/A"},20,0,"Other(add comment)","Mainframe application","Finance- Other"]
[160,"DFA","Payroll","ATX Tax Software","Not Scored","as57","ccs1","gh17","gh17",47,20,2.35,null,null,"Finance- Other"]
[161,"DFA","Accounting","Authorization Management 1 (JEMS, Payment Request)","Not Scored","as57","ccs1","gh17","gh17",58,20,2.9,null,null,"Finance- Other"]
[162,"DFA","Accounting","Authorization Management 2 (Groups, Roles, Users, etc.)","Not Scored","as57","ccs1","gh17","gh17",43,20,2.15,null,null,"Finance- Other"]
[163,"DFA","Bursar","Bursar Item type request","Not Scored","as57","ccs1","gh17","gh17",{"$error":"#N/A"},20,0,"Other(add comment)","This is a Cynergy app","Finance- Other"]
[164,"DFA","Accounts Payable","CD Search","Not Scored","as57","mo14","gh17","gh17",43,15,2.8666666666666667,null,null,"Finance- Other"]
[165,"DFA","SMS Payroll","Extng Vndr Addr Upd Req","Not Scored","as57","ccs1","gh17","gh17",{"$error":"#N/A"},20,0,"Not in use",null,"Finance- Other"]
[166,"DFA","Reporting","Hyperion Enterprise 6.11","Not Scored","as57","ccs1","gh17","gh17",74,35,2.1142857142857143,null,null,"Finance- Other"]
[167,"DFA","Accounting","JEMS","Not Scored","as57","ccs1","gh17","gh17",78,20,3.9,null,null,"Finance- Other"]
[168,"DFA","Capital Assets","MACAMS","Not Scored","as57","ccs1","gh17","gh17",73,20,3.65,null,null,"Finance- Other"]
[169,"DFA","SMS ","Mantis","Not Scored","db18","db18","gh17","gh17",20,20,1,null,null,"Finance- Other"]
[170,"DFA","Accounting Payroll","Metastorm ework","Not Scored","as57","ccs1","gh17","gh17",63,20,3.15,null,null,"Finance- Other"]
[171,"DFA","Accounting SMS","Modcomp ineterface with Invoices","Not Scored","as57","gh17","gh17","gh17",58,20,2.9,null,null,"Finance- Other"]
[172,"DFA","Accounting","NAR (new account request)","Not Scored","as57","ccs1","gh17","gh17",58,20,2.9,null,null,"Finance- Other"]
[173,"DFA","Accounting","Payment Request Reimbursement","Not Scored","as57","ccs1","gh17","gh17",80,20,4,null,null,"Finance- Other"]
[174,"DFA","Accounts Payable","Piracle createacheck","Not Scored","mo14","mo14","gh17","gh17",47,15,3.1333333333333333,null,null,"Finance- Other"]
[175,"DFA","Accounting","Travel","Not Scored","as57","ccs1","gh17","gh17",100,20,5,null,null,"Finance- Other"]
[176,"DFA","Payroll","WindStar","Not Scored","as57","gwb7","gh17","gh17",100,25,4,null,null,"Finance- Other"]
[177,"DFA","SMS","Spend Viz","Not Scored","twr2","twr2","twr2/mjk276","twr2/mjk276",85,25,3.4,null,null,"Finance- Other"]
[178,"DFA","SMS","Client Profile duplicate of 51","Not Scored","twr2","twr2","twr2/mjk276","twr2/mjk276",96,15,6.4,"Other(add comment)","Duplicate of 51","Finance- Other"]
[179,"DFA","Cost and Capital Assets","CRIS (Comprehensive Rate Information System)","Not Scored","jas9","nja3","gh17","gh17",96,25,3.84,null,null,"Finance- Other"]
[180,"DFA","Cost and Capital Assets","CATS (Cornell Asset Transfer System)","Not Scored","jas9","nja3","gh17","gh17",81,30,2.7,null,null,"Finance- Other"]
[181,"DFA","Accounts Payable","Check Insight","Not Scored","as57","gwb7","gh17","gh17",20,20,1,null,null,"Finance- Other"]
[182,"DFA","Payroll","CCH","Not Scored","as57","gwb7","gh17","gh17",78,20,3.9,null,null,"Finance- Other"]
[183,"DFA","Accounting","Account search (web tool)",null,"ky16","smh44","smh44","smh44",44,20,2.2000000000000002,null,null,"Finance- Other"]
[184,"DFA","Accounting","Object code search (web tool)",null,"ky16","smh44","smh44","smh44",44,20,2.2000000000000002,null,null,"Finance- Other"]
[185,"DFA","Accounting","Cash Receipts system ",null,"ky16","smh44","smh44","smh44",8,20,0.4,null,null,"Finance- Other"]
[186,"DFA","Accounting","Access databases - bank/cash/creditcard receipts reconciliations",null,"ky16","smh44","smh44","smh44",61,15,4.0666666666666664,null,null,"Finance- Other"]
[187,"DFA","Accounting","Access databases - LTIP share management",null,"ky16","smh44","smh44","smh44",86,15,5.7333333333333334,null,null,"Finance- Other"]
[188,"DFA","Reporting","Access databases - financial statement details",null,"ky16","rjk7","rjk7","rjk7",81,15,5.4,null,null,"Finance- Other"]
[189,"DFA","Reporting","Access databases - WCMC financial data conversion",null,"ky16","rjk7","rjk7","rjk7",81,15,5.4,null,null,"Finance- Other"]
[190,"DFA","Accounting","Crimson Editor",null,"ky16","smh44","smh44","smh44",65,20,3.25,null,null,"Finance- Other"]
[191,"DFA","The Cornell Store","Credit card billing site","Not Scored","ejb10","kdd6","mjk276","mjk276",82,20,4.0999999999999996,null,null,"Finance- Other"]
[192,"DFA","The Cornell Store","Textbook services - buyback","Not Scored","paw223","gs248","mjk276","mjk276",57,20,2.85,null,null,"Finance- Other"]
[{"$f":"ROW(194:194)-1","v":193},"DFA","The Cornell Store","Textbook services - book droplist","Not Scored","paw223","gs248","mjk276","mjk276",52,15,3.4666666666666668,null,null,"Finance- Other"]
[194,"DFA","The Cornell Store","Textbook services - textbook by course","Not Scored","paw223","gs248","mjk276","mjk276",92,15,6.1333333333333337,null,null,"Finance- Other"]
[195,"DFA","The Cornell Store","Textbook services - textbook by schedule","Not Scored","paw223","gs248","mjk276","mjk276",92,15,6.1333333333333337,null,null,"Finance- Other"]
[196,"DFA","The Cornell Store","Textbook services - rental shelving utility","Not Scored","paw223","gs248","mjk276","mjk276",48,15,3.2,null,null,"Finance- Other"]
[197,"DFA","The Cornell Store","Textbook services - course verifications/history","Not Scored","paw223","gs248","mjk276","mjk276",73,15,4.8666666666666663,null,null,"Finance- Other"]
[198,"DFA","The Cornell Store","Textbook services - warehouse shelving","Not Scored","paw223","gs248","mjk276","mjk276",48,15,3.2,null,null,"Finance- Other"]
[199,"DFA","The Cornell Store","E-commerce eRatex","Not Scored","paw223","paw223","kdd6","kdd6",65,15,4.333333333333333,null,null,"Finance- Other"]
[200,"DFA","The Cornell Store","Software licensing","Not Scored","dap26","dap26","mjk276","mjk276",77,15,5.1333333333333337,null,null,"Finance- Other"]
[201,"DFA","The Cornell Store","Customer profile/receipts","Not Scored","paw223","paw223","mjk276","mjk276",47,15,3.1333333333333333,null,null,"Finance- Other"]
[202,"DFA","SMS","SMS customer profile","Not Scored","twr2","twr2","mjk276","mjk276",38,20,1.9,null,null,"Finance- Other"]
[203,"DFA","The Cornell Store","Admissions T-shirt site","Not Scored","paw223","paw223","mjk276","mjk276",43,15,2.8666666666666667,null,null,"Finance- Other"]
[204,"DFA","The Cornell Store","Custom publishing submission forms","Not Scored","paw223","jsl10","mjk276","mjk276",43,15,2.8666666666666667,null,null,"Finance- Other"]
[205,"DFA","The Cornell Store","Visitor sign-up form","Not Scored","paw223","paw223","mjk276","mjk276",43,15,2.8666666666666667,null,null,"Finance- Other"]
[206,"DFA","The Cornell Store","Gift card balance","Not Scored","paw223","paw223","mjk276","mjk276",43,15,2.8666666666666667,null,null,"Finance- Other"]
[207,"DFA","The Cornell Store","Printshop forms - Cornell Chronicle","Not Scored","bll28","bll28","mjk276","mjk276",43,15,2.8666666666666667,null,null,"Finance- Other"]
[208,"DFA","The Cornell Store","Printshop forms - Disseration order","Not Scored","bll28","bll28","mjk276","mjk276",43,15,2.8666666666666667,null,null,"Finance- Other"]
[209,"DFA","The Cornell Store","Printshop forms - Thesis order","Not Scored","bll28","bll28","mjk276","mjk276",48,15,3.2,null,null,"Finance- Other"]
[210,"DFA","The Cornell Store","Printshop forms - business card order forms","Not Scored","bll28","bll28","mjk276","mjk276",43,15,2.8666666666666667,null,null,"Finance- Other"]
[211,"DFA","The Cornell Store","Alto Image Arranger/UltraWeb/UltraPrint","Not Scored","kdd6","bll28","kdd6","kdd6",92,15,6.1333333333333337,null,null,"Finance- Other"]
[212,"DFA","SMS","cardprograms.dfa.cornell.edu","Not Scored","twr2","twr2","mjk276","mjk276",44,15,2.9333333333333331,null,null,"Finance- Other"]
[213,"DFA","The Cornell Store","Visual Ratex/POS","Not Scored","paw223","kdd6","kdd6","kdd6",65,55,1.1818181818181819,null,null,"Finance- Other"]
[214,"DFA","Treasury","Application for University Financing (loan application)","Not Scored","cdj4","cdj4","mjk276","mjk276",62,15,4.1333333333333337,null,null,"Finance- Other"]
[215,"DFA","UBSC","Access database - Customer Information",null,"rmy1","lll79","lll79","lll79",38,15,2.5333333333333332,null,null,"Finance- Other"]
[216,"DFA","SMS","SciQuest",null,"twr2","twr2","db18","db18",81,35,2.3142857142857145,null,null,"Finance- Other"]
[217,"DFA","SMS","Procurex",null,"twr2","twr2","mgw3","mgw3",81,30,2.7,null,null,"Finance- Other"]
[218,"Library","HR","HR Shadow DB","Done","Lyndsi Prignon",null,"Lyndsi Prignon",null,73,15,4.8666666666666663,null,"Developed by CIT under contract.  Function: HR - Other","HR- Other"]
[219,"AFA","Fin Aid and Stdt Employ","SJP (Student Job Postings)/Jobs Database","Done","Fin Aid and Student Employment","Nelson Burdick","SAS-IT","Nicole Waterman",70,15,4.666666666666667,null,"Hosted by CIT","HR- Other"]
[220,"CIT Applications","Comm Apps","PeopleSoft Human Resources","Done","Lyman Flahive","Lyman Flahive","Commercial Apps","pssupport-backline@cornell.edu",93,75,1.24,null,"https://confluence.cornell.edu/display/commappl/Alphabetical+List+of+Products","HR- Other"]
[221,"CIT Applications","Comm Apps","PeopleSoft Enterprise Learning Mgmt","Done","Lyman Flahive","Lyman Flahive","Commercial Apps","pssupport-backline@cornell.edu",80,55,1.4545454545454546,null,"https://confluence.cornell.edu/display/commappl/Alphabetical+List+of+Products","HR- Other"]
[222,"CIT Applications","Comm Apps","Kronos","Done","Wes Buchanan","Michelle Reichert","Commercial Apps","kronos-backline@cornell.edu",90,75,1.2,null,"https://confluence.cornell.edu/display/commappl/Alphabetical+List+of+Products","HR- Other","Time Management"]
[223,"CIT Applications","Custom Dev","Performance Dialogue","Done","Hayley Harris","HR","Hugh Edwards","spd-support-l@cornell.edu",38,20,1.9,null,"Performance Dialogue","HR- Other"]
[224,"CIT Applications","Custom Dev","Position Description","Done","Hayley Harris","HR","Hugh Edwards","spd-support-l@cornell.edu",97,20,4.8499999999999996,null,"Position Description","HR- Other"]
[225,"ILR","Deans Office","Tableau","Done","Harry Katz","Theresa Woodhouse","Don Friedricksen","Don Friedricksen",null,null,0,null,"Human Resources","HR- Other"]
[226,"Law","Administration","Lawschool Holiday Party","Not Scored","Administration","Teather White -  tmw54@cornell.edu","Law IT","Dan Jones -  dcj8@cornell.edu",null,null,0,"Total cost < unit threshold","Approx 2 hours/year programming time - saves more time than that for the Administration office by providing detailed catering information.","HR- Other"]
[227,"Law","Administration and Dean's Office","eDirectory","BV Complete","Administration and Dean's Office","Teather White -  tmw54@cornell.edu/Rachel Lukens -  rll35@cornell.edu","Law IT","Maren Herman -  mh103@cornell.edu",null,null,0,"Other(add comment)","Keep. Approx 3 weeks/year - plans to change code (flash problems w/ browser) & expand data being collected. Combined with CLS Online Directory (Communication_24)","HR- Other","IT Utility"]
[228,"Law","Communications","CLS Online Directory and eDirectory database (combined)",null,"Communications","Jackie Dowdell - jad43/Teather White - tmw54","Law IT","Dan Jones -  dcj8@cornell.edu/Maren Herman - mh103@cornell.edu",68,{"$error":"#N/A"},0,null,"keep - this typically takes 16-24 hours/year (updating for new class years, and creating archives), in addition to 2+ weeks/year data and photo collection/maintenance","HR- Other","IT Utility"]
[229,"Law","HR","Faculty Bio Updater","Not Scored","HR","Cheryl A Winder - cab22@cornell.edu","Law IT","Dan Jones -  dcj8@cornell.edu",null,null,0,"Total cost < unit threshold","Approx 4 hrs/ year - this is currently stable, but will require more hours if changes are requested.","HR- Other","Academic Administration"]
[230,"Library","CUL-IT","Puppet","Not Scored","Chris Manly",null,"Chris Manly",null,null,null,0,"IT staff use only","Function: IT Utility","IT Utility"]
[231,"Library","CUL-IT","Subversion","Not Scored","Chris Manly",null,"Chris Manly",null,null,null,0,"IT staff use only","Function: IT Utility","IT Utility"]
[232,"Social Sciences","CISER","Audit Wizard","Done","Janet Heslop","Janet Heslop","Janet Heslop","Janet Heslop",91,20,4.5999999999999996,null,"Inventory tracking (software and hardware)","IT Utility"]
[233,"Social Sciences","CISER","Joomla","Not Scored","Janet Heslop","Janet Heslop","Janet Heslop","Janet Heslop",null,null,0,"IT staff use only","WebServer ","IT Utility"]
[234,"Social Sciences","CISER","Mach5 Analyzer","Not Scored","Janet Heslop","Janet Heslop","Janet Heslop","Janet Heslop",null,null,0,"IT staff use only","Web Stats Analyzer","IT Utility"]
[235,"Social Sciences","CISER","PicoSearch","Not Scored","Janet Heslop","Janet Heslop","Janet Heslop","Janet Heslop",null,null,0,"IT staff use only","Web Page Search Engine","IT Utility"]
[236,"Social Sciences","CISER","WS-FTP","Not Scored","Janet Heslop","Janet Heslop","Janet Heslop","Janet Heslop",null,null,0,"Other(add comment)","Utility Software for Researchers","IT Utility"]
[237,"Social Sciences","CISER","Systrack","Not Scored","Janet Heslop","Janet Heslop","Janet Heslop","Janet Heslop",null,null,0,"IT staff use only","Performance/Usage monitoring","IT Utility"]
[238,"Social Sciences","CISER","MySQL","Not Scored","Janet Heslop","Janet Heslop","Janet Heslop","Janet Heslop",null,null,0,"IT staff use only","Required for Joomla","IT Utility"]
[239,"Social Sciences","CISER","WebLink Validator","Not Scored","Janet Heslop","Janet Heslop","Janet Heslop","Janet Heslop",null,null,0,"IT staff use only","Validates Weblinks on WebServer","IT Utility"]
[240,"Social Sciences","SRI","ColdFusion","Not Scored","Yasamin Miller","Yasamin Miller","Brett Haranin","Brett Haranin",null,null,0,"IT staff use only","platform for web systems (surveys, administrative apps)","IT Utility"]
[241,"Social Sciences","SRI","NetOP MyVision","Not Scored","Yasamin Miller","Yasamin Miller","Janet Heslop","Janet Heslop",null,null,0,"Other(add comment)","monitor interviewer workstations","IT Utility"]
[242,"Social Sciences","SRI","Adobe Photoshop","Not Scored","Yasamin Miller","Yasamin Miller","Janet Heslop","Janet Heslop",null,null,0,"Other(add comment)","design and edit images for web surveys","IT Utility"]
[243,"Social Sciences","SRI","Adobe Dreamweaver","Not Scored","Yasamin Miller","Yasamin Miller","Janet Heslop","Janet Heslop",null,null,0,"Other(add comment)","development environment for web surveys","IT Utility"]
[244,"Social Sciences","SRI","Adobe Acrobat Pro","Not Scored","Yasamin Miller","Yasamin Miller","Janet Heslop","Janet Heslop",null,null,0,"Other(add comment)","create and modify PDF document for delivery to clients","IT Utility"]
[245,"Social Sciences","SRI","IDAutomation","Not Scored","Yasamin Miller","Yasamin Miller","Brett Haranin","Brett Haranin",null,null,0,"Other(add comment)","create barcodes for internal and client projects","IT Utility"]
[246,"Social Sciences","SRI","Gammadyne","Not Scored","Yasamin Miller","Yasamin Miller","Brett Haranin","Brett Haranin",null,null,null,"Other(add comment)","send bulk emails for web surveys","IT Utility"]
[247,"Social Sciences","SRI","Visual Studio","Not Scored","Yasamin Miller","Yasamin Miller","Brett Haranin","Brett Haranin",null,null,0,"IT staff use only","development environment for windows-based tools and plugins","IT Utility"]
[248,"CIT Applications","Comm Apps","Remedy","Done","Benoit McNicoll","Benoit McNicoll","Commercial Apps","remedy-backline@cornell.edu",78,40,1.95,null,"https://confluence.cornell.edu/display/commappl/Alphabetical+List+of+Products","IT Utility"]
[249,"CIT Applications","Comm Apps","Sourceforge/Subversion","Cost Complete","Benoit McNicoll","Benoit McNicoll","Commercial Apps","sourceforge-backline@cornell.edu",{"$error":"#N/A"},40,0,null,"https://confluence.cornell.edu/display/commappl/Alphabetical+List+of+Products","IT Utility"]
[250,"CIT Applications","Custom Dev","DW Security Backend","Done","Jeff Christen","Jeff Christen","Mike Oltz","customdev-support@cornell.edu",76,20,3.8,null,"DW Security Backend","IT Utility"]
[251,"CIT Applications","Custom Dev","DW Security Password Change","Done","Jeff Christen","Jeff Christen","Hugh Edwards","customdev-support@cornell.edu",67,20,3.35,null,"DW Security Password Change","IT Utility"]
[252,"CIT Applications","Custom Dev","CCAB RFC Form","Done","Jim Haustein","Jim Haustein","Hugh Edwards","customdev-support@cornell.edu",82,20,4.0999999999999996,null,"CCAB RFC Form","IT Utility"]
[253,"CIT Applications","Custom Dev","COEA (Alternate Email)","Done","Jim Howell","Jim Howell","Nazrin Tingstrom","customdev-support@cornell.edu",77,20,3.85,null,"COEA (Alternate Email)","IT Utility"]
[254,"ILR","Technology Services","CommonSpot","Done","Laura Robinson","David Demello","David Demello","ILR web team",53,20,2.65,null,"IT Utility","IT Utility"]
[255,"Law","Law IT","Imail Server ","Not Scored","Law IT","Ben Lem - bl46@cornell.edu","Law IT","Ben Lem - bl46@cornell.edu",null,null,null,"IT staff use only"," Listserve - 1 week/year + $895 license/year","IT Utility"]
[256,"Law","Law IT","AV Online Requests","Not Scored","Law IT","Cari Jean - clj25@cornell.edu","Law IT","Dan Jones -  dcj8@cornell.edu",null,null,0,"IT staff use only","keep","IT Utility"]
[{"$f":"ROW(258:258)-1","v":257},"Law","Law IT","AntiSpam/Web Inspector, Comp Assoc","Not Scored","Law IT","Paul Weber prw1@cornell.edu","Law IT","Juan Lube -  jgl23@cornell.edu",null,null,0,"IT staff use only","Keep","IT Utility"]
[258,"Law","Law IT","Apple  Rstudio for Mac","Not Scored","Law IT","Paul Weber prw1@cornell.edu","Law IT","Juan Lube -  jgl23@cornell.edu",null,null,0,"IT staff use only","Also under the unit's cost threshold","IT Utility"]
[259,"Law","Law IT","Apple Remote Desktop","Not Scored","Law IT","Paul Weber prw1@cornell.edu","Law IT","Juan Lube -  jgl23@cornell.edu",null,null,0,"IT staff use only","Also under the unit's cost threshold","IT Utility"]
[260,"Law","Law IT","Camtasia Studio 6 ","Not Scored","Law IT","Paul Weber prw1@cornell.edu","Law IT","Dan Jones -  dcj8@cornell.edu",null,null,0,"IT staff use only","Videos from desktop and put it online - used to create tutorials (18 hours/year for dcj8)- Prof Mollencamp ","IT Utility"]
[261,"Law","Law IT","Coda","Not Scored","Law IT","Paul Weber prw1@cornell.edu","Law IT","Paul Weber - prw1@cornell.edu",null,null,0,"IT staff use only","Also under the unit's cost threshold","IT Utility"]
[262,"Law","Law IT","DeepFreeze","Not Scored","Law IT","Paul Weber prw1@cornell.edu","Law IT","Juan Lube -  jgl23@cornell.edu",null,null,0,"IT staff use only",null,"IT Utility"]
[263,"Law","Law IT","Disk Warrior","Not Scored","Law IT","Paul Weber prw1@cornell.edu","Law IT","Juan Lube -  jgl23@cornell.edu",null,null,0,"IT staff use only","Used to partition disks","IT Utility"]
[264,"Law","Law IT","Dr Detective ","Not Scored","Law IT","Paul Weber prw1@cornell.edu","Law IT","Michale d'Estries -  md262@cornell.edu",null,null,0,"IT staff use only",null,"IT Utility"]
[265,"Law","Law IT","Export Address Book","Not Scored","Law IT","Paul Weber prw1@cornell.edu","Law IT","Juan Lube -  jgl23@cornell.edu",null,null,0,"IT staff use only",null,"IT Utility"]
[266,"Law","Law IT","Filemaker Pro 11","Not Scored","Law IT","Paul Weber prw1@cornell.edu","Law IT","Juan Lube -  jgl23@cornell.edu",null,null,0,"IT staff use only",null,"IT Utility"]
[267,"Law","Law IT","GeSWall Pro","Not Scored","Law IT","Paul Weber prw1@cornell.edu","Law IT","Juan Lube -  jgl23@cornell.edu",null,null,null,"IT staff use only","Sandboxes applications to keep virus off","IT Utility"]
[268,"Law","Law IT","JW Player ","Not Scored","Law IT","Paul Weber prw1@cornell.edu","Law IT","Juan Lube -  jgl23@cornell.edu",null,null,null,"IT staff use only","Play videos on HTML files on server so can be used on any platform","IT Utility"]
[269,"Law","Law IT","Perfect Installer     ","Not Scored","Law IT","Paul Weber prw1@cornell.edu","Law IT","Ben Lem - bl46@cornell.edu",null,null,null,"IT staff use only","Also under the unit's cost threshold","IT Utility"]
[270,"Law","Law IT","PowerMapper Pro4","Not Scored","Law IT","Paul Weber prw1@cornell.edu","Law IT","Juan Lube -  jgl23@cornell.edu",null,null,null,"IT staff use only",null,"IT Utility"]
[271,"Law","Law IT","RichTextBox Pro","Not Scored","Law IT","Paul Weber prw1@cornell.edu","Law IT","Juan Lube -  jgl23@cornell.edu",null,null,null,"IT staff use only","Also under the unit's cost threshold","IT Utility"]
[272,"Law","Law IT","SearchandReplace","Not Scored","Law IT","Paul Weber prw1@cornell.edu","Law IT","Juan Lube -  jgl23@cornell.edu",null,null,null,"IT staff use only",null,"IT Utility"]
[273,"Law","Law IT","Snagit!","Not Scored","Law IT","Paul Weber prw1@cornell.edu","Law IT","Juan Lube -  jgl23@cornell.edu",null,null,null,"IT staff use only",null,"IT Utility"]
[274,"Law","Law IT","Squeeze","Not Scored","Law IT","Paul Weber prw1@cornell.edu","Law IT","Michale d'Estries -  md262@cornell.edu",null,null,null,"IT staff use only",null,"IT Utility"]
[275,"Law","Law IT","Stopzilla","Not Scored","Law IT","Paul Weber prw1@cornell.edu","Law IT","Juan Lube -  jgl23@cornell.edu",null,null,null,"IT staff use only",null,"IT Utility"]
[276,"Law","Law IT","TeamViewer","Not Scored","Law IT","Paul Weber prw1@cornell.edu","Law IT","Juan Lube -  jgl23@cornell.edu",null,null,0,"IT staff use only","remote desktop","IT Utility"]
[277,"Law","Law IT","Textmate","Not Scored","Law IT","Paul Weber prw1@cornell.edu","Law IT","Juan Lube -  jgl23@cornell.edu",null,null,null,"IT staff use only",null,"IT Utility"]
[278,"Law","Law IT","VMFusion","Not Scored","Law IT","Paul Weber prw1@cornell.edu","Law IT","Juan Lube -  jgl23@cornell.edu",null,null,null,"IT staff use only",null,"IT Utility"]
[279,"Law","Law IT","Wondershare Video Converter","Not Scored","Law IT","Paul Weber prw1@cornell.edu","Law IT","Michale d'Estries -  md262@cornell.edu",null,null,null,"IT staff use only",null,"IT Utility"]
[280,"Law","Law IT","Detection Master Thumbs","Not Scored","Law IT","Paul Weber prw1@cornell.edu","Law IT","Juan Lube -  jgl23@cornell.edu",null,null,0,"Not in use","Software package used once","IT Utility"]
[281,"Law","Law IT","Vbrick","Not Scored","Law IT","Paul Weber prw1@cornell.edu","Law IT","Michale d'Estries -  md262@cornell.edu",null,null,null,"Not in use",null,"IT Utility"]
[282,"Law","Law IT","CounterSpy Ent Renewal","Not Scored","Law IT","Paul Weber prw1@cornell.edu","Law IT","Gail Howser -  gmr3@cornell.edu",null,null,0,"Total cost < unit threshold","Security software for minimize malware","IT Utility"]
[283,"Law","Law IT","DiscLabel","Not Scored","Law IT","Paul Weber prw1@cornell.edu","Law IT","Michale d'Estries -  md262@cornell.edu",null,null,0,"Total cost < unit threshold","Recordings eg for convocation, CD copies sold. CD disc duplicator.","IT Utility"]
[284,"Law","Law IT","Dragon","Not Scored","Law IT","Paul Weber prw1@cornell.edu","Law IT","Juan Lube -  jgl23@cornell.edu",null,null,0,"Total cost < unit threshold","Speech software- few users eg Dean","IT Utility"]
[285,"Law","Law IT","Endnote X3","Not Scored","Law IT","Paul Weber prw1@cornell.edu","Law IT","Juan Lube -  jgl23@cornell.edu",null,null,0,"Total cost < unit threshold",null,"IT Utility"]
[286,"Law","Law IT","ExamBuster","Not Scored","Law IT","Paul Weber prw1@cornell.edu","Law IT","Juan Lube -  jgl23@cornell.edu",null,null,0,"Total cost < unit threshold",null,"IT Utility"]
[287,"Law","Law IT","Flash Server","Not Scored","Law IT","Paul Weber prw1@cornell.edu","Law IT","Michale d'Estries -  md262@cornell.edu",null,null,null,"Total cost < unit threshold","May be upgrading the hardware. Used for streaming videos.","IT Utility"]
[288,"Law","Law IT","Flip4Mac wmv player Pro","Not Scored","Law IT","Paul Weber prw1@cornell.edu","Law IT","Juan Lube -  jgl23@cornell.edu",null,null,null,"Total cost < unit threshold",null,"IT Utility"]
[289,"Law","Law IT","Ghost","Not Scored","Law IT","Paul Weber prw1@cornell.edu","Law IT","Paul Weber prw1@cornell.edu",null,null,null,"Total cost < unit threshold","University license, about $1800/ year currently.","IT Utility"]
[290,"Law","Law IT","Kace Tools","Not Scored","Law IT","Paul Weber prw1@cornell.edu","Law IT","Ben Lem - bl46@cornell.edu",null,null,0,"Total cost < unit threshold","already purchased, ticketing system and for software- low cost in next 3 years.","IT Utility"]
[291,"Law","Law IT","Keyboard Maestro","Not Scored","Law IT","Paul Weber prw1@cornell.edu","Law IT","Juan Lube -  jgl23@cornell.edu",null,null,null,"Total cost < unit threshold",null,"IT Utility"]
[292,"Law","Law IT","Mac Parallels Desktop ","Not Scored","Law IT","Paul Weber prw1@cornell.edu","Law IT","Juan Lube -  jgl23@cornell.edu",null,null,null,"Total cost < unit threshold","Allos running different OS in Mac","IT Utility"]
[293,"Law","Law IT","Quickbooks Accounting Pro 2012 ","Not Scored","Law IT","Paul Weber prw1@cornell.edu","Law IT","Barbar Holden-Smith -  bjh12@cornell.edu",null,null,null,"Total cost < unit threshold","Manage intl law association used by Vice Dean","IT Utility"]
[294,"Law","Law IT","Skype","Not Scored","Law IT","Paul Weber prw1@cornell.edu","Law IT","Michale d'Estries -  md262@cornell.edu",null,null,null,"Total cost < unit threshold",null,"IT Utility"]
[295,"Law","Law IT","Web Crusher","Not Scored","Law IT","Paul Weber prw1@cornell.edu","Law IT","Paul Weber prw1@cornell.edu",null,null,null,"Total cost < unit threshold","Used to reduce the size of images","IT Utility"]
[296,"Law","Law IT","XScope","Not Scored","Law IT","Paul Weber prw1@cornell.edu","Law IT","Paul Weber prw1@cornell.edu",null,null,null,"Total cost < unit threshold",null,"IT Utility"]
[297,"CIT","SUPPORT","CCAB Tool",null,"Jim Haustein","Jim Haustein",null,null,82,20,4.0999999999999996,null,null,"IT Utility"]
[298,"CIT","SUPPORT","HDInternal",null,"Ron Seccia","Ron Seccia",null,null,35,15,2.3333333333333335,null,null,"IT Utility"]
[299,"CIT","SUPPORT","HDWiki",null,"Ron Seccia","Ron Seccia",null,null,36,15,2.4,null,null,"IT Utility","Collaboration Tool"]
[300,"CIT","SUPPORT","HP Quality Center",null,"Jan Clayton","Jan Clayton",null,null,46,20,2.2999999999999998,null,null,"IT Utility"]
[301,"CIT","SUPPORT","HP Quick Test Pro",null,"Jan Clayton","Jan Clayton",null,null,56,20,2.8,null,null,"IT Utility"]
[302,"CIT","SUPPORT","IBM Rationalizer Tester",null,"Jan Clayton","Jan Clayton",null,null,56,25,2.2400000000000002,null,null,"IT Utility"]
[303,"CIT","SUPPORT","Intermapper",null,"Bryan Benning","Bryan Benning",null,null,90,20,4.5,null,null,"IT Utility"]
[304,"CIT","SUPPORT","Line Card Pro",null,"Michelle Reynolds","Michelle Reynolds",null,null,48,20,2.4,null,null,"IT Utility"]
[305,"CIT","SUPPORT","MEGA",null,"Ron Seccia","Ron Seccia",null,null,44,15,2.9333333333333331,null,null,"IT Utility"]
[306,"CIT","SUPPORT","Pinnacle",null,"Michelle Reynolds","Michelle Reynolds",null,null,96,60,1.6,null,null,"IT Utility","Finance- Other"]
[307,"CIT","SUPPORT","Queue Monitor",null,"Ron Seccia","Ron Seccia",null,null,44,15,2.9333333333333331,null,null,"IT Utility"]
[308,"CIT","SUPPORT","Remedy",null,"Diane Sempler","Benoit McNicoll ",null,null,78,40,1.95,null,null,"IT Utility"]
[309,"CIT","SUPPORT","SMS",null,"Ron Seccia","Ron Seccia",null,null,40,15,2.6666666666666665,null,null,"IT Utility"]
[310,"CIT","SUPPORT","Titrax",null,"Bryan Benning","Bryan Benning",null,null,47,20,2.35,null,null,"IT Utility"]
[311,"CIT","SUPPORT","Bomgar",null,"Dan Elswit","Dan Elswit",null,null,null,null,0,null,null,"IT Utility"]
[312,"DFA","DFA","Identity Finder Enterprise","Not Scored","gh17","gh17","gh17","gh17",74,20,3.7,null,null,"IT Utility"]
[313,"DFA","The Cornell Store","bugtracker","Not Scored","kdd6","kdd6","mjk276","mjk276",29,15,1.9333333333333333,null,null,"IT Utility"]
[314,"Library","CUL-IT","CUL Web site","Done","Janet Mccue & Dean Krafft",null,"Adam Smith",null,75,35,2.1428571428571428,null,"Function: Other","Other"]
[315,"Library","CUL-IT","CULAR","Done","Dean Krafft",null,"Simeon Warner",null,93,45,2.0666666666666669,null,"Function: Other","Other"]
[316,"Library","CUL-IT","GFA LAS system (Annex)","Done","Kornelia Tancheva",null,"Chris Manly",null,81,15,5.4,null,"Function: Other","Other"]
[317,"Library","CUL-IT","III ERMS","Done","Jim LeBlanc",null,"Chris Manly",null,53,20,2.65,null,"Function: Other","Other"]
[318,"Library","CUL-IT","Logs analysis","Done","Dean Krafft",null,"Chris Manly",null,46,15,3.0666666666666669,null,"Function: Other","Other"]
[319,"Library","CUL-IT","Lstools","Done","Jim LeBlanc",null,"Chris Manly",null,63,15,4.2,null,"Function: Other","Other"]
[320,"Library","CUL-IT","Pre-Online Order Form","Done","Jim LeBlanc",null,"Adam Smith",null,67,35,1.9142857142857144,null,"Function: Other","Other"]
[{"$f":"ROW(322:322)-1","v":321},"Library","CUL-IT","Summon","Done","Jim LeBlanc",null,"Jesse Koennecke",null,57,40,1.425,null,"Summon has actually been paid already for next 3 years.  Function: Other","Other"]
[322,"Library","CUL-IT","Olin/Uris Library Website","Done","Kornelia Tancheva",null,"Adam Smith",null,57,15,3.8,null,"Function: Other","Other"]
[323,"Library","CUL-IT","Voyager","Done","Jim LeBlanc",null,"Chris Manly",null,83,70,1.1857142857142857,null,"Includes related systems like feeds to KFS, Bursar, PeopleSoft.  Function: Other","Other"]
[324,"Library","DSPS","Conservation Database","Done","Barbara Eden",null,"Joan Brink",null,77,15,5.1333333333333337,null,"Function: Other","Other"]
[325,"Library","ILL","Illiad","Done","Kornelia Tancheva",null,"Kornelia Tancheva",null,91,25,3.64,null,"Function: Other","Other"]
[326,"Library","RAO","Atlas.TI","Not Scored","Zsuzsa Koltay",null,"Zsuzsa Koltay",null,null,null,0,"Other(add comment)","This is a tool, like Word, Excel, etc.","Other"]
[327,"Library","RAO","LibPAS","Done","Zsuzsa Koltay",null,"Zsuzsa Koltay",null,88,25,3.52,null,"Function: Other","Other"]
[328,"Library","RAO","SPSS stats software","Not Scored","Zsuzsa Koltay",null,"Zsuzsa Koltay",null,null,null,0,"Other(add comment)","This is a tool, like Word, Excel, etc.","Other"]
[329,"Library","CUL-IT","Africana Library Website","Done","Eric Acree",null,"Adam Smith",null,43,15,2.8666666666666667,null,"Function: Other","Other"]
[330,"Library","CUL-IT","Engineering Library Website","Done","Jill Powell",null,"Adam Smith",null,82,15,5.4666666666666668,null,"Function: Other","Other"]
[331,"Library","CUL-IT","Fine Arts Library Website","Done","Martha Walker",null,"Adam Smith",null,43,15,2.8666666666666667,null,"Function: Other","Other"]
[332,"Library","CUL-IT","Kroch Asia Library Website","Done","Greg Green",null,"Adam Smith",null,43,15,2.8666666666666667,null,"Function: Other","Other"]
[333,"Library","CUL-IT","Management Library Website","Done","Angela Horne",null,"Adam Smith",null,43,15,2.8666666666666667,null,"Function: Other","Other"]
[334,"Library","CUL-IT","Math Library Website","Done","Steve Rockey",null,"Adam Smith",null,58,15,3.8666666666666667,null,"Function: Other","Other"]
[335,"Library","CUL-IT","Music Library Website","Done","Bonna Boettcher",null,"Adam Smith",null,43,15,2.8666666666666667,null,"Function: Other","Other"]
[336,"Library","CUL-IT","Physcial Sciences Library Website","Done","Leah Solla",null,"Adam Smith",null,73,25,2.92,null,"Function: Other","Other"]
[337,"Library","CUL-IT","eNERF","Done","Bill Kara",null,"Jesse Koennecke",null,68,15,4.5333333333333332,null,"Function: Other","Other"]
[338,"Social Sciences","CISER","Statistical Software for Researchers","Done","Janet Heslop","Janet Heslop","Janet Heslop","Janet Heslop",85,60,1.4,null,"Stata,SAS,Matlab,Adobe Acrobat Pro,Winzip,SPSS,HLM,Lisrel,Atlas TI,StatTransfer,EditPlus,WinRats,Scientific Workplace,Mathematica,Gauss,JMP,Mplus,Genstat,Stella,Maple,EndNote,Latex,R,Splus,Tomlab,MKL,Ucinet","Other"]
[339,"Social Sciences","CISER","Utility Software for Researchers","Done","Janet Heslop","Janet Heslop","Janet Heslop","Janet Heslop",85,45,1.9,null,"Rstudio,WinBugs,Perl,ArcGIS,Holdem Manager,7z,MiKTeX,AMOS,Fortran,Minitab,RefWorks,Visual Studio,Python,Notepad++","Other"]
[340,"Social Sciences","SRI","CASES","Not Scored","Yasamin Miller","Yasamin Miller","Darren Hearn","Darren Hearn",null,null,0,"Other(add comment)","data collection software for phone interviews","Other"]
[341,"Social Sciences","SRI","Statistical Analysis Software","Done","Yasamin Miller","Yasamin Miller","Darren Hearn","Darren Hearn",68,20,3.4,null,"SAS,SPSS,Statpac","Other"]
[342,"Social Sciences","SRI","Cardiff Teleform","Not Scored","Yasamin Miller","Yasamin Miller","Darren Hearn","Darren Hearn",null,null,0,"Other(add comment)","scanning software for paper surveys","Other"]
[343,"Social Sciences","CISER","CNSS","Done","Janet Heslop","Janet Heslop","Jeremy Williams","Jeremy Williams",80,20,4,null,"Cornell National Social Survey Integration System","Other"]
[344,"Social Sciences","CISER","Management System","Done","Janet Heslop","Janet Heslop","Jeremy Williams","Jeremy Williams",92,30,3.1,null,"Various applications used to manage CISER computing accounts and services - includes Apply, Manage, Renewals, CRADC, Reset, Guard","Other"]
[345,"Social Sciences","CISER","Reporting System","Done","Janet Heslop","Janet Heslop","Jeremy Williams","Jeremy Williams",71,20,3.6,null,"Various applications for reporting on all aspects of CISER activity - includes Billing, Usage, STAR, Daily System Usage, Concurrent Process Report, Systrack Harvester, RschNodeMonitorFeed, UserSearch","Other"]
[346,"Social Sciences","CISER","Workshop Applications","Done","Janet Heslop","Janet Heslop","Jeremy Williams","Jeremy Williams",63,20,3.2,null,"Tools related to entering workshops in the database and letting users register online for these workshops","Other"]
[347,"Social Sciences","CISER","Archive","Done","Janet Heslop","Janet Heslop","Irene Hawes","Irene Hawes",87,20,4.4000000000000004,null,"includes multiple programs including EZID","Other"]
[348,"AFA","Fin Aid and Stdt Employ","MURF","Scheduled","Fin Aid and Student Employment","Nelson Burdick\nJen Talcott","SAS-IT","John Romag (CIT)",78,30,2.6,null,"There also an external contact for program updates/mods.","Other","Financial Aid"]
[349,"AFA","Fin Aid and Stdt Employ","Outside Scholarship Database","Done","Fin Aid and Student Employment","Debbie Paul","SAS-IT","Debbie Paul",72,15,4.8,null,"This is a straight MS Access database, locally created and used.  In the same vein we have National Merit scholarships, RUSS, NCAA.","Other","Financial Aid"]
[350,"AFA","Fin Aid and Stdt Employ","Endowed Scholarships","Not Scored","Fin Aid and Student Employment","Jennifer Talcott","SAS-IT","unknown",null,null,0,"Other(add comment)","This is a Filemaker database maintained and hosted in Alumni Affairs","Other","Financial Aid"]
[351,"AFA","UG Adm and FA","Hobsons EMT Connect","Done","Undergraduate Admissions and Financial Aid","Lori Hulse","SAS-IT","Joseph Saponaro",47,30,1.5666666666666667,null,"for mass emails","Other","Financial Aid"]
[352,"AFA","Fin Aid and Stdt Employ","Financial Aid Calculator","Done","Fin Aid and Student Employment","Tom Keane","FIN AID","Tom Keane",70,25,2.8,null,null,"Other","Financial Aid"]
[353,"CIT Applications","Comm Apps","Pinnacle","BV Complete","Michelle Reynolds","Michelle Reynolds","Commercial Apps","pinnacle-backline@cornell.edu",70,{"$error":"#N/A"},0,null,"https://confluence.cornell.edu/display/commappl/Alphabetical+List+of+Products","Other"]
[354,"Law","Communications","Law School Online Forum","BV Complete","Communications","Jackie Dowdell - jad43@cornell.edu","Law IT","Maren Herman -  mh103@cornell.edu",48,{"$error":"#N/A"},0,null,"keep- 2 weeks/year","Other"]
[355,"Law","Communications","Friends database","Not Scored","Communications","Martha Patricia Fitzgerald","Law IT","Dave Semo -  djs16@cornell.edu",null,null,0,"Total cost < unit threshold","Approx 2 hrs per year","Other"]
[356,"Law","Communications","AxisTV and Add on Apps","BV Complete","Communications","Martha Patricia Fitzgerald","Law IT","Dan Jones -  dcj8@cornell.edu",48,{"$error":"#N/A"},0,null,"keep - this is currently stable at 10hours/year, and can consume more hours/year if changes are requested","Other"]
[357,"Law","Communications","Law School Website & Cornell Law School Mobile website & News Grid","BV Complete","Communications","Martha Patricia Fitzgerald","Law IT","Paul Weber - prw1@cornell.edu",60,{"$error":"#N/A"},0,null,"keep.  Very actively supported.","Other"]
[358,"Law","Communications","OpenEMM","Not Scored","Communications","Tricia Barry - tmr82@cornell.edu","Law IT","Maren Herman -  mh103@cornell.edu",null,null,0,"Total cost < unit threshold","Approx 1 day/year","Other"]
[359,"CIT Applications","Custom Dev","EZRA and the Sponsored Portal","Done","Dan Dwyer ","Dan Dwyer ","Nazrin Tingstrom","Customer mgs",97,40,2.4249999999999998,null,"EZRA and the Sponsored Portal","Research Administration"]
[360,"CIT Applications","Custom Dev","Coeus IRB","Done","ORIA (Amita Verma, Matthew Aldridge)","ORIA (Amita Verma, Matthew Aldridge)","Nazrin Tingstrom","customdev-support@cornell.edu",93,20,4.6500000000000004,null,"https://confluence.cornell.edu/display/citapps/Coeus+IRB, In Research List","Research Administration"]
[361,"CIT Applications","Custom Dev","COI (Conflict of Interest)","Done","ORIA-Amita Verma","ORIA-Amita Verma","Hugh Edwards","customdev-support@cornell.edu",100,30,3.3333333333333335,null,"https://confluence.cornell.edu/display/citapps/COI+%28Conflict+of+Interest%29\", in Research List","Research Administration"]
[362,"Graduate School","Grad School","Online Catalog","Done","Grad School","Kat Empson","SAS-IT","John Tonello",100,20,5,null,"A component of the website for the display of academic units, structure, faculty lists and other data","Student- Other"]
[363,"Graduate School","Grad School","Graduation Manager","BV Complete","Grad School","Kat Empson","CIT",null,85,null,0,"Other(add comment)","This is scored in CIT-Apps list. Graduation Manger is a custom application (built in Cold Fusion with a Fedora front-end) for the submission of graduate student theses and dissertations.  It aggregates data from both from SDM/PeopleSoft and directly from the student user at the time of document submission.  The application allows online review of PDF documents and includes a workflow process for collection faculty approvals.","Student- Other"]
[364,"Graduate School","Grad School","GSCGrad Special Committee","BV Complete","Grad School","Jason Kahabka","CIT",null,81,{"$error":"#N/A"},0,"Other(add comment)","This app is scored in CIT-Apps list. The GSC application is a tool to facilitate graduate students to request special committee members (faculty) and choose their academic concentrations online via their student center.  Student requests are routed through a workflow process for approval and are eventually saved to PeopleSoft.","Student- Other"]
[365,"CIT Applications","Custom Dev","SJP (Student Job Postings)","Done","Susan Hitchcock","Susan Hitchcock","Mike Oltz","customdev-support@cornell.edu",70,20,3.5,null,"https://confluence.cornell.edu/display/citapps/SJP, Low support","Student- Other"]
[366,"ILR","Communications","Digital Signage Content Management","Done","Joe Zappala","Joanne Kenyon","Michael Radzik","Michael Radzik",23,15,1.5333333333333334,null,"Student other","Student- Other"]
[367,"Social Sciences","SRI","Project Tracker","Not Scored","Yasamin Miller","Yasamin Miller","Brett Haranin","Brett Haranin",null,null,0,"Other(add comment)","track staff time, project hours, project tasks, invoice projects","Time Management"]
[368,"Graduate School","Grad School","HESK","Done","Grad School","Rosemary Lang","SAS-IT","John Tonello",77,20,3.85,null,"Help Desk software used to track and manage data requests from the 100 graduate fields, the Graduate School Deans, the Graduate Student Services Office, and various internal (e.g., Learning Skills Center) and external (e.g., National Science Foundation) constituents.","Time Management"]
[369,"AFA","UG Adm and FA","Out'n About","Done","Undergraduate Admissions and Financial Aid","Nelson Burdick\nJason Locke","SAS-IT","Jen Talcott",48,15,3.2,null,"electronic employee in/out board Used by AD and FA/SE staff to indicate where they are (meetings, etc.) throughout the workday.","Time Management"]
[370,"Graduate School","Grad School","Cynergy PS access request","Not Scored","Grad School",null," ",null,null,null,0,"Other(add comment)","This should be scored by CIT. Although this system is not ‘owned’ by the graduate school it is a key productivity tool for managing the access of the 300+ PeopleSoft users that we are responsible for .  The Graduate School approves and initiates access requests for all graduate financial aid awarders as well as over 100 GFA and field-level SR and AD users"]
[371,"Graduate School","Grad School","NextStep","Not Scored","Grad School","Elisabeth Ellis\nRosemary Lang","SAS-IT",null,null,null,0,"Other(add comment)","This is really a business process supported by several productivity tools.  Integrated components (PeopleSoft communication load, series of integrated Brio queries, Lyris) supporting mass communications to new graduate students."]
[372,"DPB","Capital Planning","PARS","Not Scored","Tom Cole","Tom Cole","Dan McGough","Dan McGough",null,null,0,"Not in use"]
[373,"DPB","Capital Planning","EPAR","Not Scored","Facilities","Tom Cole","Facilities","Facilities",null,null,0,"Other(add comment)","Supported by facilities"]
[374,"DPB","Budget","APDB","Not Scored","HR","HR","HR","HR",null,null,0,"Other(add comment)","Supported by HR"]
[375,"DPB","Budget","G2 - Professorships",null,"Davina Desnoes","Maggie Liu","Maggie Liu","Maggie Liu",null,null,0,null,"Group as financial apps G2"]
[376,"DPB","Budget","G2 - Allocations",null,"Davina Desnoes","Karen Pearson","Karen Pearson","Karen Pearson",null,null,0,null,"Group as financial apps G2"]
[377,"DPB","Budget","G2 - Commitments & Allocations",null,"Davina Desnoes","Davina Desnoes","Davina Desnoes","Davina Desnoes",null,null,0,null,"Group as financial apps G2"]
[378,"DPB","Budget","G2 - Sabbatics",null,"Jean Palmer","Jean Palmer","Jean Palmer","Jean Palmer",null,null,0,null,"Group as financial apps G2"]
[379,"DPB","Budget","G2 - Budget Performance Report",null,"Ellen Mastrogiovanni","Ellen Mastrogiovanni","Ellen Mastrogiovanni","Ellen Mastrogiovanni",null,null,0,null,"Group as financial apps G2"]
[380,"DPB","Budget","G2 - Enrollment",null,"Ellen Mastrogiovanni","Ellen Mastrogiovanni","Ellen Mastrogiovanni","Ellen Mastrogiovanni",null,null,0,null,"Group as financial apps G2"]
[381,"DPB","Space Planning","Annual Space Report","Not Scored","Mary-Lynn Cummings","Mary-Lynn Cummings","Mary-Lynn Cummings","Mary-Lynn Cummings",null,null,0,"No ongoing cost"]
[382,"DPB","Space Planning","Facilities Inventory System","Not Scored","Facilities","Facilities","Facilities","Facilities",null,null,0,"Other(add comment)","Supported by facilities"]
[383,"DPB","Space Planning","X25 Class Room Utilization","Not Scored","Registrar","Registrar","Registrar","Registrar",null,null,0,"Other(add comment)","Supported by registrar"]
[384,"DPB","IRP","G1 - SPSS",null,null,null,null,null,null,null,0,null,"Group stats apps as G1"]
[{"$f":"ROW(386:386)-1","v":385},"DPB","IRP","G1 - STATA",null,null,null,null,null,null,null,0,null,"Group stats apps as G1"]
[386,"DPB","IRP","G1 - SAS",null,null,null,null,null,null,null,0,null,"Group stats apps as G1"]
[387,"DPB","IRP","G1 - NUDIST",null,null,null,null,null,null,null,0,null,"Group stats apps as G1"]
[388,"DPB","IRP","G1 - R",null,null,null,null,null,null,null,0,null,"Group stats apps as G1"]
[389,"DPB","IRP","G1 Summary","Not Scored","Marin Clarkburg","Marin Clarkburg","Dan McGough","Dan McGough",null,null,null,null,"For inventory only"]
[390,"DPB","BI","DPB DOCS","Not Scored","Dan McGough","Dan McGough","Dan McGough","Dan McGough",null,null,0,"IT staff use only"]
[391,"DPB","BI","DPBHSI","Not Scored","Dan McGough","Dan McGough","Dan McGough","Dan McGough",null,null,0,"IT staff use only"]
[392,"DPB","BI","CUDS TRACKER","Not Scored","Dan McGough","Dan McGough","Dan McGough","Dan McGough",null,null,0,"Not in use"]
[393,"DPB","BI","SA - ISA Proxy",null,null,null,null,0,null,null,null,null,"Group as server admin SA"]
[394,"DPB","BI","SA - LanREV",null,null,null,null,null,null,null,0,null,"Group as server admin SA"]
[395,"DPB","BI","SA- PRTG Network Monitor",null,null,null,null,null,null,null,0,null,"Group as server admin SA"]
[396,"DPB","BI","SA Group Summary","Not Scored","Dan McGough","Dan McGough","Dan McGough","Dan McGough",null,null,0,"IT staff use only"]
[397,"DPB","BI","SU - IIS6 Web Server",null,null,null,null,null,null,null,0,null,"Group as server user SU"]
[398,"DPB","BI","SU - FileMaker Server",null,null,null,null,null,null,null,0,null,"Group as server user SU"]
[399,"DPB","BI","SU - Tableau Server",null,null,null,null,null,null,null,0,null,"Group as server user SU"]
[400,"DPB","BI","SU - Identity Finder Server",null,null,null,null,null,null,null,0,null,"Group as server user SU"]
[401,"DPB","BI","SU - Globalscape SFTP Server",null,null,null,null,null,null,null,0,null,"Group as server user SU"]
[402,"AFA","Undergraduate Admissions","Out and About","Not Scored","Undergraduate Admissions","Jason Locke","SAS-IT",null,null,null,0,"Other(add comment)","This has been combined with Financial Aid Used by AD and FA/SE staff to indicate where they are (meetings, etc.) throughout the workday."]
[403,"AFA","Undergraduate Admissions","Cornell Connection Database","Not Scored","Undergraduate Admissions","Carla Harding","SAS-IT",null,null,null,0,"Other(add comment)","Captures data on legacy applicants and produces Cornell Connection forms for use in review process. This is really an Alumni database that Carla gives data about applicants with legacy connections to Alumni Affairs, they add data and  send back the whole FM database to Carla to print an electronic form from database to load to ImageNow. "]
[404,"CIT Applications","Custom Dev","Activity","Not Scored","Ann Lang","Ann Lang","Nazrin Tingstrom","citis-activity-support-l@cornell.edu",null,null,0,"Other(add comment)","https://confluence.cornell.edu/display/citapps/Activity,  Scheduled to become a read only app in 2012"]
[405,"CIT Applications","Custom Dev","Activity ColdFusion Reports","Not Scored","Ann Lang","Ann Lang","Nazrin Tingstrom","citis-activity-support-l@cornell.edu",null,null,0,"Other(add comment)","https://confluence.cornell.edu/display/citapps/Activity+ColdFusion+Reports, Unanet to replace in 2012"]
[406,"CIT Applications","Custom Dev","Student Registration Profiles  (retired)","Not Scored","Cassy Demobsky","Cassy Demobsky","Hugh Edwards","customdev-support@cornell.edu",null,null,0,"Not in use","https://confluence.cornell.edu/display/citapps/Student+Registration+Profiles, This is retired per confirmation from OUR."]
[407,"CIT Applications","Custom Dev","Fedora image tools","Not Scored","Custom Apps","Custom Apps","Rich Marisa","only ESR uses this",null,null,0,"IT staff use only","Fedora image tools"]
[408,"CIT Applications","Custom Dev","APPS Print-to-PDF   (RETIRED)","Not Scored","Dennis Butts","Dennis Butts","Mike Oltz","customdev-support@cornell.edu",null,null,0,"Not in use","APPS Print-to-PDF   (RETIRED)"]
[409,"CIT Applications","Custom Dev","uPortal myLinks Channels (confirm retired)","Not Scored","Donna Taber","Donna Taber","Rich Marisa","customdev-support@cornell.edu",null,null,0,"Not in use","https://confluence.cornell.edu/display/citapps/uPortal+myLinks+Channels, replaced by MyCornell"]
[410,"CIT Applications","Custom Dev","OID Look Up","Not Scored","ISES","ISES","Hugh Edwards","customdev-support@cornell.edu",null,null,0,"IT staff use only","OID Look Up"]
[411,"CIT Applications","Custom Dev","Tax and Fix PL SQL Jobs","Not Scored","Karla Sharpsteen Kent Dalpan","Karla Sharpsteen Kent Dalpan","Beth Bement","we don't support just bkup",null,null,0,"Other(add comment)","https://confluence.cornell.edu/display/citapps/Tax+and+Fix+PL+SQL+Jobs, Being replaced by COLTS"]
[412,"CIT Applications","Custom Dev","COLTS (Cornell OnLine Time System)","Not Scored","Payroll","Kim Cassell, Diane Thurm, Karen Biddinger","Nazrin Tingstrom","colts-backline-l@cornell.edu",null,null,0,"Other(add comment)","https://confluence.cornell.edu/display/citapps/COLTS, Being replaced by Kronos"]
[413,"CIT Applications","Custom Dev","Web Financials","Not Scored","Rayna King","Rayna King","Mike Oltz","webfin-support-l@cornell.edu",null,null,0,"Not in use","https://confluence.cornell.edu/display/citapps/Web+Financials, View only after KFS launched"]
[414,"CIT Applications","Custom Dev","KFS Delegation Browser","Not Scored","Robin Yager Jeaninne Masse ","Robin Yager Jeaninne Masse ","Nazrin Tingstrom","customdev-support@cornell.edu",null,null,0,"Other(add comment)","https://confluence.cornell.edu/display/citapps/KFS+Delegation+Browser, \nMinimal Support"]
[415,"CIT Applications","Custom Dev","Policy Acknowledgement (SOX)","Not Scored","Tom Young? Wyman Miles?","Tom Young? Wyman Miles?","Nazrin Tingstrom","cit-policy-ack-support-l@cornell.edu",null,null,0,"Other(add comment)","https://confluence.cornell.edu/display/citapps/Policy+Acknowledgement, Finding replacement"]
[416,"CIT Applications","Custom Dev","WebService Logging","Not Scored",null,null,"Hugh Edwards","customdev-support@cornell.edu",null,null,0,"IT staff use only","WebService Logging"]
[417,"CIT Applications","Custom Dev","BVAT (Bill View Authorization Tool)","Done","NCS - Jolene Horton","NCS - Jolene Horton","Hugh Edwards","customdev-support@cornell.edu",90,20,4.5,null,"BVAT (Bill View Authorization Tool)"]
[{"$f":"ROW(419:419)-1","v":418},null,null,null,null,null,null,null,null,null,null,{"$f":"IFERROR(\nJ419/K419,0)","v":0}]
[419,null,null,null,null,null,null,null,null,null,null,0]
[420,null,null,null,null,null,null,null,null,null,null,0]
[421,null,null,null,null,null,null,null,null,null,null,0]
[422,null,null,null,null,null,null,null,null,null,null,0]
[423,null,null,null,null,null,null,null,null,null,null,0]
[424,null,null,null,null,null,null,null,null,null,null,0]
[425,null,null,null,null,null,null,null,null,null,null,0]
[426,null,null,null,null,null,null,null,null,null,null,0]
[427,null,null,null,null,null,null,null,null,null,null,0]
[428,null,null,null,null,null,null,null,null,null,null,0]
[429,null,null,null,null,null,null,null,null,null,null,0]
[430,null,null,null,null,null,null,null,null,null,null,0]
[431,null,null,null,null,null,null,null,null,null,null,0]
[432,null,null,null,null,null,null,null,null,null,null,0]
[433,null,null,null,null,null,null,null,null,null,null,0]
[434,null,null,null,null,null,null,null,null,null,null,0]
[435,null,null,null,null,null,null,null,null,null,null,0]
[436,null,null,null,null,null,null,null,null,null,null,0]
[437,null,null,null,null,null,null,null,null,null,null,0]
[438,null,null,null,null,null,null,null,null,null,null,0]
[439,null,null,null,null,null,null,null,null,null,null,0]
[440,null,null,null,null,null,null,null,null,null,null,0]
[441,null,null,null,null,null,null,null,null,null,null,0]
[442,null,null,null,null,null,null,null,null,null,null,0]
[443,null,null,null,null,null,null,null,null,null,null,0]
[444,null,null,null,null,null,null,null,null,null,null,0]
[445,null,null,null,null,null,null,null,null,null,null,0]
[446,null,null,null,null,null,null,null,null,null,null,0]
[447,null,null,null,null,null,null,null,null,null,null,0]
[448,null,null,null,null,null,null,null,null,null,null,0]
[449,null,null,null,null,null,null,null,null,null,null,0]
[{"$f":"ROW(451:451)-1","v":450},null,null,null,null,null,null,null,null,null,null,0]
[451,null,null,null,null,null,null,null,null,null,null,0]
[452,null,null,null,null,null,null,null,null,null,null,0]
[453,null,null,null,null,null,null,null,null,null,null,0]
[454,null,null,null,null,null,null,null,null,null,null,0]
[455,null,null,null,null,null,null,null,null,null,null,0]
[456,null,null,null,null,null,null,null,null,null,null,0]
[457,null,null,null,null,null,null,null,null,null,null,0]
[458,null,null,null,null,null,null,null,null,null,null,0]
[459,null,null,null,null,null,null,null,null,null,null,0]
[460,null,null,null,null,null,null,null,null,null,null,0]
[461,null,null,null,null,null,null,null,null,null,null,0]
[462,null,null,null,null,null,null,null,null,null,null,0]
[463,null,null,null,null,null,null,null,null,null,null,0]
[464,null,null,null,null,null,null,null,null,null,null,0]
[465,null,null,null,null,null,null,null,null,null,null,0]
[466,null,null,null,null,null,null,null,null,null,null,0]
[467,null,null,null,null,null,null,null,null,null,null,0]
[468,null,null,null,null,null,null,null,null,null,null,0]
[469,null,null,null,null,null,null,null,null,null,null,0]
[470,null,null,null,null,null,null,null,null,null,null,0]
[471,null,null,null,null,null,null,null,null,null,null,0]
[472,null,null,null,null,null,null,null,null,null,null,0]
[473,null,null,null,null,null,null,null,null,null,null,0]
[474,null,null,null,null,null,null,null,null,null,null,0]
[475,null,null,null,null,null,null,null,null,null,null,0]
[476,null,null,null,null,null,null,null,null,null,null,0]
[477,null,null,null,null,null,null,null,null,null,null,0]
[478,null,null,null,null,null,null,null,null,null,null,0]
[479,null,null,null,null,null,null,null,null,null,null,0]
[480,null,null,null,null,null,null,null,null,null,null,0]
[481,null,null,null,null,null,null,null,null,null,null,0]
[482,null,null,null,null,null,null,null,null,null,null,{"$f":"IFERROR(\nJ483/K483,0)","v":0}]
[483,null,null,null,null,null,null,null,null,null,null,0]
[484,null,null,null,null,null,null,null,null,null,null,0]
[485,null,null,null,null,null,null,null,null,null,null,0]
[486,null,null,null,null,null,null,null,null,null,null,0]
[487,null,null,null,null,null,null,null,null,null,null,0]
[488,null,null,null,null,null,null,null,null,null,null,0]
[489,null,null,null,null,null,null,null,null,null,null,0]
[490,null,null,null,null,null,null,null,null,null,null,0]
[491,null,null,null,null,null,null,null,null,null,null,0]
[492,null,null,null,null,null,null,null,null,null,null,0]
[493,null,null,null,null,null,null,null,null,null,null,0]
[494,null,null,null,null,null,null,null,null,null,null,0]
[495,null,null,null,null,null,null,null,null,null,null,0]
[496,null,null,null,null,null,null,null,null,null,null,0]
[497,null,null,null,null,null,null,null,null,null,null,0]
[498,null,null,null,null,null,null,null,null,null,null,0]
[499,null,null,null,null,null,null,null,null,null,null,0]
[500,null,null,null,null,null,null,null,null,null,null,0]
[501,null,null,null,null,null,null,null,null,null,null,0]
[502,null,null,null,null,null,null,null,null,null,null,0]
[503,null,null,null,null,null,null,null,null,null,null,0]
[504,null,null,null,null,null,null,null,null,null,null,0]
[505,null,null,null,null,null,null,null,null,null,null,0]
[506,null,null,null,null,null,null,null,null,null,null,0]
[507,null,null,null,null,null,null,null,null,null,null,0]
[508,null,null,null,null,null,null,null,null,null,null,0]
[509,null,null,null,null,null,null,null,null,null,null,0]
[510,null,null,null,null,null,null,null,null,null,null,0]
[511,null,null,null,null,null,null,null,null,null,null,0]
[512,null,null,null,null,null,null,null,null,null,null,0]
[513,null,null,null,null,null,null,null,null,null,null,0]
[{"$f":"ROW(515:515)-1","v":514},null,null,null,null,null,null,null,null,null,null,0]
[515,null,null,null,null,null,null,null,null,null,null,0]
[516,null,null,null,null,null,null,null,null,null,null,0]
[517,null,null,null,null,null,null,null,null,null,null,0]
[518,null,null,null,null,null,null,null,null,null,null,0]
[519,null,null,null,null,null,null,null,null,null,null,0]
[520,null,null,null,null,null,null,null,null,null,null,0]
[521,null,null,null,null,null,null,null,null,null,null,0]
[522,null,null,null,null,null,null,null,null,null,null,0]
[523,null,null,null,null,null,null,null,null,null,null,0]
[524,null,null,null,null,null,null,null,null,null,null,0]
[525,null,null,null,null,null,null,null,null,null,null,0]
[526,null,null,null,null,null,null,null,null,null,null,0]
[527,null,null,null,null,null,null,null,null,null,null,0]
[528,null,null,null,null,null,null,null,null,null,null,0]
[529,null,null,null,null,null,null,null,null,null,null,0]
[530,null,null,null,null,null,null,null,null,null,null,0]
[531,null,null,null,null,null,null,null,null,null,null,0]
[532,null,null,null,null,null,null,null,null,null,null,0]
[533,null,null,null,null,null,null,null,null,null,null,0]
[534,null,null,null,null,null,null,null,null,null,null,0]
[535,null,null,null,null,null,null,null,null,null,null,0]
[536,null,null,null,null,null,null,null,null,null,null,0]
[537,null,null,null,null,null,null,null,null,null,null,0]
[538,null,null,null,null,null,null,null,null,null,null,0]
[539,null,null,null,null,null,null,null,null,null,null,0]
[540,null,null,null,null,null,null,null,null,null,null,0]
[541,null,null,null,null,null,null,null,null,null,null,0]
[542,null,null,null,null,null,null,null,null,null,null,0]
[543,null,null,null,null,null,null,null,null,null,null,0]
[544,null,null,null,null,null,null,null,null,null,null,0]
[545,null,null,null,null,null,null,null,null,null,null,0]
[546,null,null,null,null,null,null,null,null,null,null,{"$f":"IFERROR(\nJ547/K547,0)","v":0}]
[547,null,null,null,null,null,null,null,null,null,null,0]
[548,null,null,null,null,null,null,null,null,null,null,0]
[549,null,null,null,null,null,null,null,null,null,null,0]
[550,null,null,null,null,null,null,null,null,null,null,0]
[551,null,null,null,null,null,null,null,null,null,null,0]
[552,null,null,null,null,null,null,null,null,null,null,0]
[553,null,null,null,null,null,null,null,null,null,null,0]
[554,null,null,null,null,null,null,null,null,null,null,0]
[555,null,null,null,null,null,null,null,null,null,null,0]
[556,null,null,null,null,null,null,null,null,null,null,0]
[557,null,null,null,null,null,null,null,null,null,null,0]
[558,null,null,null,null,null,null,null,null,null,null,0]
[559,null,null,null,null,null,null,null,null,null,null,0]
[560,null,null,null,null,null,null,null,null,null,null,0]
[561,null,null,null,null,null,null,null,null,null,null,0]
[562]
[563]
[564]
[565]
[566]
[567]
[568]
[569]
[570]
[571]
[572]
[573]
[574]
[575]
[576]
[577]
[{"$f":"ROW(579:579)-1","v":578}]
[579]
[580]
[581]
[582]
[583]
[584]
[585]
[586]
[587]
[588]
[589]
[590]
[591]
[592]
[593]
[594]
[595]
[596]
[597]
[598]
[599]
[600]
[601]
[602]
[603]
[604]
[605]
[606]
[607]
[608]
[609]
[610]
[611]
[612]
[613]
[614]
[615]
[616]
[617]
[618]
[619]
[620]
[621]
[622]
[623]
[624]
[625]
[626]
[627]
[628]
[629]
[630]
[631]
[632]
[633]
[634]
[635]
[636]
[637]
[638]
[639]
[640]
[641]
[{"$f":"ROW(643:643)-1","v":642}]
[643]
[644]
[645]
[646]
[647]
[648]
[649]
[650]
[651]
[652]
[653]
[654]
[655]
[656]
[657]
[658]
[659]
[660]
[661]
[662]
[663]
[664]
[665]
[666]
[667]
[668]
[669]
[670]
[671]
[672]
[673]
[674]
[675]
[676]
[677]
[678]
[679]
[680]
[681]
[682]
[683]
[684]
[685]
[686]
[687]
[688]
[689]
[690]
[691]
[692]
[693]
[694]
[695]
[696]
[697]
[698]
[699]
[700]
[701]
[702]
[703]
[704]
[705]
[{"$f":"ROW(707:707)-1","v":706}]
[707]
[708]
[709]
[710]
[711]
[712]
[713]
[714]
[715]
[716]
[717]
[718]
[719]
[720]
[721]
[722]
[723]
[724]
[725]
[726]
[727]
[728]
[729]
[730]
[731]
[732]
[733]
[734]
[735]
[736]
[737]
[738]
[739]
[740]
[741]
[742]
[743]
[744]
[745]
[746]
[747]
[748]
[749]
[750]
[751]
[752]
[753]
[754]
[755]
[756]
[757]
[758]
[759]
[760]
[761]
[762]
[763]
[764]
[765]
[766]
[767]
[768]
[769]
[{"$f":"ROW(771:771)-1","v":770}]
[771]
[772]
[773]
[774]
[775]
[776]
[777]
[778]
[779]
[780]
[781]
[782]
[783]
[784]
[785]
[786]
[787]
[788]
[789]
[790]
[791]
[792]
[793]
[794]
[795]
[796]
[797]
[798]
[799]
[800]
[801]
[802]
[803]
[804]
[805]
[806]
[807]
[808]
[809]
[810]
[811]
[812]
[813]
[814]
[815]
[816]
[817]
[818]
[819]
[820]
[821]
[822]
[823]
[824]
[825]
[826]
[827]
[828]
[829]
[830]
[831]
[832]
[833]
[{"$f":"ROW(835:835)-1","v":834}]
[835]
[836]
[837]
[838]
[839]
[840]
[841]
[842]
[843]
[844]
[845]
[846]
[847]
[848]
[849]
[850]
[851]
[852]
[853]
[854]
[855]
[856]
[857]
[858]
[859]
[860]
[861]
[862]
[863]
[864]
[865]
[866]
[867]
[868]
[869]
[870]
[871]
[872]
[873]
[874]
[875]
[876]
[877]
[878]
[879]
[880]
[881]
[882]
[883]
[884]
[885]
[886]
[887]
[888]
[889]
[890]
[891]
[892]
[893]
[894]
[895]
[896]
[897]
[{"$f":"ROW(899:899)-1","v":898}]
[899]
[900]
[901]
[902]
[903]
[904]
[905]
[906]
[907]
[908]
[909]
[910]
[911]
[912]
[913]
[914]
[915]
[916]
[917]
[918]
[919]
[920]
[921]
[922]
[923]
[924]
[925]
[926]
[927]
[928]
[929]
[930]
[931]
[932]
[933]
[934]
[935]
[936]
[937]
[938]
[939]
[940]
[941]
[942]
[943]
[944]
[945]
[946]
[947]
[948]
[949]
[950]
[951]
[952]
[953]
[954]
[955]
[956]
[957]
[958]
[959]
[960]
[961]
[{"$f":"ROW(963:963)-1","v":962}]
[963]
[964]
[965]
[966]
[967]
[968]
[969]
[970]
[971]
[972]
[973]
[974]
[975]
[976]
[977]
[978]
[979]
[980]
[981]
[982]
[983]
[984]
[985]
[986]
[987]
[988]
[989]
[990]
[991]
[992]
[993]
[994]
[995]
[996]
[997]
[998]
[999]
[1000]
[1001]
[1002]
[1003]
[1004]
[1005]
[1006]
[1007]
[1008]
[1009]
[1010]
[1011]
[1012]
[1013]
[1014]
[1015]
[1016]
[1017]
[1018]
[1019]
[1020]
[1021]
[1022]
[1023]
[1024]
[1025]
[{"$f":"ROW(1027:1027)-1","v":1026}]
[1027]
[1028]
[1029]
[1030]
[1031]
[1032]
[1033]
[1034]
[1035]
[1036]
[1037]
[1038]
[1039]
[1040]
[1041]
[1042]
[1043]
[1044]
[1045]
[1046]
[1047]
[1048]
[1049]
[1050]
[1051]
[1052]
[1053]
[1054]
[1055]
[1056]
[1057]
[1058]
[1059]
[1060]
[1061]
[1062]
[1063]
[1064]
[1065]
[1066]
[1067]
[1068]
[1069]
[1070]
[1071]
[1072]
[1073]
[1074]
[1075]
[1076]
[1077]
[1078]
[1079]
[1080]
[1081]
[1082]
[1083]
[1084]
[1085]
[1086]
[1087]
[1088]
[1089]
[{"$f":"ROW(1091:1091)-1","v":1090}]
[1091]
[1092]
[1093]
[1094]
[1095]
[1096]
[1097]
[1098]
[1099]
[1100]
[1101]
[1102]
[1103]
[1104]
[1105]
[1106]
[1107]
[1108]
[1109]
[1110]
[1111]
[1112]
[1113]
[1114]
[1115]
[1116]
[1117]
[1118]
[1119]
[1120]
[1121]
[1122]
[1123]
[1124]
[1125]
[1126]
[1127]
[1128]
[1129]
[1130]
[1131]
[1132]
[1133]
[1134]
[1135]
[1136]
[1137]
[1138]
[1139]
[1140]
[1141]
[1142]
[1143]
[1144]
[1145]
[1146]
[1147]
[1148]
[1149]
[1150]
[1151]
[1152]
[1153]
[{"$f":"ROW(1155:1155)-1","v":1154}]
[1155]
[1156]
[1157]
[1158]
[1159]
[1160]
[1161]
[1162]
[1163]
[1164]
[1165]
[1166]
[1167]
[1168]
[1169]
[1170]
[1171]
[1172]
[1173]
[1174]
[1175]
[1176]
[1177]
[1178]
[1179]
[1180]
[1181]
[1182]
[1183]
[1184]
[1185]
[1186]
[1187]
[1188]
[1189]
[1190]
[1191]
[1192]
[1193]
[1194]
[1195]
[1196]
[1197]
[1198]
[1199]
[1200]
[1201]
[1202]
[1203]
[1204]
[1205]
[1206]
[1207]
[1208]
[1209]
[1210]
[1211]
[1212]
[1213]
[1214]
[1215]
[1216]
[1217]
[{"$f":"ROW(1219:1219)-1","v":1218}]
[1219]
[1220]
[1221]
[1222]
[1223]
[1224]
[1225]
[1226]
[1227]
[1228]
[1229]
[1230]
[1231]
[1232]
[1233]
[1234]
[1235]
[1236]
[1237]
[1238]
[1239]
[1240]
[1241]
[1242]
[1243]
[1244]
[1245]
[1246]
[1247]
[1248]
[1249]
[1250]
[1251]
[1252]
[1253]
[1254]
[1255]
[1256]
[1257]
[1258]
[1259]
[1260]
[1261]
[1262]
[1263]
[1264]
[1265]
[1266]
[1267]
[1268]
[1269]
[1270]
[1271]
[1272]
[1273]
[1274]
[1275]
[1276]
[1277]
[1278]
[1279]
[1280]
[1281]
[{"$f":"ROW(1283:1283)-1","v":1282}]
[1283]
[1284]
[1285]
[1286]
[1287]
[1288]
[1289]
[1290]
[1291]
[1292]
[1293]
[1294]
[1295]
[1296]
[1297]
[1298]
[1299]
[1300]
[1301]
[1302]
[1303]
[1304]
[1305]
[1306]
[1307]
[1308]
[1309]
[1310]
[1311]
[1312]
[1313]
[1314]
[1315]
[1316]
[1317]
[1318]
[1319]
[1320]
[1321]
[1322]
[1323]
[1324]
[1325]
[1326]
[1327]
[1328]
[1329]
[1330]
[1331]
[1332]
[1333]
[1334]
[1335]
[1336]
[1337]
[1338]
[1339]
[1340]
[1341]
[1342]
[1343]
[1344]
[1345]
[{"$f":"ROW(1347:1347)-1","v":1346}]
[1347]
[1348]
[1349]
[1350]
[1351]
[1352]
[1353]
[1354]
[1355]
[1356]
[1357]
[1358]
[1359]
[1360]
[1361]
[1362]
[1363]
[1364]
[1365]
[1366]
[1367]
[1368]
[1369]
[1370]
[1371]
[1372]
[1373]
[1374]
[1375]
[1376]
[1377]
[1378]
[1379]
[1380]
[1381]
[1382]
[1383]
[1384]
[1385]
[1386]
[1387]
[1388]
[1389]
[1390]
[1391]
[1392]
[1393]
[1394]
[1395]
[1396]
[1397]
[1398]
[1399]
[1400]
[1401]
[1402]
[1403]
[1404]
[1405]
[1406]
[1407]
[1408]
[1409]
[{"$f":"ROW(1411:1411)-1","v":1410}]
[1411]
[1412]
[1413]
[1414]
[1415]
[1416]
[1417]
[1418]
[1419]
[1420]
[1421]
[1422]
[1423]
[1424]
[1425]
[1426]
[1427]
[1428]
[1429]
[1430]
[1431]
[1432]
[1433]
[1434]
[1435]
[1436]
[1437]
[1438]
[1439]
[1440]
[1441]
[1442]
[1443]
[1444]
[1445]
[1446]
[1447]
[1448]
[1449]
[1450]
[1451]
[1452]
[1453]
[1454]
[1455]
[1456]
[1457]
[1458]
[1459]
[1460]
[1461]
[1462]
[1463]
[1464]
[1465]
[1466]
[1467]
[1468]
[1469]
[1470]
[1471]
[1472]
[1473]
[{"$f":"ROW(1475:1475)-1","v":1474}]
[1475]
[1476]
[1477]
[1478]
[1479]
[1480]
[1481]
[1482]
[1483]
[1484]
[1485]
[1486]
[1487]
[1488]
[1489]
[1490]
[1491]
[1492]
[1493]
[1494]
[1495]
[1496]
[1497]
[1498]
[1499]
[1500]
[1501]
[1502]
[1503]
[1504]
[1505]
[1506]
[1507]
[1508]
[1509]
[1510]
[1511]
[1512]
[1513]
[1514]
[1515]
[1516]
[1517]
[1518]
[1519]
[1520]
[1521]
[1522]
[1523]
[1524]
[1525]
[1526]
[1527]
[1528]
[1529]
[1530]
[1531]
[1532]
[1533]
[1534]
[1535]
[1536]
[1537]
[{"$f":"ROW(1539:1539)-1","v":1538}]
[1539]
[1540]
[1541]
[1542]
[1543]
[1544]
[1545]
[1546]
[1547]
[1548]
[1549]
[1550]
[1551]
[1552]
[1553]
[1554]
[1555]
[1556]
[1557]
[1558]
[1559]
[1560]
[1561]
[1562]
[1563]
[1564]
[1565]
[1566]
[1567]
[1568]
[1569]
[1570]
[1571]
[1572]
[1573]
[1574]
[1575]
[1576]
[1577]
[1578]
[1579]
[1580]
[1581]
[1582]
[1583]
[1584]
[1585]
[1586]
[1587]
[1588]
[1589]
[1590]
[1591]
[1592]
[1593]
[1594]
[1595]
[1596]
[1597]
[1598]
[1599]
[1600]
[1601]
[{"$f":"ROW(1603:1603)-1","v":1602}]
[1603]
[1604]
[1605]
[1606]
[1607]
[1608]
[1609]
[1610]
[1611]
[1612]
[1613]
[1614]
[1615]
[1616]
[1617]
[1618]
[1619]
[1620]
[1621]
[1622]
[1623]
[1624]
[1625]
[1626]
[1627]
[1628]
[1629]
[1630]
[1631]
[1632]
[1633]
[1634]
[1635]
[1636]
[1637]
[1638]
[1639]
[1640]
[1641]
[1642]
[1643]
[1644]
[1645]
[1646]
[1647]
[1648]
[1649]
[1650]
[1651]
[1652]
[1653]
[1654]
[1655]
[1656]
[1657]
[1658]
[1659]
[1660]
[1661]
[1662]
[1663]
[1664]
[1665]
[{"$f":"ROW(1667:1667)-1","v":1666}]
[1667]
[1668]
[1669]
[1670]
[1671]
[1672]
[1673]
[1674]
[1675]
[1676]
[1677]
[1678]
[1679]
[1680]
[1681]
[1682]
[1683]
[1684]
[1685]
[1686]
[1687]
[1688]
[1689]
[1690]
[1691]
[1692]
[1693]
[1694]
[1695]
[1696]
[1697]
[1698]
[1699]
[1700]
[1701]
[1702]
[1703]
[1704]
[1705]
[1706]
[1707]
[1708]
[1709]
[1710]
[1711]
[1712]
[1713]
[1714]
[1715]
[1716]
[1717]
[1718]
[1719]
[1720]
[1721]
[1722]
[1723]
[1724]
[1725]
[1726]
[1727]
[1728]
[1729]
[{"$f":"ROW(1731:1731)-1","v":1730}]
[1731]
[1732]
[1733]
[1734]
[1735]
[1736]
[1737]
[1738]
[1739]
[1740]
[1741]
[1742]
[1743]
[1744]
[1745]
[1746]
[1747]
[1748]
[1749]
[1750]
[1751]
[1752]
[1753]
[1754]
[1755]
[1756]
[1757]
[1758]
[1759]
[1760]
[1761]
[1762]
[1763]
[1764]
[1765]
[1766]
[1767]
[1768]
[1769]
[1770]
[1771]
[1772]
[1773]
[1774]
[1775]
[1776]
[1777]
[1778]
[1779]
[1780]
[1781]
[1782]
[1783]
[1784]
[1785]
[1786]
[1787]
[1788]
[1789]
[1790]
[1791]
[1792]
[1793]
[{"$f":"ROW(1795:1795)-1","v":1794}]
[1795]
[1796]
[1797]
[1798]
[1799]
[1800]
[1801]
[1802]
[1803]
[1804]
[1805]
[1806]
[1807]
[1808]
[1809]
[1810]
[1811]
[1812]
[1813]
[1814]
[1815]
[1816]
[1817]
[1818]
[1819]
[1820]
[1821]
[1822]
[1823]
[1824]
[1825]
[1826]
[1827]
[1828]
[1829]
[1830]
[1831]
[1832]
[1833]
[1834]
[1835]
[1836]
[1837]
[1838]
[1839]
[1840]
[1841]
[1842]
[1843]
[1844]
[1845]
[1846]
[1847]
[1848]
[1849]
[1850]
[1851]
[1852]
[1853]
[1854]
[1855]
[1856]
[1857]
[{"$f":"ROW(1859:1859)-1","v":1858}]
[1859]
[1860]
[1861]
[1862]
[1863]
[1864]
[1865]
[1866]
[1867]
[1868]
[1869]
[1870]
[1871]
[1872]
[1873]
[1874]
[1875]
[1876]
[1877]
[1878]
[1879]
[1880]
[1881]
[1882]
[1883]
[1884]
[1885]
[1886]
[1887]
[1888]
[1889]
[1890]
[1891]
[1892]
[1893]
[1894]
[1895]
[1896]
[1897]
[1898]
[1899]
[1900]
[1901]
[1902]
[1903]
[1904]
[1905]
[1906]
[1907]
[1908]
[1909]
[1910]
[1911]
[1912]
[1913]
[1914]
[1915]
[1916]
[1917]
[1918]
[1919]
[1920]
[1921]
[{"$f":"ROW(1923:1923)-1","v":1922}]
[1923]
[1924]
[1925]
[1926]
[1927]
[1928]
[1929]
[1930]
[1931]
[1932]
[1933]
[1934]
[1935]
[1936]
[1937]
[1938]
[1939]
[1940]
[1941]
[1942]
[1943]
[1944]
[1945]
[1946]
[1947]
[1948]
[1949]
[1950]
[1951]
[1952]
[1953]
[1954]
[1955]
[1956]
[1957]
[1958]
[1959]
[1960]
[1961]
[1962]
[1963]
[1964]
[1965]
[1966]
[1967]
[1968]
[1969]
[1970]
[1971]
[1972]
[1973]
[1974]
[1975]
[1976]
[1977]
[1978]
[1979]
[1980]
[1981]
[1982]
[1983]
[1984]
[1985]
[{"$f":"ROW(1987:1987)-1","v":1986}]
[1987]
[1988]
[1989]
[1990]
[1991]
[1992]
[1993]
[1994]
[1995]
[1996]
[1997]
[1998]
[1999]

{"sheet":"Summary-Sheet","index":1,"n_rows":336,"n_cols":10,"rows_kept":336,"cut":false,"hidden":false,"merged":[]}
["Application Worksheet","Application Name","BV Score","Cost Score","Hardware Cost","Software Cost","O&M Cost","Staff Cost","Total Cost","BV/Cost Ratio"]
["Library_CUL-IT_35","Engineering Library Website",82,15,50,0,0,5000,5050,5.4666666666666668]
["Library_CUL-IT_14","GFA LAS system (Annex)",81,15,700,0,462,5000,6162,5.4]
["Library_DSPS_28","Conservation Database",77,15,0,0,0,0,0,5.1333333333333337]
["Library_HR_29","HR Shadow DB",73,15,0,0,0,0,0,4.8666666666666663]
["Library_CUL-IT_42","eNERF",68,15,0,0,0,750,750,4.5333333333333332]
["Library_CUL-IT_17","Lstools",63,15,1620,0,0,10000,11620,4.2]
["Library_CUL-IT_39","Math Library Website",58,15,50,0,0,10000,10050,3.8666666666666667]
["Library_CUL-IT_25","Olin/Uris Library Website",57,15,50,0,0,2000,2050,3.8]
["Library_ILL_30","Illiad",91,25,0,18920,0,500,19420,3.64]
["Library_RAO_32","LibPAS",88,25,0,8000,0,0,8000,3.52]
["Library_CUL-IT_16","Logs analysis",46,15,1764,0,0,10000,11764,3.0666666666666669]
["Library_CUL-IT_41","Physcial Sciences Library Website",73,25,50,0,0,40000,40050,2.92]
["Library_CUL-IT_34","Africana Library Website",43,15,0,0,0,2000,2000,2.8666666666666667]
["Library_CUL-IT_36","Fine Arts Library Website",43,15,50,0,0,10000,10050,2.8666666666666667]
["Library_CUL-IT_37","Kroch Asia Library Website",43,15,50,0,0,10000,10050,2.8666666666666667]
["Library_CUL-IT_38","Management Library Website",43,15,50,0,0,2000,2050,2.8666666666666667]
["Library_CUL-IT_40","Music Library Website",43,15,50,0,0,2000,2050,2.8666666666666667]
["Library_CUL-IT_15","III ERMS",53,20,700,12000,690,5000,18390,2.65]
["Library_CUL-IT_5","CUL Web site",75,35,1764,0,0,100000,101764,2.1428571428571428]
["Library_CUL-IT_6","CULAR",93,45,48000,0,0,18900,66900,2.0666666666666669]
["Library_CUL-IT_21","Pre-Online Order Form",67,35,75,0,0,50000,50075,1.9142857142857144]
["Library_Accounting_2","Endowment reporting (Access)",38,20,0,0,0,0,0,1.9]
["Library_Accounting_3","Travel Database (Access)",33,20,0,0,0,0,0,1.65]
["Library_CUL-IT_24","Summon",57,40,0,63529,0,0,63529,1.425]
["Library_CUL-IT_27","Voyager",83,70,5000,200000,8400,100000,313400,1.1857142857142857]
["Social Sciences_CISER_1","Statistical Software for Researchers",85,60,0,62100,2500,15000,79600,1.4166666666666667]
["Social Sciences_CISER_2","Utility Software for Researchers",85,45,0,12000,1500,5000,18500,1.8888888888888888]
["Social Sciences_CISER_24","Management System",92,30,0,0,0,0,0,3.0666666666666669]
["Social Sciences_CISER_26","Workshop Applications",63,20,0,0,0,0,0,3.15]
["Social Sciences_SRI_12","Statistical Analysis Software",68,20,500,3400,500,1000,5400,3.4]
["Social Sciences_CISER_25","Reporting System",71,20,0,0,0,0,0,3.55]
["Social Sciences_CISER_23","CNSS",80,20,0,0,0,0,0,4]
["Social Sciences_CISER_27","Archive",87,20,1000,200,200,10000,11400,4.3499999999999996]
["Social Sciences_CISER_3","Audit Wizard",91,20,100,500,500,5000,6100,4.55]
["Graduate School_Grad School_5","General Committee Vote",82,15,0,0,0,0,0,5.4666666666666668]
["Graduate School_Grad School_8","CollegeNet",100,20,0,0,0,1500,1500,5]
["Graduate School_Grad School_1","Online Catalog",100,20,325,0,0,2000,2325,5]
["Graduate School_Grad School_4","Faculty Manager",90,20,325,0,0,2000,2325,4.5]
["Graduate School_Grad School_6","Online Rolodex",87,20,325,0,0,520,845,4.3499999999999996]
["Graduate School_Grad School_10","HESK",77,20,325,0,0,520,845,3.85]
["Graduate School_Grad School_2","gradschool.cornell.edu/intranet/postdoc",77,20,975,500,0,2080,3555,3.85]
["DPB_Budget_11","G2 Summary",80,20,0,1000,1000,3000,5000,4]
["DPB_Capital Planning_1","CF&PC",75,20,1500,700,500,2000,4700,3.75]
["DPB_BI_33","SU Group Summary",78,55,10000,6000,20000,0,36000,1.4181818181818182]
["AFA_Undergraduate Admissions_10","CAAAN-DO ",82,15,208,0,0,13000,13208,5.4666666666666668]
["AFA_Undergraduate Admissions_22","Commitment Database",81,15,224,0,0,0,224,5.4]
["AFA_Undergraduate Admissions_17","Prospect Scrubbing Database",72,15,224,0,0,0,224,4.8]
["AFA_Fin Aid and Stdt Employ_3","Outside Scholarship Database",72,15,224,0,0,0,224,4.8]
["AFA_Undergraduate Admissions_12","Regional Recruitment System ",54,15,208,0,0,2000,2208,3.6]
["AFA_Undergraduate Admissions_15","Recruitment Event Database",53,15,224,0,0,0,224,3.5333333333333332]
["AFA_Undergraduate Admissions_14","Common App ",85,25,0,0,0,30000,30000,3.4]
["AFA_UG Adm and FA_5","Out'n About",48,15,0,0,0,0,0,3.2]
["AFA_Undergraduate Admissions_21","Beyond Compare",62,20,0,0,0,0,0,3.1]
["AFA_Fin Aid and Stdt Employ_8","Financial Aid Calculator",70,25,0,13600,0,0,13600,2.8]
["AFA_Fin Aid and Stdt Employ_1","MURF",78,30,0,37500,0,0,37500,2.6]
["AFA_UG Adm and FA_9","admissions.cornell.edu\nfinaid.cornell.edu\nstudentemployment.cornell.edu\nadmit.cornell.edu",77,35,3075,87929,0,0,91004,2.2000000000000002]
["AFA_UG Adm and FA_20","ImageNow",95,45,0,64567,0,56000,120567,2.1111111111111112]
["AFA_UG Adm and FA_7","Hobsons EMT Connect",47,30,0,8450,0,30000,38450,1.5666666666666667]
["AFA_Undergraduate Admissions_13","EMT/iCLass/Decision Notification/Apply Yourself",47,35,0,32000,0,2000,34000,1.3428571428571427]
["CIT Applications_Custom Dev_37","doCUments (AA&D Document Management )",100,20,1884,0,0,18278.400000000001,20162.400000000001,5]
["CIT Applications_Custom Dev_52","Office of Fire Prevention and Control",100,20,1884,0,0,1764,3648,5]
["CIT Applications_Custom Dev_40","Position Description",97,20,1884,0,0,7938,9822,4.8499999999999996]
["CIT Applications_Custom Dev_23","Actuate Retirement PDF Server",97,20,1884,0,0,3360,5244,4.8499999999999996]
["CIT Applications_Custom Dev_48","Special Conditions  (mailblaster)",94,20,1884,0,0,4830,6714,4.7]
["CIT Applications_Custom Dev_49","Emergency Mass Notification",94,20,1884,0,0,2688,4572,4.7]
["CIT Applications_Custom Dev_36","CR_ACK (Contributor Relations -- Acknowledgements)",93,20,1884,0,0,11004,12888,4.6500000000000004]
["CIT Applications_Custom Dev_56","Coeus IRB",93,20,1884,0,0,588,2472,4.6500000000000004]
["CIT Applications_Custom Dev_63","HASP (Hazard Assessment Signage Program)",93,20,1884,0,0,3696,5580,4.6500000000000004]
["CIT Applications_Custom Dev_55","BVAT (Bill View Authorization Tool)",90,20,0,0,0,588,588,4.5]
["CIT Applications_Custom Dev_59","OUR (Office of University Registrar) Historic Imaged Transcripts",87,20,1884,0,0,2100,3984,4.3499999999999996]
["CIT Applications_Custom Dev_60","Graduation Manager",85,20,1884,0,0,22709.4,24593.4,4.25]
["CIT Applications_Custom Dev_58","Key Management",83,20,1884,0,0,3906,5790,4.1500000000000004]
["CIT Applications_Custom Dev_46","CCAB RFC Form",82,20,1884,0,0,24544.799999999999,26428.799999999999,4.0999999999999996]
["CIT Applications_Custom Dev_43","Graduate Special Committee Request (GSC)",81,20,1884,0,0,20134.8,22018.799999999999,4.05]
["CIT Applications_Custom Dev_54","CATS (Asset Transfer System)",81,20,1884,0,0,2268,4152,4.05]
["CIT Applications_Custom Dev_41","SUNY TRAN Stored Procedures  (part of Fac Inv)",100,25,1884,0,0,30198,32082,4]
["CIT Applications_Custom Dev_47","COEA (Alternate Email)",77,20,1884,0,0,1764,3648,3.85]
["CIT Applications_Custom Dev_44","DW Security Backend",76,20,1884,0,0,2604,4488,3.8]
["CIT Applications_Custom Dev_38","JRP (Joint Records Processing)",75,20,1884,0,0,14490,16374,3.75]
["CIT Applications_Custom Dev_62","SJP (Student Job Postings)",70,20,1884,0,0,2964,4848,3.5]
["CIT Applications_Custom Dev_34","United Way",84,25,1884,0,0,29064,30948,3.36]
["CIT Applications_Custom Dev_45","DW Security Password Change",67,20,1884,0,0,504,2388,3.35]
["CIT Applications_Custom Dev_51","AdmissionsSS (Admissions Self-Service)",67,20,1884,0,0,6463.8,8347.7999999999993,3.35]
["CIT Applications_Custom Dev_57","COI (Conflict of Interest)",100,30,1884,0,0,50719.199999999997,52603.199999999997,3.3333333333333335]
["CIT Applications_Custom Dev_33","Electronic Student Records (ESR)",83,25,1884,0,0,35254.800000000003,37138.800000000003,3.32]
["CIT Applications_Custom Dev_61","Online Service Agreements",56,20,1884,0,0,11932,13816,2.8]
["CIT Applications_Custom Dev_42","Facilities Inventory",100,40,1884,0,0,153379.79999999999,155263.79999999999,2.5]
["CIT Applications_Custom Dev_35","EZRA and the Sponsored Portal",97,40,1884,0,0,149704.79999999999,151588.79999999999,2.4249999999999998]
["CIT Applications_Custom Dev_50","LaunchPad 2010",47,20,1884,0,0,10752,12636,2.35]
["CIT Applications_Custom Dev_39","Performance Dialogue",38,20,1884,0,0,7980,9864,1.9]
["CIT Applications_Custom Dev_53","NUBB (Network Usage Based Billing)",77,45,0,0,0,161250.6,161250.6,1.711111111111111]
["CIT Applications_Comm Apps_12","PeopleSoft Student Employment",75,50,22000,4700,0,96000,122700,1.5]
["CIT Applications_Comm Apps_4","PeopleSoft Student Records/Student Faculty Self-Service and Campus Community",97,65,22000,22943,0,142000,186943,1.4923076923076923]
["CIT Applications_Comm Apps_14","PeopleSoft Enterprise Learning Mgmt",80,55,22000,4720,0,197000,223720,1.4545454545454546]
["CIT Applications_Comm Apps_11","PeopleSoft Financial Aid",93,65,22000,27600,0,115000,164600,1.4307692307692308]
["CIT Applications_Comm Apps_16","PeopleSoft Student Finance",93,65,22000,27663,0,99500,149163,1.4307692307692308]
["CIT Applications_Comm Apps_7","PeopleSoft Contributor Relations",83,60,22000,21000,0,118000,161000,1.3833333333333333]
["CIT Applications_Comm Apps_10","PeopleSoft Recruitment/Admissions",85,65,22000,27600,0,123000,172600,1.3076923076923077]
["CIT Applications_Comm Apps_8","PeopleSoft Payroll and Epay",93,75,22000,4720,0,221000,247720,1.24]
["CIT Applications_Comm Apps_13","PeopleSoft Human Resources",93,75,22000,4720,0,193000,219720,1.24]
["CIT Applications_Comm Apps_18","Kronos",90,75,37000,170606,0,116000,323606,1.2]
["ILR_Student Services_10","Student Credit Summaries",69,15,0,0,0,0,0,4.5999999999999996]
["ILR_Conference Center_9","Dean Evans Event Management System (EMS) ",58,15,2000,0,5000,2000,9000,3.8666666666666667]
["ILR_HCD_5","Salesforce",58,20,0,7200,0,5000,12200,2.9]
["ILR_Technology Services_11","CommonSpot",53,20,5000,1000,3000,5000,14000,2.65]
["ILR_Deans Office_2","Activity Insights / Faculty Reporting",66,25,0,3000,0,20000,23000,2.64]
["ILR_CAHRS_6","eSales Tracker",30,15,0,0,0,0,0,2]
["ILR_Extension_4","SDC II (Student Data Center)",80,45,0,8000,5000,5000,18000,1.7777777777777777]
["ILR_Communications_8","Digital Signage Content Management",23,15,0,0,0,0,0,1.5333333333333334]
["ILR_Catherwood Library_7","Contacts and Invoicing System",21,15,0,0,0,0,0,1.4]
["ILR_Deans Office_3","Tableau",25,20,0,0,0,0,0,1.25]
["ILR_Conference Center_1","Access TV",10,15,1000,0,0,0,1000,0.66666666666666663]
["Intermapper","Intermapper",90,20,0,1650,216,0,1866,4.5]
["CCAB Tool","CCAB Tool",82,20,0,0,0,0,0,4.0999999999999996]
["MEGA","MEGA",44,15,0,0,0,0,0,2.9333333333333331]
["Queue Monitor","Queue Monitor",44,15,0,0,0,0,0,2.9333333333333331]
["HP Quick Test Pro","HP Quick Test Pro",56,20,0,0,0,0,0,2.8]
["Confluence","Confluence",67,25,0,0,0,0,0,2.68]
["SMS","SMS",40,15,0,0,0,0,0,2.6666666666666665]
["HDWiki","HDWiki",36,15,0,0,0,0,0,2.4]
["Line Card Pro","Line Card Pro",48,20,0,0,0,0,0,2.4]
["Titrax","Titrax",47,20,0,0,0,0,0,2.35]
["HDInternal","HDInternal",35,15,0,0,0,0,0,2.3333333333333335]
["HP Quality Center","HP Quality Center",46,20,0,0,0,0,0,2.2999999999999998]
["IBM Rationalizer Tester","IBM Rationalizer Tester",56,25,0,0,0,0,0,2.2400000000000002]
["Remedy","Remedy",78,40,0,120720,0,45430,166150,1.95]
["SourceForge","SourceForge",77,40,14508,10000,6490,19470,50468,1.925]
["Blogs","Blogs",38,20,0,6500,0,6490,12990,1.9]
["Pinnacle","Pinnacle",96,60,14500,42500,13500,40000,110500,1.6]
["myCornell","myCornell",58,45,0,0,0,0,0,1.288888888888889]
["DFA_Accounting_CRIS_28","CRIS (Comprehensive Rate Information System)",96,15,0,0,0,0,0,6.4]
["DFA_The Cornell Store_43","Textbook services - textbook by course",92,15,54,0,1000,1000,2054,6.1333333333333337]
["DFA_The Cornell Store_44","Textbook services - textbook by schedule",92,15,54,0,1000,1000,2054,6.1333333333333337]
["DFA_The Cornell Store_60","Alto Image Arranger/UltraWeb/UltraPrint",92,15,1000,5850,660,6000,13510,6.1333333333333337]
["DFA_Accounting_38","Access databases - bank/cash/creditcard receipts reconciliations",86,15,0,0,0,0,0,5.7333333333333334]
["DFA_Reporting_39","Access databases - LTIP share management",81,15,0,0,0,0,0,5.4]
["DFA_Reporting_40","Access databases - financial statement details",81,15,0,0,0,0,0,5.4]
["DFA_UBSC_24","Travel",79,15,0,0,0,0,0,5.2666666666666666]
["DFA_The Cornell Store_49","Software licensing",77,15,54,0,1000,10000,11054,5.1333333333333337]
["DFA_Accounting_25","WindStar",100,20,0,0,0,0,0,5]
["DFA_The Cornell Store_46","Textbook services - course verifications/history",73,15,54,0,1000,1000,2054,4.8666666666666663]
["DFA_The Cornell Store_48","E-commerce eRatex",65,15,1200,30900,1000,25000,58100,4.333333333333333]
["DFA_The Cornell Store_63","Visual Ratex/POS",65,15,3500,102200,3600,100000,209300,4.333333333333333]
["DFA_Treasury_64","Application for University Financing (loan application)",62,15,54,0,1000,1000,2054,4.1333333333333337]
["DFA_The Cornell Store_40","Credit card billing site",82,20,54,0,2000,10000,12054,4.0999999999999996]
["DFA_Accounting_37","Cash Receipts system ",61,15,0,0,0,0,0,4.0666666666666664]
["DFA_Accounting_22","Piracle createacheck",80,20,0,0,0,0,0,4]
["DFA_Accounting_15","JEMS",78,20,0,0,0,0,0,3.9]
["DFA_Payroll_32","CCH",78,20,0,0,0,0,0,3.9]
["DFA_DFA_14","Identity Finder Enterprise",74,20,0,0,0,0,0,3.7]
["DFA_Capital Assets_16","MACAMS",73,20,0,0,0,0,0,3.65]
["DFA_The Cornell Store_42","Textbook services - book droplist",52,15,54,0,1000,1000,2054,3.4666666666666668]
["DFA_SMS_26","Spend Viz",85,25,1250,18500,1000,1000,21750,3.4]
["DFA_Accounting_41","Crimson Editor",65,20,0,0,0,0,0,3.25]
["DFA_The Cornell Store_45","Textbook services - rental shelving utility",48,15,54,0,1000,1000,2054,3.2]
["DFA_The Cornell Store_47","Textbook services - warehouse shelving",48,15,54,0,1000,1000,2054,3.2]
["DFA_The Cornell Store_58","Printshop forms - Thesis order",48,15,54,0,1000,1000,2054,3.2]
["DFA_Accounting Payroll_18","Metastorm ework",63,20,0,0,0,0,0,3.15]
["DFA_Accounts Payable_23","SharePoint",47,15,0,0,0,0,0,3.1333333333333333]
["DFA_The Cornell Store_50","Customer profile/receipts",47,15,54,0,1000,1000,2054,3.1333333333333333]
["DFA_SMS_61","cardprograms.dfa.cornell.edu",44,15,54,0,1000,1000,2054,2.9333333333333331]
["DFA_Accounting_8","Authorization Management 1 (JEMS, Payment Request)",58,20,0,0,0,0,0,2.9]
["DFA_Accounting_20","NAR (new account request)",58,20,0,0,0,0,0,2.9]
["DFA_Accounting SMS_19","Modcomp ineterface with Invoices",58,20,0,0,0,0,0,2.9]
["DFA_Accounts Payable_11","CD Search",43,15,0,0,0,0,0,2.8666666666666667]
["DFA_The Cornell Store_52","Admissions T-shirt site",43,15,54,0,1000,1000,2054,2.8666666666666667]
["DFA_The Cornell Store_53","Custom publishing submission forms",43,15,54,0,1000,1000,2054,2.8666666666666667]
["DFA_The Cornell Store_54","Visitor sign-up form",43,15,54,0,1000,1000,2054,2.8666666666666667]
["DFA_The Cornell Store_55","Gift card balance",43,15,54,0,1000,1000,2054,2.8666666666666667]
["DFA_The Cornell Store_56","Printshop forms - Cornell Chronicle",43,15,54,0,1000,1000,2054,2.8666666666666667]
["DFA_The Cornell Store_57","Printshop forms - Disseration order",43,15,54,0,1000,1000,2054,2.8666666666666667]
["DFA_The Cornell Store_59","Printshop forms - business card order forms",43,15,54,0,1000,1000,2054,2.8666666666666667]
["DFA_The Cornell Store_41","Textbook services - buyback",57,20,50,0,1000,1000,2050,2.85]
["DFA_Cost and Capital Assets_29","CATS (Cornell Asset Transfer System)",81,30,0,0,0,0,0,2.7]
["DFA_SMS_67","Procurex",81,30,0,0,0,0,0,2.7]
["DFA_UBSC_65","Access database - Customer Information",38,15,0,0,0,0,0,2.5333333333333332]
["DFA_Accounting_1","Account Management",48,20,500,0,1000,1000,2500,2.4]
["DFA_Payroll_7","ATX Tax Software",47,20,0,0,0,0,0,2.35]
["DFA_SMS_66","SciQuest",81,35,0,0,0,0,0,2.3142857142857145]
["DFA_Accounting_33","Account search (web tool)",44,20,0,0,0,0,0,2.2000000000000002]
["DFA_Accounting_34","Object code search (web tool)",44,20,0,0,0,0,0,2.2000000000000002]
["DFA_Accounting_9","Authorization Management 2 (Groups, Roles, Users, etc.)",43,20,0,0,0,0,0,2.15]
["DFA_Reporting_13","Hyperion Enterprise 6.11",74,35,0,0,0,0,0,2.1142857142857143]
["DFA_The Cornell Store_62","bugtracker",29,15,54,0,0,0,54,1.9333333333333333]
["DFA_SMS_51","SMS customer profile",38,20,0,0,0,0,0,1.9]
["DFA_SMS _17","Mantis",20,20,0,0,0,0,0,1]
["DFA_Accounts Payable_31","Check Insight",20,20,0,0,0,0,0,1]
["DFA_Accounting_2","Account Stop/Delete request",10,20,0,0,0,0,0,0.5]
["DFA_Accounting_3","AP/ACH (direct deposit)",10,20,0,0,0,0,0,0.5]
["DFA_Accounting_36","Object code search (web tool)",8,20,0,0,0,0,0,0.4]
["UComm_VP_4","Digital Well",80,20,800,1000,500,6500,8800,4]
["UComm_News_5","Drupal",80,20,800,200,500,2500,4000,4]
["UComm_Public Affairs_11","Kaltura/Level3",75,20,0,10400,0,0,10400,3.75]
["UComm_Community Relations_3","Localist",90,25,0,25000,0,13000,38000,3.6]
["UComm_Public Affairs_7","Vocus",85,25,0,22300,0,0,22300,3.4]
["UComm_Marketing_10","Font Agent Pro",51,15,0,0,1,0,1,3.4]
["UComm_Assemblies_14","Ruby on Rails",68,20,180,0,0,500,680,3.4]
["UComm_VP_8","FileMaker",60,20,500,1600,0,0,2100,3]
["UComm_Marketing_2","Widen",70,25,0,19500,500,10000,30000,2.8]
["UComm_VP_9","Adobe Suite",65,25,0,25000,0,0,25000,2.6]
["UComm_Assemblies_12","OTRS",52,20,180,0,0,500,680,2.6]
["UComm_Assemblies_13","PmWiki",50,20,180,0,0,500,680,2.5]
["UComm_Marketing_6","4D",47,20,200,400,0,0,600,2.35]
["UComm_Marketing_1","OpenAir",53,25,0,17500,0,0,17500,2.12]
["UComm_Assemblies_15","Sympa",26,15,180,0,0,500,680,1.7333333333333334]
["SHA_Hotel_12","Adaco Purchasing",80,15,250,4842,0,10000,15092,5.333333333333333]
["SHA_Hotel and School_2","Microsoft SharePoint 2010",73,15,250,0,0,5000,5250,4.8666666666666663]
["SHA_Business Affairs_1","Microsoft Exchange 2007",95,20,3500,0,0,20000,23500,4.75]
["SHA_Human Resources_67","TIPS Database",92,20,77,0,0,5580,5657,4.5999999999999996]
["SHA_School_21","Cvent Event Registation",91,20,0,8000,0,5000,13000,4.55]
["SHA_Communications_25","Blue Sky (bulk email)",91,20,0,12000,0,5000,17000,4.55]
["SHA_Executive Education_3","Microsoft Dynamics CRM 2010 (on premise)",68,15,250,1188,0,5000,6438,4.5333333333333332]
["SHA_Academic Affairs_32","Digital Measures Activity Insight",88,20,0,3000,0,3750,6750,4.4000000000000004]
["SHA_Business Affairs_34","eReq System (purchase authorization & tracking)",87,20,77,0,25,14115,14217,4.3499999999999996]
["SHA_Academic Affairs_53","Online Course Evaluation system",83,20,77,0,0,5215,5292,4.1500000000000004]
["SHA_CHR_27","CHR PDF access control and tracking system",81,20,77,0,0,5135,5212,4.05]
["SHA_School_30","Content and Application Management System (CAMS/Enki)",60,15,77,0,0,9015,9092,4]
["SHA_Hotel_10","IDT Guest Marketing",75,20,0,8100,0,1000,9100,3.75]
["SHA_Communications_68","Online Alumni Class Notes system",75,20,77,0,25,9480,9582,3.75]
["SHA_Student Services_42","FoxPro Company Contacts/Jobs/Practice Credit Database + Online",68,20,3,0,0,4760,4763,3.4]
["SHA_Hotel and School_13","Timelox ",65,20,1200,1200,0,10000,12400,3.25]
["SHA_Alumni Affairs_28","CHS Events system",65,20,77,0,0,325,402,3.25]
["SHA_Hotel_5","Delphi Sales and Catering",80,25,250,0,9900,10000,20150,3.2]
["SHA_Executive Education_35","EXCEED (Executive Education system)",63,20,10,0,0,7163,7173,3.15]
["SHA_Student Services_61","Online Student Pre-enrollment (scheduling) system",61,20,77,0,0,16890,16967,3.05]
["SHA_Hotel_8","Infor/Sunsystems Accounting",60,20,1600,4750,0,10000,16350,3]
["SHA_Academic Affairs_44","FoxPro SSO Database",60,20,5,0,0,12590,12595,3]
["SHA_Alumni Affairs_51","Online CHS Dues Payment system",60,20,77,0,0,8390,8467,3]
["SHA_Binenkorb_24","BlackBoard Roster Uploads",60,20,77,0,0,1125,1202,3]
["SHA_Hotel_6","Micros Opera PMS",88,30,1200,15000,0,25000,41200,2.9333333333333331]
["SHA_Hotel_9","IDeaS RMS",56,20,0,14000,0,2000,16000,2.8]
["SHA_Hotel_14","Call Accounting",53,20,1000,2350,0,4000,7350,2.65]
["SHA_Nestle Library_63","Online Theses database",51,20,77,0,0,50,127,2.5499999999999998]
["SHA_Hotel_7","Micros 9700 POS",76,30,1200,6450,0,25000,32650,2.5333333333333332]
["SHA_Communications_57","Online News Releases",48,20,77,0,0,730,807,2.4]
["SHA_Hotel and School_19","Workoderama",58,25,0,2500,0,2000,4500,2.3199999999999998]
["SHA_Nestle Library_46","Library Restaurant Menus database",41,20,77,0,0,440,517,2.0499999999999998]
["SHA_Nestle Library_71","Hospitality Links",41,20,77,0,0,1445,1522,2.0499999999999998]
["SHA_Alumni Affairs_41","FoxPro CHS Database",40,20,5,0,0,4485,4490,2]
["CIS_OCIS_47","GUMBI - CIS IT group/user account management and billing systems for IT user charges (tied to users, groups, phone, directory, keys, AD/LDAP feeds)",85,15,555,71,216,4000,4842,5.666666666666667]
["Engr_EN-Dean_71","Academic Jobs Online",74,15,0,3000,0,0,3000,4.9333333333333336]
["Engr_EN-Ugrad_4","Course Evaluation",72,15,0,0,72,8000,8072,4.8]
["Engr_EN-Ugrad_8","TA eval",72,15,0,0,72,4000,4072,4.8]
["Engr_EN-Ugrad_23","Student Filemaker libraries (current, historical, frozen, admissions)",70,15,300,148,72,4000,4520,4.666666666666667]
["CIS_COMS_48","CS Website Content Management System",63,15,415,70,96,4000,4581,4.2]
["Engr_EN-Ugrad_1","OAR",80,20,0,0,96,8000,8096,4]
["Engr_EN-Ugrad_6","Fall Freshmen & Orientation",80,20,556,165,96,8000,8817,4]
["Engr_EN-Ugrad_22","Online coop hiring aplication system",57,15,0,185,72,2000,2257,3.8]
["Engr_EN-Dean_3","Activity Insight",55,15,0,4000,0,8000,12000,3.6666666666666665]
["Engr_EN-Ugrad_45","CCGB Motions",73,20,556,166,72,500,1294,3.65]
["Engr_EN-Dean_69","Sales Force for corporate and foundation Relations",72,20,0,1080,0,0,1080,3.6]
["Engr_EN-Ugrad_12","CASPAC (ugrad) - Committee for Academic Standards, Policies and Credits",70,20,245,148,72,6000,6465,3.5]
["Engr_EN-DEAN_7","COE/CIS helpdesk for facilities and IT tickets (Kayako)",52,15,277,544,277,6000,7098,3.4666666666666668]
["Engr_EN-Dean_15","COE SIP tool",68,20,500,500,96,8000,9096,3.4]
["CIS_OCIS_5","CISIS-Financial research admin; comprehensive PI reports(budgets/actuals; detailed  S&W encumber, grad data)",68,20,139,0,277,8000,8416,3.4]
["Engr_EN-Ugrad_66","Online Student Team Funding",68,20,169,18,72,2000,2259,3.4]
["CIS_IS_43","IS Check list for faculty and student advising",48,15,0,0,72,1000,1072,3.2]
["Engr_COMS_70","CS Check list for faculty and student advising",48,15,0,0,72,1000,1072,3.2]
["Engr_EN-Ugrad_21","Undergrad Research Grant applications",62,20,168,18,72,2000,2258,3.1]
["Engr_EN-Dean_30","Employee database\nLists current employees. Used for mailing lists, phone lists, populates email lists, emergency contact lists, etc.",60,20,245,27,72,1000,1344,3]
["Engr_EN-Ugrad_35","F/U/INC Grades Tracking",58,20,142,121,72,1000,1335,2.9]
["Engr_EN-Ugrad_26","Internal Transfers (ugrad)",57,20,142,121,72,2000,2335,2.85]
["CIS_COMS_14","CIS course management software, customized for CS courses (used by ECE, IS, CS)",57,20,415,70,96,4000,4581,2.85]
["Engr_EN-Ugrad_16","Academic Excellence Workshops eval",42,15,0,72,0,4000,4072,2.8]
["Engr_EN-Ugrad_25","ENGR Petitions (ugrad) - Tracks ENGR student academic petitions",56,20,245,148,72,2000,2465,2.8]
["Engr_EN-Ugrad_11","ENGRG 1050 evaluation",41,15,311,18,72,1000,1401,2.7333333333333334]
["CIS_COMS_28","Scripts that support digital sign and internal talks",40,15,0,0,72,1000,1072,2.6666666666666665]
["Engr_EN-Ugrad_33","Advising Notes (grad, ugrad, out of college stus)",53,20,245,148,72,1000,1465,2.65]
["Engr_EN-Ugrad_24","Undergrad Admissions Prospects",53,20,142,121,72,2000,2335,2.65]
["Engr_EN-Dean_18","Contact hours dbase\nCapture contact hour information for TA allocation",52,20,555,45,96,2000,2696,2.6]
["CIS_COMS_31","CS Course lists on their website (1 page)",52,20,276,70,72,1000,1418,2.6]
["CIS_IS_32","IS Course lists on their website (4 pages)",52,20,276,70,72,1000,1418,2.6]
["Engr_EN-Ugrad_34","Dean's List (ugrad)",47,20,142,121,72,1000,1335,2.35]
["Engr_EN-Dean_9","Engineering Web site Content Management System (CommonSpot and managed interfaces)",63,30,0,0,0,6000,6000,2.1]
["Engr_ECE_13","Door Access/Key Request Form",42,20,169,18,72,4000,4259,2.1]
["Engr_EN-Dean_36","5 yr alumni survey",41,20,169,18,72,1000,1259,2.0499999999999998]
["Engr_EN-Dean_17","GAPS - Graduate application Processing System",35,20,0,0,262,2000,2262,1.75]
["Engr_EN-Dean_40","Hiring request form",34,20,168,18,72,500,758,1.7]
["Engr_EN-Ugrad_44","Advising & Diversity login/visit system",33,20,0,184,72,500,756,1.65]
["Engr_ECE_29","SPACE MANAGEMENT TOOL: Rooms/Space, people",27,20,169,18,72,1000,1259,1.35]
["Engr_EN-Dean_19","Resource 25 Room Database\nCapture AV functionality for each classroom. Also support information. Publish it to the web for room users, Registrar.",26,20,245,27,72,2000,2344,1.3]
["Engr_ECE_42","TA Management forms",20,20,169,18,72,500,759,1]
["CHE_Human Resources_13","Student Appointments",95,15,100,0,0,1000,1100,6.333333333333333]
["CHE_CIPA_15","Graduate Management System",85,15,100,0,0,2200,2300,5.666666666666667]
["CHE_Admission_24","Admissions Management",85,15,100,0,0,1500,1600,5.666666666666667]
["CHE_Administration_12","Salary Improvement Process (SIP)",80,15,100,0,0,1500,1600,5.333333333333333]
["CHE_DNS_20","About You",80,15,100,0,0,500,600,5.333333333333333]
["CHE_Administration_11","Plan Confirmation/Effort Certification",77,15,100,0,0,1500,1600,5.1333333333333337]
["CHE_DNS_18","Graduate Management System",77,15,100,0,0,1000,1100,5.1333333333333337]
["CHE_DNS_19","DI Evaluations",77,15,100,0,0,1000,1100,5.1333333333333337]
["CHE_Administration_1","Faculty Annual Report (FAR)",75,15,100,0,0,2600,2700,5]
["CHE_Academic Affairs_4","Course Evaluations",75,15,100,0,0,1000,1100,5]
["CHE_Human Resources_8","Local HR Tool",75,15,100,0,0,1500,1600,5]
["CHE_Registrar_28","Committee on Academic Standing (CAS)",75,15,100,0,0,1500,1600,5]
["CHE_Finance_32","Budget Database",75,15,100,0,50,2000,2150,5]
["CHE_Career Services_35","Communecology",75,15,100,0,0,1500,1600,5]
["CHE_Administration_6","Endowment Database",73,15,100,0,0,1000,1100,4.8666666666666663]
["CHE_DNS_21","Senior Survey",70,15,100,0,0,1000,1100,4.666666666666667]
["CHE_Registrar_26","Graduation Summary",67,15,100,0,0,1000,1100,4.4666666666666668]
["CHE_Registrar_29","Transfer Student",67,15,100,0,0,1000,1100,4.4666666666666668]
["CHE_Alumni Affairs_23","Chronus Mentor",66,15,0,5000,0,0,5000,4.4000000000000004]
["CHE_Administration_5","Event Manangement System (EMS)",65,15,100,0,0,1500,1600,4.333333333333333]
["CHE_Admission_25","Transfer Option Offer",65,15,100,0,0,500,600,4.333333333333333]
["CHE_Human Development_37","HD Publications",65,15,100,0,50,500,650,4.333333333333333]
["CHE_DNS_22","Graduation Information",60,15,100,0,0,1000,1100,4]
["CHE_Finance_31","Blackbooks",60,15,100,0,0,3500,3600,4]
["CHE_Career Services_3","Alumnet",55,15,100,0,0,500,600,3.6666666666666665]
["CHE_Computing Services Group_7","Equipment Database",54,15,100,0,0,500,600,3.6]
["CHE_Registrar_30","Student Management",51,15,100,0,0,1500,1600,3.4]
["CHE_CIPA_16","Course Guide",50,15,100,0,0,1000,1100,3.3333333333333335]
["CHE_Registrar_27","Apply to Graduate",48,15,100,0,0,1000,1100,3.2]
["CHE_Academic_38","Multimedia",47,15,100,0,50,500,650,3.1333333333333333]
["CHE_FSAD_34","Fashion Design Award",45,15,100,0,0,500,600,3]
["CHE_Urban Semester_14","Urban Semester applications",42,15,100,0,0,2000,2100,2.8]
["CE_SCE_1","SCE Student System",93,25,268.5,46.3,3562,44520,48396.800000000003,3.72]
["CE_Registrar_2","Certificates",78,20,268.5,46.3,672,1080,2066.8000000000002,3.9]
["CE_Registrar_3","On-line Enrollment",95,20,268.5,46.3,1796,5970,8080.8,4.75]
["CE_Registrar_4","Student/Faculty Portal",68,20,268.5,46.3,1566,4260,6140.8,3.4]
["CE_Media_10","Web Content Management System",91,20,3,0,2844,20580,23427,4.55]
["CE_SCE_9","Prospector",88,20,3,0,2304,13020,15327,4.4000000000000004]
["CE_Summer College_6","Summer College Self Service",73,20,268.5,46.3,1966,17940,20220.8,3.65]
["CE_Summer College_19","ApplyWeb CollegeNet",91,20,0,19500,1600,6870,27970,4.55]
["CE_Finance and Acct._8","Course Budget",85,20,268.5,46.3,2066,22140,24520.799999999999,4.25]
["CE_IT_11","SCE IT Inventory Tracking System",63,20,0,100,2040,1500,3640,3.15]
["CE_Finance and Acct._5","Course Proposal",100,20,268.5,46.3,2066,22140,24520.799999999999,5]
["CE_Finance and Acct._21","Classroom Assignments",68,20,268.5,46.3,1666,7290,9270.7999999999993,3.4]
["CE_Registrar_7","Course Evaluations ",82,20,268.5,46.3,1626,7170,9110.7999999999993,4.0999999999999996]
["CE_CIW_12","CIW Student Records",92,20,0,17.86,327,950,1294.8600000000001,4.5999999999999996]
["CE_CIW_13","CIW Building Maintenance  Inventory",78,20,0,17.86,302,800,1119.8600000000001,3.9]
["CE_CIW_14","CIW Key Inventory",83,20,0,17.86,152,400,569.86,4.1500000000000004]
["CE_CIW_15","CIW Library Inventory",43,20,0,17.86,77,200,294.86,2.15]
["CE_CIW_16","CIW Faculty and Staff ",63,20,0,17.86,77,200,294.86,3.15]
["CE_CIW_17","CIW Internships",92,20,0,17.86,227,600,844.86,4.5999999999999996]
["CE_CIW_18","CIW Course Inventory",62,20,0,17.86,302,800,1119.8600000000001,3.1]
["CE _SCE_20","Staff database",40,20,3,0,1554,2520,4077,2]

{"sheet":"Unit Inventory","index":2,"n_rows":2000,"n_cols":18,"rows_kept":2000,"cut":false,"hidden":false,"merged":[]}
["App ID","Unit Name","Department Name","App name","Current Status","Business Owner","Business Contact","Technical Owners","Technical Contact","BV Score","Cost Score","BV/Cost Ratio","Not scored reason","Comments","Primary Functional Purpose","Secondary Functional Purpose"]
[{"$f":"ROW(2:2)-1","v":1},"Library","Access Services","Ares","Not Scored","Michael Cook",null,"Thomas Trutt",null,null,null,0,"Other(add comment)","Academic application","Academic Administration",null,null,"Functional Purpose"]
[{"$f":"ROW(3:3)-1","v":2},"Library","Accounting","Endowment reporting (Access)","Done","Tami Magnus",null,"Tami Magnus",null,38,20,1.9,null,"Function: Finance - Other","Finance- Other",null,null,"Academic Administration"]
[3,"Library","Accounting","Travel Database (Access)","Done","Tami Magnus",null,"Tami Magnus",null,33,20,1.65,null,"Function: Finance - Other","Finance- Other",null,null,"Admissions"]
[4,"Library","CUL-IT","arXiv","Not Scored","Oya Reiger",null,"Simeon Warner",null,null,null,0,"Other(add comment)","Academic application","Academic Administration",null,null,"Alumni Development"]
[5,"Library","CUL-IT","CUL Web site","Done","Janet Mccue & Dean Krafft",null,"Adam Smith",null,75,35,2.1428571428571428,null,"Function: Other","Other",null,null,"Budget Planning"]
[6,"Library","CUL-IT","CULAR","Done","Dean Krafft",null,"Simeon Warner",null,93,45,2.0666666666666669,null,"Function: Other","Other",null,null,"Career Services"]
[7,"Library","CUL-IT","CULLR","Not Scored","Dean Krafft",null,"Jim Riedy",null,null,null,0,"Other(add comment)","Academic application","Academic Administration",null,null,"Collaboration Tool"]
[8,"Library","CUL-IT","Digital collection mirrors","Not Scored","John Saylor",null,"George Kozak",null,null,null,0,"Other(add comment)","Academic application","Academic Administration",null,null,"Facilities & Space Management"]
[9,"Library","CUL-IT","Digital Collections","Not Scored","John Saylor",null,"George Kozak",null,null,null,0,"Other(add comment)","Academic application","Academic Administration",null,null,"IT Utility"]
[10,"Library","CUL-IT","DLXS","Not Scored","Dean Krafft",null,"George Kozak",null,null,null,0,"Other(add comment)","Academic application","Academic Administration",null,null,"Research Administration"]
[11,"Library","CUL-IT","eCommons","Not Scored","Dean Krafft & Oya Reiger",null,"George Kozak",null,null,null,0,"Other(add comment)","Academic application","Academic Administration",null,null,"SIP Awards"]
[12,"Library","CUL-IT","Euclid","Not Scored","David Ruddy",null,"Simeon Warner",null,null,null,0,"Other(add comment)","Academic application","Academic Administration",null,null,"Time Management"]
[13,"Library","CUL-IT","EZ-Proxy","Not Scored","Jim LeBlanc",null,"Chris Manly",null,null,null,0,"Other(add comment)","Academic application","Academic Administration",null,null,"Finance- Other"]
[14,"Library","CUL-IT","GFA LAS system (Annex)","Done","Kornelia Tancheva",null,"Chris Manly",null,81,15,5.4,null,"Function: Other","Other",null,null,"HR- Other"]
[15,"Library","CUL-IT","III ERMS","Done","Jim LeBlanc",null,"Chris Manly",null,53,20,2.65,null,"Function: Other","Other",null,null,"Student- Other"]
[16,"Library","CUL-IT","Logs analysis","Done","Dean Krafft",null,"Chris Manly",null,46,15,3.0666666666666669,null,"Function: Other","Other",null,null,"Other"]
[17,"Library","CUL-IT","Lstools","Done","Jim LeBlanc",null,"Chris Manly",null,63,15,4.2,null,"Function: Other","Other"]
[18,"Library","CUL-IT","Luna","Not Scored","Danielle Mericle",null,"Chris Manly",null,null,null,0,"Other(add comment)","Academic application","Academic Administration"]
[19,"Library","CUL-IT","Persistent URL services","Not Scored","Dean Krafft",null,"Chris Manly",null,null,null,0,"Other(add comment)","Academic application","Academic Administration"]
[20,"Library","CUL-IT","PICTOR","Not Scored","Danielle Mericle",null,"Chris Manly",null,null,null,0,"Other(add comment)","Academic application","Academic Administration"]
[21,"Library","CUL-IT","Pre-Online Order Form","Done","Jim LeBlanc",null,"Adam Smith",null,67,35,1.9142857142857144,null,"Function: Other","Other"]
[22,"Library","CUL-IT","Puppet","Not Scored","Chris Manly",null,"Chris Manly",null,null,null,0,"IT staff use only","Function: IT Utility","IT Utility"]
[23,"Library","CUL-IT","Subversion","Not Scored","Chris Manly",null,"Chris Manly",null,null,null,0,"IT staff use only","Function: IT Utility","IT Utility"]
[24,"Library","CUL-IT","Summon","Done","Jim LeBlanc",null,"Jesse Koennecke",null,57,40,1.425,null,"Summon has actually been paid already for next 3 years.  Function: Other","Other"]
[25,"Library","CUL-IT","Olin/Uris Library Website","Done","Kornelia Tancheva",null,"Adam Smith",null,57,15,3.8,null,"Function: Other","Other"]
[26,"Library","CUL-IT","Vet Media Archive","Not Scored","Erla Heyns",null,"Adam Smith",null,null,null,0,"Other(add comment)","Academic application","Academic Administration"]
[27,"Library","CUL-IT","Voyager","Done","Jim LeBlanc",null,"Chris Manly",null,83,70,1.1857142857142857,null,"Includes related systems like feeds to KFS, Bursar, PeopleSoft.  Function: Other","Other"]
[28,"Library","DSPS","Conservation Database","Done","Barbara Eden",null,"Joan Brink",null,77,15,5.1333333333333337,null,"Function: Other","Other"]
[29,"Library","HR","HR Shadow DB","Done","Lyndsi Prignon",null,"Lyndsi Prignon",null,73,15,4.8666666666666663,null,"Developed by CIT under contract.  Function: HR - Other","HR- Other"]
[30,"Library","ILL","Illiad","Done","Kornelia Tancheva",null,"Kornelia Tancheva",null,91,25,3.64,null,"Function: Other","Other"]
[31,"Library","RAO","Atlas.TI","Not Scored","Zsuzsa Koltay",null,"Zsuzsa Koltay",null,null,null,0,"Other(add comment)","This is a tool, like Word, Excel, etc.","Other"]
[32,"Library","RAO","LibPAS","Done","Zsuzsa Koltay",null,"Zsuzsa Koltay",null,88,25,3.52,null,"Function: Other","Other"]
[33,"Library","RAO","SPSS stats software","Not Scored","Zsuzsa Koltay",null,"Zsuzsa Koltay",null,null,null,0,"Other(add comment)","This is a tool, like Word, Excel, etc.","Other"]
[34,"Library","CUL-IT","Africana Library Website","Done","Eric Acree",null,"Adam Smith",null,43,15,2.8666666666666667,null,"Function: Other","Other"]
[35,"Library","CUL-IT","Engineering Library Website","Done","Jill Powell",null,"Adam Smith",null,82,15,5.4666666666666668,null,"Function: Other","Other"]
[36,"Library","CUL-IT","Fine Arts Library Website","Done","Martha Walker",null,"Adam Smith",null,43,15,2.8666666666666667,null,"Function: Other","Other"]
[37,"Library","CUL-IT","Kroch Asia Library Website","Done","Greg Green",null,"Adam Smith",null,43,15,2.8666666666666667,null,"Function: Other","Other"]
[38,"Library","CUL-IT","Management Library Website","Done","Angela Horne",null,"Adam Smith",null,43,15,2.8666666666666667,null,"Function: Other","Other"]
[39,"Library","CUL-IT","Math Library Website","Done","Steve Rockey",null,"Adam Smith",null,58,15,3.8666666666666667,null,"Function: Other","Other"]
[40,"Library","CUL-IT","Music Library Website","Done","Bonna Boettcher",null,"Adam Smith",null,43,15,2.8666666666666667,null,"Function: Other","Other"]
[41,"Library","CUL-IT","Physcial Sciences Library Website","Done","Leah Solla",null,"Adam Smith",null,73,25,2.92,null,"Function: Other","Other"]
[42,"Library","CUL-IT","eNERF","Done","Bill Kara",null,"Jesse Koennecke",null,68,15,4.5333333333333332,null,"Function: Other","Other"]
[43,"Social Sciences","CISER","Statistical Software for Researchers","Done","Janet Heslop","Janet Heslop","Janet Heslop","Janet Heslop",85,60,1.4,null,"Stata,SAS,Matlab,Adobe Acrobat Pro,Winzip,SPSS,HLM,Lisrel,Atlas TI,StatTransfer,EditPlus,WinRats,Scientific Workplace,Mathematica,Gauss,JMP,Mplus,Genstat,Stella,Maple,EndNote,Latex,R,Splus,Tomlab,MKL,Ucinet","Other"]
[44,"Social Sciences","CISER","Utility Software for Researchers","Done","Janet Heslop","Janet Heslop","Janet Heslop","Janet Heslop",85,45,1.9,null,"Rstudio,WinBugs,Perl,ArcGIS,Holdem Manager,7z,MiKTeX,AMOS,Fortran,Minitab,RefWorks,Visual Studio,Python,Notepad++","Other"]
[45,"Social Sciences","CISER","Audit Wizard","Done","Janet Heslop","Janet Heslop","Janet Heslop","Janet Heslop",91,20,4.5999999999999996,null,"Inventory tracking (software and hardware)","IT Utility"]
[46,"Social Sciences","CISER","Joomla","Not Scored","Janet Heslop","Janet Heslop","Janet Heslop","Janet Heslop",null,null,0,"IT staff use only","WebServer ","IT Utility"]
[47,"Social Sciences","CISER","Mach5 Analyzer","Not Scored","Janet Heslop","Janet Heslop","Janet Heslop","Janet Heslop",null,null,0,"IT staff use only","Web Stats Analyzer","IT Utility"]
[48,"Social Sciences","CISER","PicoSearch","Not Scored","Janet Heslop","Janet Heslop","Janet Heslop","Janet Heslop",null,null,0,"IT staff use only","Web Page Search Engine","IT Utility"]
[49,"Social Sciences","CISER","WS-FTP","Not Scored","Janet Heslop","Janet Heslop","Janet Heslop","Janet Heslop",null,null,0,"Other(add comment)","Utility Software for Researchers","IT Utility"]
[50,"Social Sciences","CISER","Systrack","Not Scored","Janet Heslop","Janet Heslop","Janet Heslop","Janet Heslop",null,null,0,"IT staff use only","Performance/Usage monitoring","IT Utility"]
[51,"Social Sciences","CISER","MySQL","Not Scored","Janet Heslop","Janet Heslop","Janet Heslop","Janet Heslop",null,null,0,"IT staff use only","Required for Joomla","IT Utility"]
[52,"Social Sciences","CISER","WebLink Validator","Not Scored","Janet Heslop","Janet Heslop","Janet Heslop","Janet Heslop",null,null,0,"IT staff use only","Validates Weblinks on WebServer","IT Utility"]
[53,"Social Sciences","SRI","CASES","Not Scored","Yasamin Miller","Yasamin Miller","Darren Hearn","Darren Hearn",null,null,0,"Other(add comment)","data collection software for phone interviews","Other"]
[54,"Social Sciences","SRI","Statistical Analysis Software","Done","Yasamin Miller","Yasamin Miller","Darren Hearn","Darren Hearn",68,20,3.4,null,"SAS,SPSS,Statpac","Other"]
[55,"Social Sciences","SRI","ColdFusion","Not Scored","Yasamin Miller","Yasamin Miller","Brett Haranin","Brett Haranin",null,null,0,"IT staff use only","platform for web systems (surveys, administrative apps)","IT Utility"]
[56,"Social Sciences","SRI","Project Tracker","Not Scored","Yasamin Miller","Yasamin Miller","Brett Haranin","Brett Haranin",null,null,0,"Other(add comment)","track staff time, project hours, project tasks, invoice projects","Time Management"]
[57,"Social Sciences","SRI","Cardiff Teleform","Not Scored","Yasamin Miller","Yasamin Miller","Darren Hearn","Darren Hearn",null,null,0,"Other(add comment)","scanning software for paper surveys","Other"]
[58,"Social Sciences","SRI","NetOP MyVision","Not Scored","Yasamin Miller","Yasamin Miller","Janet Heslop","Janet Heslop",null,null,0,"Other(add comment)","monitor interviewer workstations","IT Utility"]
[59,"Social Sciences","SRI","Adobe Photoshop","Not Scored","Yasamin Miller","Yasamin Miller","Janet Heslop","Janet Heslop",null,null,0,"Other(add comment)","design and edit images for web surveys","IT Utility"]
[60,"Social Sciences","SRI","Adobe Dreamweaver","Not Scored","Yasamin Miller","Yasamin Miller","Janet Heslop","Janet Heslop",null,null,0,"Other(add comment)","development environment for web surveys","IT Utility"]
[61,"Social Sciences","SRI","Adobe Acrobat Pro","Not Scored","Yasamin Miller","Yasamin Miller","Janet Heslop","Janet Heslop",null,null,0,"Other(add comment)","create and modify PDF document for delivery to clients","IT Utility"]
[62,"Social Sciences","SRI","IDAutomation","Not Scored","Yasamin Miller","Yasamin Miller","Brett Haranin","Brett Haranin",null,null,0,"Other(add comment)","create barcodes for internal and client projects","IT Utility"]
[63,"Social Sciences","SRI","Gammadyne","Not Scored","Yasamin Miller","Yasamin Miller","Brett Haranin","Brett Haranin",null,null,null,"Other(add comment)","send bulk emails for web surveys","IT Utility"]
[64,"Social Sciences","SRI","Visual Studio","Not Scored","Yasamin Miller","Yasamin Miller","Brett Haranin","Brett Haranin",null,null,0,"IT staff use only","development environment for windows-based tools and plugins","IT Utility"]
[65,"Social Sciences","CISER","CNSS","Done","Janet Heslop","Janet Heslop","Jeremy Williams","Jeremy Williams",80,20,4,null,"Cornell National Social Survey Integration System","Other"]
[{"$f":"ROW(67:67)-1","v":66},"Social Sciences","CISER","Management System","Done","Janet Heslop","Janet Heslop","Jeremy Williams","Jeremy Williams",92,30,3.1,null,"Various applications used to manage CISER computing accounts and services - includes Apply, Manage, Renewals, CRADC, Reset, Guard","Other"]
[67,"Social Sciences","CISER","Reporting System","Done","Janet Heslop","Janet Heslop","Jeremy Williams","Jeremy Williams",71,20,3.6,null,"Various applications for reporting on all aspects of CISER activity - includes Billing, Usage, STAR, Daily System Usage, Concurrent Process Report, Systrack Harvester, RschNodeMonitorFeed, UserSearch","Other"]
[68,"Social Sciences","CISER","Workshop Applications","Done","Janet Heslop","Janet Heslop","Jeremy Williams","Jeremy Williams",63,20,3.2,null,"Tools related to entering workshops in the database and letting users register online for these workshops","Other"]
[69,"Social Sciences","CISER","Archive","Done","Janet Heslop","Janet Heslop","Irene Hawes","Irene Hawes",87,20,4.4000000000000004,null,"includes multiple programs including EZID","Other"]
[70,"Graduate School","Grad School","Online Catalog","Done","Grad School","Kat Empson","SAS-IT","John Tonello",100,20,5,null,"A component of the website for the display of academic units, structure, faculty lists and other data","Student- Other"]
[71,"Graduate School","Grad School","gradschool.cornell.edu/intranet/postdoc","Done","Grad School","Jason Kahabka","SAS-IT","John Tonello",77,20,3.85,null,"Primarily designed and supported by a 3rd party vendor; Drupal is the content management tool used by the graduate school to delivery dynamic and current information to constituents via the web pages.  The intranet is a portal (programmed in PHP) that has both web and data delivery components. Data delivery reports developed in Tableau and Brio (pointing to SDM).","Academic Administration"]
[72,"Graduate School","Grad School","Graduation Manager","BV Complete","Grad School","Kat Empson","CIT",null,85,null,0,"Other(add comment)","This is scored in CIT-Apps list. Graduation Manger is a custom application (built in Cold Fusion with a Fedora front-end) for the submission of graduate student theses and dissertations.  It aggregates data from both from SDM/PeopleSoft and directly from the student user at the time of document submission.  The application allows online review of PDF documents and includes a workflow process for collection faculty approvals.","Student- Other"]
[73,"Graduate School","Grad School","Faculty Manager","Done","Grad School","Kat Empson","SAS-IT","John Tonello",90,20,4.5,null,"A custom application (back-end MySQL; front-end is PHP) supporting faculty representation in the graduate fields. ","Academic Administration"]
[74,"Graduate School","Grad School","General Committee Vote","Done","Grad School","Kat Empson","SAS-IT","John Tonello",82,15,5.4666666666666668,null,null,"Academic Administration"]
[75,"Graduate School","Grad School","Online Rolodex","Done","Grad School","Kat Empson","SAS-IT","John Tonello",87,20,4.3499999999999996,null,"The online Rolodex is an app that is ‘plugged in’ to the intranet and displays a database (mySQL) of users associated with graduate fields.  This app also support the security and access rights of field level users to some online reports.","Academic Administration"]
[76,"Graduate School","Grad School","Cynergy PS access request","Not Scored","Grad School",null," ",null,null,null,0,"Other(add comment)","This should be scored by CIT. Although this system is not ‘owned’ by the graduate school it is a key productivity tool for managing the access of the 300+ PeopleSoft users that we are responsible for .  The Graduate School approves and initiates access requests for all graduate financial aid awarders as well as over 100 GFA and field-level SR and AD users"]
[77,"Graduate School","Grad School","CollegeNet","Done","Grad School","Jason Kahabka","SAS-IT","John Tonello",100,20,5,null,"CollegeNET is a third party-supported, hosted systemapp that includes modules for collection admissions data via a web form from applicants and recommenders as well as back-end administrative functions.  The system supportsthe admission process of over 100 graduate fields and have over 1,100 unique staff and faculty users.  It processes approximately 20,000 applications annually.","Admissions"]
[78,"Graduate School","Grad School","GSCGrad Special Committee","BV Complete","Grad School","Jason Kahabka","CIT",null,81,{"$error":"#N/A"},0,"Other(add comment)","This app is scored in CIT-Apps list. The GSC application is a tool to facilitate graduate students to request special committee members (faculty) and choose their academic concentrations online via their student center.  Student requests are routed through a workflow process for approval and are eventually saved to PeopleSoft.","Student- Other"]
[79,"Graduate School","Grad School","HESK","Done","Grad School","Rosemary Lang","SAS-IT","John Tonello",77,20,3.85,null,"Help Desk software used to track and manage data requests from the 100 graduate fields, the Graduate School Deans, the Graduate Student Services Office, and various internal (e.g., Learning Skills Center) and external (e.g., National Science Foundation) constituents.","Time Management"]
[80,"Graduate School","Grad School","NextStep","Not Scored","Grad School","Elisabeth Ellis\nRosemary Lang","SAS-IT",null,null,null,0,"Other(add comment)","This is really a business process supported by several productivity tools.  Integrated components (PeopleSoft communication load, series of integrated Brio queries, Lyris) supporting mass communications to new graduate students."]
[81,"DPB","Capital Planning","CF&PC","BV Complete","Tom Cole","Tom Cole","Dan McGough","Dan McGough",75,20,3.75,null,null,"Budget Planning"]
[82,"DPB","Capital Planning","PARS","Not Scored","Tom Cole","Tom Cole","Dan McGough","Dan McGough",null,null,0,"Not in use"]
[83,"DPB","Capital Planning","EPAR","Not Scored","Facilities","Tom Cole","Facilities","Facilities",null,null,0,"Other(add comment)","Supported by facilities"]
[84,"DPB","Budget","APDB","Not Scored","HR","HR","HR","HR",null,null,0,"Other(add comment)","Supported by HR"]
[85,"DPB","Budget","G2 - Professorships",null,"Davina Desnoes","Maggie Liu","Maggie Liu","Maggie Liu",null,null,0,null,"Group as financial apps G2"]
[86,"DPB","Budget","G2 - Allocations",null,"Davina Desnoes","Karen Pearson","Karen Pearson","Karen Pearson",null,null,0,null,"Group as financial apps G2"]
[87,"DPB","Budget","G2 - Commitments & Allocations",null,"Davina Desnoes","Davina Desnoes","Davina Desnoes","Davina Desnoes",null,null,0,null,"Group as financial apps G2"]
[88,"DPB","Budget","G2 - Sabbatics",null,"Jean Palmer","Jean Palmer","Jean Palmer","Jean Palmer",null,null,0,null,"Group as financial apps G2"]
[89,"DPB","Budget","G2 - Budget Performance Report",null,"Ellen Mastrogiovanni","Ellen Mastrogiovanni","Ellen Mastrogiovanni","Ellen Mastrogiovanni",null,null,0,null,"Group as financial apps G2"]
[90,"DPB","Budget","G2 - Enrollment",null,"Ellen Mastrogiovanni","Ellen Mastrogiovanni","Ellen Mastrogiovanni","Ellen Mastrogiovanni",null,null,0,null,"Group as financial apps G2"]
[91,"DPB","Budget","G2 Summary","BV Complete","Davina Desnoes","Davina Desnoes","Davina Desnoes","Davina Desnoes",80,20,null,null,null,"Budget Planning"]
[92,"DPB","Space Planning","Annual Space Report","Not Scored","Mary-Lynn Cummings","Mary-Lynn Cummings","Mary-Lynn Cummings","Mary-Lynn Cummings",null,null,0,"No ongoing cost"]
[93,"DPB","Space Planning","Facilities Inventory System","Not Scored","Facilities","Facilities","Facilities","Facilities",null,null,0,"Other(add comment)","Supported by facilities"]
[94,"DPB","Space Planning","X25 Class Room Utilization","Not Scored","Registrar","Registrar","Registrar","Registrar",null,null,0,"Other(add comment)","Supported by registrar"]
[95,"DPB","IRP","G1 - SPSS",null,null,null,null,null,null,null,0,null,"Group stats apps as G1"]
[96,"DPB","IRP","G1 - STATA",null,null,null,null,null,null,null,0,null,"Group stats apps as G1"]
[97,"DPB","IRP","G1 - SAS",null,null,null,null,null,null,null,0,null,"Group stats apps as G1"]
[98,"DPB","IRP","G1 - NUDIST",null,null,null,null,null,null,null,0,null,"Group stats apps as G1"]
[99,"DPB","IRP","G1 - R",null,null,null,null,null,null,null,0,null,"Group stats apps as G1"]
[100,"DPB","IRP","G1 Summary","Not Scored","Marin Clarkburg","Marin Clarkburg","Dan McGough","Dan McGough",null,null,null,null,"For inventory only"]
[101,"DPB","BI","DPB DOCS","Not Scored","Dan McGough","Dan McGough","Dan McGough","Dan McGough",null,null,0,"IT staff use only"]
[102,"DPB","BI","DPBHSI","Not Scored","Dan McGough","Dan McGough","Dan McGough","Dan McGough",null,null,0,"IT staff use only"]
[103,"DPB","BI","CUDS TRACKER","Not Scored","Dan McGough","Dan McGough","Dan McGough","Dan McGough",null,null,0,"Not in use"]
[104,"DPB","BI","SA - ISA Proxy",null,null,null,null,0,null,null,null,null,"Group as server admin SA"]
[105,"DPB","BI","SA - LanREV",null,null,null,null,null,null,null,0,null,"Group as server admin SA"]
[106,"DPB","BI","SA- PRTG Network Monitor",null,null,null,null,null,null,null,0,null,"Group as server admin SA"]
[107,"DPB","BI","SA Group Summary","Not Scored","Dan McGough","Dan McGough","Dan McGough","Dan McGough",null,null,0,"IT staff use only"]
[108,"DPB","BI","SU - IIS6 Web Server",null,null,null,null,null,null,null,0,null,"Group as server user SU"]
[109,"DPB","BI","SU - FileMaker Server",null,null,null,null,null,null,null,0,null,"Group as server user SU"]
[110,"DPB","BI","SU - Tableau Server",null,null,null,null,null,null,null,0,null,"Group as server user SU"]
[111,"DPB","BI","SU - Identity Finder Server",null,null,null,null,null,null,null,0,null,"Group as server user SU"]
[112,"DPB","BI","SU - Globalscape SFTP Server",null,null,null,null,null,null,null,0,null,"Group as server user SU"]
[113,"DPB","BI","SU Group Summary","BV Complete","Dan McGough","Dan McGough","Dan McGough","Dan McGough",78,55,1.4181818181818182,null,"Group as server user SU","Budget Planning"]
[114,"AFA","Fin Aid and Stdt Employ","MURF","Scheduled","Fin Aid and Student Employment","Nelson Burdick\nJen Talcott","SAS-IT","John Romag (CIT)",78,30,2.6,null,"There also an external contact for program updates/mods.","Other","Financial Aid"]
[115,"AFA","Fin Aid and Stdt Employ","Image Now","Not Scored","Fin Aid and Student Employment","Lori Hulse","SAS-IT","Susan Li",null,null,0,"Other(add comment)"," Image Now for Admissions and Financial Aid.  Have Combined the two, same system.  There's a gap right now for Technical Contact due to the consolidation with SAS-IT","Admissions"]
[116,"AFA","Fin Aid and Stdt Employ","Outside Scholarship Database","Done","Fin Aid and Student Employment","Debbie Paul","SAS-IT","Debbie Paul",72,15,4.8,null,"This is a straight MS Access database, locally created and used.  In the same vein we have National Merit scholarships, RUSS, NCAA.","Other","Financial Aid"]
[117,"AFA","Fin Aid and Stdt Employ","Endowed Scholarships","Not Scored","Fin Aid and Student Employment","Jennifer Talcott","SAS-IT","unknown",null,null,0,"Other(add comment)","This is a Filemaker database maintained and hosted in Alumni Affairs","Other","Financial Aid"]
[118,"AFA","UG Adm and FA","Out'n About","Done","Undergraduate Admissions and Financial Aid","Nelson Burdick\nJason Locke","SAS-IT","Jen Talcott",48,15,3.2,null,"electronic employee in/out board Used by AD and FA/SE staff to indicate where they are (meetings, etc.) throughout the workday.","Time Management"]
[119,"AFA","Fin Aid and Stdt Employ","SJP (Student Job Postings)/Jobs Database","Done","Fin Aid and Student Employment","Nelson Burdick","SAS-IT","Nicole Waterman",70,15,4.666666666666667,null,"Hosted by CIT","HR- Other"]
[120,"AFA","UG Adm and FA","Hobsons EMT Connect","Done","Undergraduate Admissions and Financial Aid","Lori Hulse","SAS-IT","Joseph Saponaro",47,30,1.5666666666666667,null,"for mass emails","Other","Financial Aid"]
[121,"AFA","Fin Aid and Stdt Employ","Financial Aid Calculator","Done","Fin Aid and Student Employment","Tom Keane","FIN AID","Tom Keane",70,25,2.8,null,null,"Other","Financial Aid"]
[122,"AFA","UG Adm and FA","admissions.cornell.edu\nfinaid.cornell.edu\nstudentemployment.cornell.edu\nadmit.cornell.edu","Done","Undergraduate Admissions and Financial Aid","Lori Hulse\nDoug Elliott","SAS-IT","Susan Li",77,35,2.2000000000000002,null,"These are all the websites together for the area, they show information,  give links to forms and other websites","Admissions"]
[123,"AFA","Undergraduate Admissions","CAAAN-DO ","Done","Undergraduate Admissions","Kyle Downey\nColleen Chaffe","SAS-IT","Susan Li",82,15,5.4666666666666668,null,"Website and web application for alumnae volunteer","Admissions"]
[124,"AFA","Undergraduate Admissions","Athletics Database","Not Scored","Undergraduate Admissions","Patty Grace\nEllen Shields","SAS-IT","Susan Li",null,null,0,"Not in use","This database was abandoned as there was no support.  The customer uses Excel now to do work. This is very time consuming and labor intensive.Database in support of athletics Early Credential Review (ECR) process","Admissions"]
[125,"AFA","Undergraduate Admissions","Regional Recruitment System ","Done","Undergraduate Admissions","Shawn Felton","SAS-IT","Susan Li",54,15,3.6,null,"`","Admissions"]
[126,"AFA","Undergraduate Admissions","EMT/iCLass/Decision Notification/Apply Yourself","Done","Undergraduate Admissions","Doug Elliot","SAS-IT","Doug Elliot",47,35,1.3428571428571427,null,"used to deliver decisions to freshmen","Admissions"]
[127,"AFA","Undergraduate Admissions","Common App ","Done","Undergraduate Admissions","Doug Elliot","SAS-IT","Doug Elliot\nJoseph Saponaro",85,25,3.4,null,"Used by freshman and transfer students to submit applications.  Also used by teachers and guidance counselors","Admissions"]
[128,"AFA","Undergraduate Admissions","Recruitment Event Database","Done","Undergraduate Admissions","Shawn Felton","SAS-IT",null,53,15,3.5333333333333332,null,"Used to enter recruitment data from admissions staff: track invitations to, attendance at events such as college fairs.","Admissions"]
[129,"AFA","Undergraduate Admissions","Undergraduate Admissions Self Service","BV Complete","Undergraduate Admissions","Lloyd Hall","SAS-IT",null,67,{"$error":"#N/A"},0,null,"Used by applicants to check documents received, update some data, withdraw application","Admissions"]
[{"$f":"ROW(131:131)-1","v":130},"AFA","Undergraduate Admissions","Prospect Scrubbing Database","Done","Undergraduate Admissions","Doug Elliot","SAS-IT","Susan Li\nDoug Elliot",72,15,4.8,null,"Used to scrub purchased prospect datasets before loading into PS","Admissions"]
[131,"AFA","Undergraduate Admissions","Out and About","Not Scored","Undergraduate Admissions","Jason Locke","SAS-IT",null,null,null,0,"Other(add comment)","This has been combined with Financial Aid Used by AD and FA/SE staff to indicate where they are (meetings, etc.) throughout the workday."]
[132,"AFA","Undergraduate Admissions","Cornell Connection Database","Not Scored","Undergraduate Admissions","Carla Harding","SAS-IT",null,null,null,0,"Other(add comment)","Captures data on legacy applicants and produces Cornell Connection forms for use in review process. This is really an Alumni database that Carla gives data about applicants with legacy connections to Alumni Affairs, they add data and  send back the whole FM database to Carla to print an electronic form from database to load to ImageNow. "]
[133,"AFA","UG Adm and FA","ImageNow","Done","Undergraduate Admissions and Financial Aid","Lloyd Hall (Adm)\nLori Hulse (Fin Aid)","SAS-IT","Susan Li\nJoseph Saponaro",95,45,2.1111111111111112,null," Image Now for Admissions and Financial Aid.  Have Combined the two, same system.Captures all UG application documents (application forms, supplements, school forms, etc.).  Applications are automatically routed through queues for decisioning and other actions.","Collaboration Tool"]
[134,"AFA","Undergraduate Admissions","Beyond Compare","Done","Undergraduate Admissions","Carla Harding","SAS-IT",null,62,20,3.1,null,"Used to compare lists & datasets, typically by matching on emplid.","Admissions"]
[135,"AFA","Undergraduate Admissions","Commitment Database","Done","Undergraduate Admissions","Shawn Felton","SAS-IT"," ",81,15,5.4,null,"This is a FM database used to facilitate selection of students for the 3 Commitment Programs","Admissions"]
[136,"CIT Applications","Comm Apps","Remedy","Done","Benoit McNicoll","Benoit McNicoll","Commercial Apps","remedy-backline@cornell.edu",78,40,1.95,null,"https://confluence.cornell.edu/display/commappl/Alphabetical+List+of+Products","IT Utility"]
[137,"CIT Applications","Comm Apps","Sourceforge/Subversion","Cost Complete","Benoit McNicoll","Benoit McNicoll","Commercial Apps","sourceforge-backline@cornell.edu",{"$error":"#N/A"},40,0,null,"https://confluence.cornell.edu/display/commappl/Alphabetical+List+of+Products","IT Utility"]
[138,"CIT Applications","Comm Apps","Confluence","Done","Benoit McNicoll","Benoit McNicoll","Commercial Apps","confluence-backline@cornell.edu",67,25,2.68,null,"https://confluence.cornell.edu/display/commappl/Alphabetical+List+of+Products","Collaboration Tool"]
[139,"CIT Applications","Comm Apps","PeopleSoft Student Records/Student Faculty Self-Service and Campus Community","Done","Cassie Dembosky","Cassie Dembosky","Commercial Apps","pssupport-backline@cornell.edu",97,65,1.4923076923076923,null,"https://confluence.cornell.edu/display/commappl/Alphabetical+List+of+Products","Academic Administration"]
[140,"CIT Applications","Comm Apps","PeopleSoft Student/Faculty Self Service","BV Complete","Cassie Dembosky","Cassie Dembosky","Commercial Apps","pssupport-backline@cornell.edu",78,{"$error":"#N/A"},0,null,"https://confluence.cornell.edu/display/commappl/Alphabetical+List+of+Products","Academic Administration"]
[141,"CIT Applications","Comm Apps","Blackboard","Cost Complete","Clare van den Blink","Todd Maniscalco","Commercial Apps","blackboard-backline@cornell.edu",{"$error":"#N/A"},80,0,null,"https://confluence.cornell.edu/display/commappl/Alphabetical+List+of+Products","Academic Administration"]
[142,"CIT Applications","Comm Apps","PeopleSoft Contributor Relations","Done","David Pinker","David Pinker","Commercial Apps","pssupport-backline@cornell.edu",83,60,1.3833333333333333,null,"https://confluence.cornell.edu/display/commappl/Alphabetical+List+of+Products","Alumni Development"]
[143,"CIT Applications","Comm Apps","PeopleSoft Payroll and Epay","Done","Kim Cassell","Kim Cassell","Commercial Apps","pssupport-backline@cornell.edu",93,75,1.24,null,"https://confluence.cornell.edu/display/commappl/Alphabetical+List+of+Products","Finance- Other"]
[144,"CIT Applications","Comm Apps","PeopleSoft Epay","BV Complete","Kim Cassell","Kim Cassell","Commercial Apps","pssupport-backline@cornell.edu",53,{"$error":"#N/A"},0,null,"https://confluence.cornell.edu/display/commappl/Alphabetical+List+of+Products","Finance- Other"]
[145,"CIT Applications","Comm Apps","PeopleSoft Recruitment/Admissions","Done","Lee Melvin (TBD)","Lee Melvin (TBD)","Commercial Apps","pssupport-backline@cornell.edu",85,65,1.3076923076923077,null,"https://confluence.cornell.edu/display/commappl/Alphabetical+List+of+Products","Admissions"]
[146,"CIT Applications","Comm Apps","PeopleSoft Financial Aid","Done","Lee Melvin (TBD)","Lee Melvin (TBD)","Commercial Apps","pssupport-backline@cornell.edu",93,65,1.4307692307692308,null,"https://confluence.cornell.edu/display/commappl/Alphabetical+List+of+Products","Finance- Other","Admissions"]
[147,"CIT Applications","Comm Apps","PeopleSoft Student Employment","Done","Lee Melvin/Kim Cassell","Lee Melvin/Kim Cassell","Commercial Apps","pssupport-backline@cornell.edu",75,50,1.5,null,"https://confluence.cornell.edu/display/commappl/Alphabetical+List+of+Products","Career Services"]
[148,"CIT Applications","Comm Apps","PeopleSoft Human Resources","Done","Lyman Flahive","Lyman Flahive","Commercial Apps","pssupport-backline@cornell.edu",93,75,1.24,null,"https://confluence.cornell.edu/display/commappl/Alphabetical+List+of+Products","HR- Other"]
[149,"CIT Applications","Comm Apps","PeopleSoft Enterprise Learning Mgmt","Done","Lyman Flahive","Lyman Flahive","Commercial Apps","pssupport-backline@cornell.edu",80,55,1.4545454545454546,null,"https://confluence.cornell.edu/display/commappl/Alphabetical+List+of+Products","HR- Other"]
[150,"CIT Applications","Comm Apps","Pinnacle","BV Complete","Michelle Reynolds","Michelle Reynolds","Commercial Apps","pinnacle-backline@cornell.edu",70,{"$error":"#N/A"},0,null,"https://confluence.cornell.edu/display/commappl/Alphabetical+List+of+Products","Other"]
[151,"CIT Applications","Comm Apps","PeopleSoft Student Finance","Done","Peter Olcott","Peter Olcott","Commercial Apps","pssupport-backline@cornell.edu",93,65,1.4307692307692308,null,"https://confluence.cornell.edu/display/commappl/Alphabetical+List+of+Products","Finance- Other"]
[152,"CIT Applications","Comm Apps","Jira","Cost Complete","Vicky Mikula","Vicky Mikula",null,"jira-backline@cornell.edu",{"$error":"#N/A"},25,0,null,"https://confluence.cornell.edu/display/commappl/Alphabetical+List+of+Products","Collaboration Tool"]
[153,"CIT Applications","Comm Apps","Kronos","Done","Wes Buchanan","Michelle Reichert","Commercial Apps","kronos-backline@cornell.edu",90,75,1.2,null,"https://confluence.cornell.edu/display/commappl/Alphabetical+List+of+Products","HR- Other","Time Management"]
[154,"CIT Applications","Custom Dev","Activity","Not Scored","Ann Lang","Ann Lang","Nazrin Tingstrom","citis-activity-support-l@cornell.edu",null,null,0,"Other(add comment)","https://confluence.cornell.edu/display/citapps/Activity,  Scheduled to become a read only app in 2012"]
[155,"CIT Applications","Custom Dev","Activity ColdFusion Reports","Not Scored","Ann Lang","Ann Lang","Nazrin Tingstrom","citis-activity-support-l@cornell.edu",null,null,0,"Other(add comment)","https://confluence.cornell.edu/display/citapps/Activity+ColdFusion+Reports, Unanet to replace in 2012"]
[156,"CIT Applications","Custom Dev","Student Registration Profiles  (retired)","Not Scored","Cassy Demobsky","Cassy Demobsky","Hugh Edwards","customdev-support@cornell.edu",null,null,0,"Not in use","https://confluence.cornell.edu/display/citapps/Student+Registration+Profiles, This is retired per confirmation from OUR."]
[157,"CIT Applications","Custom Dev","Fedora image tools","Not Scored","Custom Apps","Custom Apps","Rich Marisa","only ESR uses this",null,null,0,"IT staff use only","Fedora image tools"]
[158,"CIT Applications","Custom Dev","Actuate Retirement PDF Server","Done","Dave Wakoff","Dave Waykoff","Rich Marisa","customdev-support@cornell.edu",97,20,4.8499999999999996,null,"https://confluence.cornell.edu/display/citapps/Actuate+Retirement+PDF+server; Low support","Finance- Other"]
[159,"CIT Applications","Custom Dev","APPS Print-to-PDF   (RETIRED)","Not Scored","Dennis Butts","Dennis Butts","Mike Oltz","customdev-support@cornell.edu",null,null,0,"Not in use","APPS Print-to-PDF   (RETIRED)"]
[160,"CIT Applications","Custom Dev","uPortal myLinks Channels (confirm retired)","Not Scored","Donna Taber","Donna Taber","Rich Marisa","customdev-support@cornell.edu",null,null,0,"Not in use","https://confluence.cornell.edu/display/citapps/uPortal+myLinks+Channels, replaced by MyCornell"]
[161,"CIT Applications","Custom Dev","OID Look Up","Not Scored","ISES","ISES","Hugh Edwards","customdev-support@cornell.edu",null,null,0,"IT staff use only","OID Look Up"]
[162,"CIT Applications","Custom Dev","Tax and Fix PL SQL Jobs","Not Scored","Karla Sharpsteen Kent Dalpan","Karla Sharpsteen Kent Dalpan","Beth Bement","we don't support just bkup",null,null,0,"Other(add comment)","https://confluence.cornell.edu/display/citapps/Tax+and+Fix+PL+SQL+Jobs, Being replaced by COLTS"]
[163,"CIT Applications","Custom Dev","COLTS (Cornell OnLine Time System)","Not Scored","Payroll","Kim Cassell, Diane Thurm, Karen Biddinger","Nazrin Tingstrom","colts-backline-l@cornell.edu",null,null,0,"Other(add comment)","https://confluence.cornell.edu/display/citapps/COLTS, Being replaced by Kronos"]
[164,"CIT Applications","Custom Dev","Web Financials","Not Scored","Rayna King","Rayna King","Mike Oltz","webfin-support-l@cornell.edu",null,null,0,"Not in use","https://confluence.cornell.edu/display/citapps/Web+Financials, View only after KFS launched"]
[165,"CIT Applications","Custom Dev","KFS Delegation Browser","Not Scored","Robin Yager Jeaninne Masse ","Robin Yager Jeaninne Masse ","Nazrin Tingstrom","customdev-support@cornell.edu",null,null,0,"Other(add comment)","https://confluence.cornell.edu/display/citapps/KFS+Delegation+Browser, \nMinimal Support"]
[166,"CIT Applications","Custom Dev","Policy Acknowledgement (SOX)","Not Scored","Tom Young? Wyman Miles?","Tom Young? Wyman Miles?","Nazrin Tingstrom","cit-policy-ack-support-l@cornell.edu",null,null,0,"Other(add comment)","https://confluence.cornell.edu/display/citapps/Policy+Acknowledgement, Finding replacement"]
[167,"CIT Applications","Custom Dev","WebService Logging","Not Scored",null,null,"Hugh Edwards","customdev-support@cornell.edu",null,null,0,"IT staff use only","WebService Logging"]
[168,"CIT Applications","Custom Dev","Electronic Student Records (ESR)","Done","Cassie Dembosky","Eric Lavin","Mike Oltz","customdev-support@cornell.edu",83,25,3.32,null,"Electronic Student Records (ESR)","Admissions","Academic Administration"]
[169,"CIT Applications","Custom Dev","United Way","Done","Cornell United Way -- Linda Charles","Cornell United Way -- Linda Charles","Nazrin Tingstrom","united-way-support-l@cornell.edu",84,25,3.36,null,"United Way","Collaboration Tool","Other"]
[170,"CIT Applications","Custom Dev","EZRA and the Sponsored Portal","Done","Dan Dwyer ","Dan Dwyer ","Nazrin Tingstrom","Customer mgs",97,40,2.4249999999999998,null,"EZRA and the Sponsored Portal","Research Administration"]
[171,"CIT Applications","Custom Dev","CR_ACK (Contributor Relations -- Acknowledgements)","Done","David Pinker","David Pinker, Colleen Drozd","Rich Marisa","customdev-support@cornell.edu",93,20,4.6500000000000004,null,"CR_ACK (Contributor Relations -- Acknowledgements)","Alumni Development","Collaboration Tool"]
[172,"CIT Applications","Custom Dev","doCUments (AA&D Document Management )","Done","David Pinker","David Pinker","Rich Marisa","customdev-support@cornell.edu",100,20,5,null,"doCUments (AA&D Document Management )","Alumni Development"]
[173,"CIT Applications","Custom Dev","JRP (Joint Records Processing)","Done","David Pinker","David Pinker","Rich Marisa ","customdev-support@cornell.edu",75,20,3.75,null,"JRP (Joint Records Processing)","Alumni Development","Collaboration Tool"]
[174,"CIT Applications","Custom Dev","Performance Dialogue","Done","Hayley Harris","HR","Hugh Edwards","spd-support-l@cornell.edu",38,20,1.9,null,"Performance Dialogue","HR- Other"]
[175,"CIT Applications","Custom Dev","Position Description","Done","Hayley Harris","HR","Hugh Edwards","spd-support-l@cornell.edu",97,20,4.8499999999999996,null,"Position Description","HR- Other"]
[176,"CIT Applications","Custom Dev","SUNY TRAN Stored Procedures  (part of Fac Inv)","Done","Jane Van DerZee","Jane Van DerZee","Nazrin Tingstrom","part of fac inv spt list",100,25,4,null,"SUNY TRAN Stored Procedures  (part of Fac Inv)","Facilities & Space Management"]
[177,"CIT Applications","Custom Dev","Facilities Inventory","Done","Jane Van Derzee & Lori Barry","Jane Van Derzee & Lori Barry","Hugh Edwards","email or call Hugh Edwards",100,40,2.5,null,"Facilities Inventory","Facilities & Space Management"]
[178,"CIT Applications","Custom Dev","Graduate Special Committee Request (GSC)","Done","Jason Kahabka","Jason Kahabka","Nazrin Tingstrom","gsc-support-l@cornell.edu",81,20,4.05,null,"Graduate Special Committee Request (GSC)","Academic Administration"]
[179,"CIT Applications","Custom Dev","DW Security Backend","Done","Jeff Christen","Jeff Christen","Mike Oltz","customdev-support@cornell.edu",76,20,3.8,null,"DW Security Backend","IT Utility"]
[180,"CIT Applications","Custom Dev","DW Security Password Change","Done","Jeff Christen","Jeff Christen","Hugh Edwards","customdev-support@cornell.edu",67,20,3.35,null,"DW Security Password Change","IT Utility"]
[181,"CIT Applications","Custom Dev","CCAB RFC Form","Done","Jim Haustein","Jim Haustein","Hugh Edwards","customdev-support@cornell.edu",82,20,4.0999999999999996,null,"CCAB RFC Form","IT Utility"]
[182,"CIT Applications","Custom Dev","COEA (Alternate Email)","Done","Jim Howell","Jim Howell","Nazrin Tingstrom","customdev-support@cornell.edu",77,20,3.85,null,"COEA (Alternate Email)","IT Utility"]
[183,"CIT Applications","Custom Dev","Special Conditions  (mailblaster)","Done","Joe Lalley ","Tom Young with Facilities, Office of Emergency Planning, University Communications and CUPD.","Nazrin Tingstrom","customdev-support@cornell.edu",94,20,4.7,null,"Special Conditions  (mailblaster)","Facilities & Space Management","Collaboration Tool"]
[184,"CIT Applications","Custom Dev","Emergency Mass Notification","Done","Joe Lally","Joe Lally","Nazrin Tingstrom","Facilities mgs list",94,20,4.7,null,"Emergency Mass Notification","Facilities & Space Management","Collaboration Tool"]
[185,"CIT Applications","Custom Dev","LaunchPad 2010","Done","Jon Atherton","Jon Atherton","Rich Marisa","basil-launchpad-support-l@cornell.edu",47,20,2.35,null,"LaunchPad 2010","Collaboration Tool"]
[186,"CIT Applications","Custom Dev","AdmissionsSS (Admissions Self-Service)","Done","Lloyd Hall","Lloyd Hall","Nazrin Tingstrom","admiss-support-l@cornell.edu",67,20,3.35,null,"https://confluence.cornell.edu/display/citapps/AdmissionsSS+%28Admissions+Self-Service%29\", In Janet Grays list","Admissions"]
[187,"CIT Applications","Custom Dev","Office of Fire Prevention and Control","Done","Ron Flynn","Ron Flynn","Hugh Edwards","customdev-support@cornell.edu",100,20,5,null,"Office of Fire Prevention and Control","Facilities & Space Management"]
[188,"CIT Applications","Custom Dev","NUBB (Network Usage Based Billing)","Done","Mscott Walters","Mscott Walters","Hugh Edwards, Mike Oltz","customdev-support@cornell.edu",77,45,1.711111111111111,null,"NUBB and WUBB (Network Usage Based Billing)","Finance- Other"]
[189,"CIT Applications","Custom Dev","CATS (Asset Transfer System)","Done","Nancy Abbott","DFA's capital assets team","Mike Oltz","customdev-support@cornell.edu",81,20,4.05,null,"CATS (Asset Transfer System), Minimal Support. This application is in the DFA ASI List and the BV is going to be provided by the unit.\n","Finance- Other"]
[190,"CIT Applications","Custom Dev","BVAT (Bill View Authorization Tool)","Done","NCS - Jolene Horton","NCS - Jolene Horton","Hugh Edwards","customdev-support@cornell.edu",90,20,4.5,null,"BVAT (Bill View Authorization Tool)"]
[191,"CIT Applications","Custom Dev","Coeus IRB","Done","ORIA (Amita Verma, Matthew Aldridge)","ORIA (Amita Verma, Matthew Aldridge)","Nazrin Tingstrom","customdev-support@cornell.edu",93,20,4.6500000000000004,null,"https://confluence.cornell.edu/display/citapps/Coeus+IRB, In Research List","Research Administration"]
[192,"CIT Applications","Custom Dev","COI (Conflict of Interest)","Done","ORIA-Amita Verma","ORIA-Amita Verma","Hugh Edwards","customdev-support@cornell.edu",100,30,3.3333333333333335,null,"https://confluence.cornell.edu/display/citapps/COI+%28Conflict+of+Interest%29\", in Research List","Research Administration"]
[193,"CIT Applications","Custom Dev","Key Management","Done","Peggy Matta","Peggy Matta","Hugh Edwards","customdev-support@cornell.edu",83,20,4.1500000000000004,null,"Key Management","Facilities & Space Management"]
[{"$f":"ROW(195:195)-1","v":194},"CIT Applications","Custom Dev","OUR (Office of University Registrar) Historic Imaged Transcripts","Done","Terry Thompson","Terry Thompson","Rich Marisa","our_citapps_support-l@cornell.edu",87,20,4.3499999999999996,null,"OUR (Office of University Registrar) Transcripts","Admissions","Student- Other"]
[195,"CIT Applications","Custom Dev","Graduation Manager","Done","Sarah Hale","Sarah Hale","Nazrin Tingstrom","gradmngsupport-l@cornell.edu",85,20,4.25,null,"https://confluence.cornell.edu/display/citapps/Graduation+Manager\", In Graduation List","Academic Administration","Student- Other"]
[196,"CIT Applications","Custom Dev","Online Service Agreements","Done","Scott Sheavly","Scott Sheavly","IWS Team","IWS Team",56,20,null,null,null,"Finance- Other"]
[197,"CIT Applications","Custom Dev","SJP (Student Job Postings)","Done","Susan Hitchcock","Susan Hitchcock","Mike Oltz","customdev-support@cornell.edu",70,20,3.5,null,"https://confluence.cornell.edu/display/citapps/SJP, Low support","Student- Other"]
[198,"CIT Applications","Custom Dev","HASP (Hazard Assessment Signage Program)","Done","Jim Greiger","Jim Greiger","Hugh Edwards","customdev-support@cornell.edu",93,20,4.6500000000000004,null,"HASP (Hazard Assessment Signage Program)","Facilities & Space Management"]
[199,"ILR","Conference Center","Access TV","Done","Ann Herson","Ann Herson","Access TV","Access TV",10,15,0.66666666666666663,null,"Functional Purpose: Facilities & Space Management","Facilities & Space Management"]
[200,"ILR","Dean Office","Activity Insights / Faculty Reporting","Done","Harry Katz","Theresa Woodhouse","Don Friedricksen","Don Friedricksen",null,null,0,null,"Academic Adminsitration","Academic Administration"]
[201,"ILR","Deans Office","Tableau","Done","Harry Katz","Theresa Woodhouse","Don Friedricksen","Don Friedricksen",null,null,0,null,"Human Resources","HR- Other"]
[202,"ILR","Extension","SDC II (Student Data Center)","Done","Joe Grasso","Renee Monroe","Jeff Bishop","Jeff Bishop",80,45,1.7777777777777777,null,"Academic Administration","Academic Administration"]
[203,"ILR","HCD","Salesforce","Done","Michael Serino","Donna Stone","Laura Robinson","Don Friedricksen",58,20,2.9,null,"Collaboration tool","Collaboration Tool"]
[204,"ILR","CAHRS","eSales Tracker","Done","Chris Collins","Jo Hagin","eSalesTracker.com","eSalesTracker.com",30,15,2,null,"Collaboration tool","Collaboration Tool"]
[205,"ILR","Catherwood Library","Contacts and Invoicing System","Done","Curtis Lyons","Curtis Lyons","Data Momentum","Data Momentum",21,15,1.4,null,"Collaboration tool","Collaboration Tool"]
[206,"ILR","Communications","Digital Signage Content Management","Done","Joe Zappala","Joanne Kenyon","Michael Radzik","Michael Radzik",23,15,1.5333333333333334,null,"Student other","Student- Other"]
[207,"ILR","Conference Center","Dean Evans Event Management System (EMS) ","Done","Ann Herson","Ann Herson","Don Friedricksen","Don Friedricksen",58,15,3.8666666666666667,null,"Facilities and Space Management","Facilities & Space Management"]
[208,"ILR","Student Services","Student Credit Summaries","Done","Laura Lewis","Jenn Weidner","Kelley Sullivan","Kelley Sullivan",69,15,4.5999999999999996,null,"Academic Administration","Academic Administration"]
[209,"ILR","Technology Services","CommonSpot","Done","Laura Robinson","David Demello","David Demello","ILR web team",53,20,2.65,null,"IT Utility","IT Utility"]
[210,"Law","Administration","Online Payment Application","Not Scored","Administration","Diane Cross - dsr2@cornell.edu","Law IT","Dave Semo -  djs16@cornell.edu",null,null,0,"Total cost < unit threshold","Approx 2 days per year","Finance- Other"]
[211,"Law","Administration","Cornell Law Review Subscription database","Not Scored","Administration","Susan Pado -  sgp6@cornell.edu","Law IT","Dave Semo -  djs16@cornell.edu",null,null,0,"Total cost < unit threshold","Approx 1 day per year","Academic Administration"]
[212,"Law","Administration","ILJ Subscription database","Not Scored","Administration","Susan Pado -  sgp6@cornell.edu","Law IT","Dave Semo -  djs16@cornell.edu",null,null,0,"Total cost < unit threshold","Approx 1 day per year","Academic Administration"]
[213,"Law","Administration","JLPP Subscription Database","Not Scored","Administration","Susan Pado -  sgp6@cornell.edu","Law IT","Dave Semo -  djs16@cornell.edu",null,null,0,"Total cost < unit threshold","Approx 1 day per year","Academic Administration"]
[214,"Law","Administration","Lawschool Holiday Party","Not Scored","Administration","Teather White -  tmw54@cornell.edu","Law IT","Dan Jones -  dcj8@cornell.edu",null,null,0,"Total cost < unit threshold","Approx 2 hours/year programming time - saves more time than that for the Administration office by providing detailed catering information.","HR- Other"]
[215,"Law","Administration and Dean's Office","eDirectory","BV Complete","Administration and Dean's Office","Teather White -  tmw54@cornell.edu/Rachel Lukens -  rll35@cornell.edu","Law IT","Maren Herman -  mh103@cornell.edu",null,null,0,"Other(add comment)","Keep. Approx 3 weeks/year - plans to change code (flash problems w/ browser) & expand data being collected. Combined with CLS Online Directory (Communication_24)","HR- Other","IT Utility"]
[216,"Law","Admissions","Archiving  Electronic Student Folders","Not Scored","Admissions","Pam Eaton - pse4@cornell.edu","Law IT","Maren Herman -  mh103@cornell.edu",null,null,0,"Total cost < unit threshold",null,"Admissions"]
[217,"Law","Admissions","Admissions - Travel Subsidy","Not Scored","Admissions","Patina Janisko -  pc52@cornell.edu","Law IT","Dan Jones -  dcj8@cornell.edu",null,null,0,"Total cost < unit threshold","Unless changes or additions are made to this program, time should remain at about 4 hours/year","Admissions"]
[218,"Law","Admissions","Admissions - Viewbook Request","Not Scored","Admissions","Patina Janisko -  pc52@cornell.edu","Law IT","Dan Jones -  dcj8@cornell.edu",null,null,0,"Total cost < unit threshold","Approx 2 hours/year to update program to reflect current admissions cycle year","Admissions"]
[219,"Law","Admissions","Admitted Student Day RSVP","Not Scored","Admissions","Sarah Ann Busse  - sal13@cornell.edu","Law IT","Dan Jones -  dcj8@cornell.edu",null,null,0,"Total cost < unit threshold","Since this changes yearly, unless additional changes (besides dates and activities) time spend should be about six hours/year","Admissions"]
[220,"Law","Admissions ","Admissions - JD/LLM/JSD application process and database","BV Complete","Admissions ","Patina Janisko - pc522cornell.edu","Law IT","Maren Herman -  mh103@cornell.edu",96,{"$error":"#N/A"},0,null,"Keep. Approx 3 weeks/year - plan to create SQL stored procs for importing data from ACES2 to Registrar db","Admissions"]
[221,"Law","Alumni","Reunion","Not Scored","Alumni","Kristine Hoffmeister - ksh54@cornell.edu","Law IT","Dan Jones -  dcj8@cornell.edu",null,null,0,"Not in use","Will be discontinued. Harris Connect being used centrally currently.","Alumni Development"]
[222,"Law","Alumni","Alumni - Events online registration","Not Scored","Alumni","Kristine Hoffmeister - ksh54@cornell.edu","Law IT","Dan Jones -  dcj8@cornell.edu",null,null,0,"Total cost < unit threshold","this is stable, and the only usual action needed is to comment out the SQL Injection prevention code to permit addition of links to .jsp pages.  Currently, it takes about 6 hours/year to maintain this program.","Alumni Development"]
[223,"Law","Alumni","Class Notes","Not Scored","Alumni","Kristine Hoffmeister - ksh54@cornell.edu","Law IT","Dave Semo -  djs16@cornell.edu",null,null,0,"Total cost < unit threshold","Approx 1 day per year","Alumni Development"]
[224,"Law","Alumni","Class Notes Administration page","Not Scored","Alumni","Kristine Hoffmeister - ksh54@cornell.edu","Law IT","Dave Semo -  djs16@cornell.edu",null,null,0,"Total cost < unit threshold","Approx 1 hour per year","Alumni Development"]
[225,"Law","Alumni","Merchandise","Not Scored","Alumni","Kristine Hoffmeister - ksh54@cornell.edu","Law IT","Dan Jones -  dcj8@cornell.edu",null,null,0,"Total cost < unit threshold","This is a stable application, and consumes Approx 4 hrs/ year - this will go up if changes or additions are requested.","Alumni Development"]
[226,"Law","Alumni","Moot Court Club Membership","Not Scored","Alumni","Kristine Hoffmeister - ksh54@cornell.edu","Law IT","Dan Jones -  dcj8@cornell.edu",null,null,0,"Total cost < unit threshold","Approx 2 hrs/ year","Alumni Development"]
[227,"Law","Alumni","Alumni -Special Gatherings/Alumni International Symposiums","BV Complete","Alumni","Kristine Hoffmeister - ksh54@cornell.edu","Law IT","Dan Jones -  dcj8@cornell.edu",81,{"$error":"#N/A"},0,null,"keep - these special reunion requests are all different, and can take up to 80 hours/year on average","Alumni Development"]
[228,"Law","Avon","Conference Management and Online Registration","Not Scored","Avon","Elizabeth Brundige - eb456@cornell.edu","Law IT","Dan Jones -  dcj8@cornell.edu",null,null,0,"Other(add comment)","Grouped.keep. Conference Related. This varies for every event, and can take up to 40 hours/conference (usually once per year)","Academic Administration"]
[229,"Law","Avon","User Subscriptions","Not Scored","Avon","Elizabeth Brundige - eb456@cornell.edu","Law IT","Dan Jones -  dcj8@cornell.edu",null,null,0,"Total cost < unit threshold","Approx 2 hrs/ year for maintainance - changes will result in more hours/year","Academic Administration"]
[230,"Law","Law IT","Group Conference Registration and Management for Law School (Avon)","BV Complete","Avon","Elizabeth Brundige - eb456@cornell.edu\nAndrew Courtney Orr - aco37@cornell.edu","Law IT","Dan Jones -  dcj8@cornell.edu",75,{"$error":"#N/A"},0,null,"This is a group of applications: ILJ Symposium Management and Online Registration (ILI) and Conference Management and Online Registration (Avon)","Academic Administration"]
[231,"Law","Career Office","Create Student Schedule Listings for Symplicity","Not Scored","Career Office"," Donna Dingy - dad28@cornell.edu","Law IT","Dave Semo -  djs16@cornell.edu",null,null,0,"Total cost < unit threshold","Approx 4 hrs per year","Career Services"]
[232,"Law","Career Office","Law Career Student Export","Not Scored","Career Office"," Donna Dingy - dad28@cornell.edu","Law IT","Dave Semo -  djs16@cornell.edu",null,null,0,"Total cost < unit threshold","Approx 4 hrs per year","Career Services"]
[233,"Law","Clarke Program","Annual report","Not Scored","Clarke Program","Guillaume Ratel - gr37@cornell.edu","Law IT","Maren Herman -  mh103@cornell.edu",null,null,0,"Total cost < unit threshold","Approx 2 days/year","Academic Administration"]
[234,"Law","Communications","CLS Online Directory and eDirectory database (combined)",null,"Communications","Jackie Dowdell - jad43/Teather White - tmw54","Law IT","Dan Jones -  dcj8@cornell.edu/Maren Herman - mh103@cornell.edu",68,{"$error":"#N/A"},0,null,"keep - this typically takes 16-24 hours/year (updating for new class years, and creating archives), in addition to 2+ weeks/year data and photo collection/maintenance","HR- Other","IT Utility"]
[235,"Law","Communications","Law School Online Forum","BV Complete","Communications","Jackie Dowdell - jad43@cornell.edu","Law IT","Maren Herman -  mh103@cornell.edu",48,{"$error":"#N/A"},0,null,"keep- 2 weeks/year","Other"]
[236,"Law","Communications","Friends database","Not Scored","Communications","Martha Patricia Fitzgerald","Law IT","Dave Semo -  djs16@cornell.edu",null,null,0,"Total cost < unit threshold","Approx 2 hrs per year","Other"]
[237,"Law","Communications","AxisTV and Add on Apps","BV Complete","Communications","Martha Patricia Fitzgerald","Law IT","Dan Jones -  dcj8@cornell.edu",48,{"$error":"#N/A"},0,null,"keep - this is currently stable at 10hours/year, and can consume more hours/year if changes are requested","Other"]
[238,"Law","Communications","Law School Website & Cornell Law School Mobile website & News Grid","BV Complete","Communications","Martha Patricia Fitzgerald","Law IT","Paul Weber - prw1@cornell.edu",60,{"$error":"#N/A"},0,null,"keep.  Very actively supported.","Other"]
[239,"Law","Communications","OpenEMM","Not Scored","Communications","Tricia Barry - tmr82@cornell.edu","Law IT","Maren Herman -  mh103@cornell.edu",null,null,0,"Total cost < unit threshold","Approx 1 day/year","Other"]
[240,"Law","Facilitles","Facilitles - Cashbox","Not Scored","Facilitles","Mark Hickey -  mdh242@cornell.edu","Law IT","Dave Semo -  djs16@cornell.edu",null,null,0,"Total cost < unit threshold","Approx 2 hrs per year","Facilities & Space Management"]
[241,"Law","Facilitles","Facilitles - Tickets","Not Scored","Facilitles","Mike Pado - mjp20@cornell.edu","Law IT","Dave Semo -  djs16@cornell.edu",null,null,0,"Total cost < unit threshold","Approx 1 hr per year","Facilities & Space Management"]
[242,"Law","Facilitles","Keys Database","Not Scored","Facilitles","Mike Pado - mjp20@cornell.edu","Law IT","Dave Semo -  djs16@cornell.edu",null,null,0,"Total cost < unit threshold","Approx 2 hrs per year","Facilities & Space Management"]
[243,"Law","HR","Faculty Bio Updater","Not Scored","HR","Cheryl A Winder - cab22@cornell.edu","Law IT","Dan Jones -  dcj8@cornell.edu",null,null,0,"Total cost < unit threshold","Approx 4 hrs/ year - this is currently stable, but will require more hours if changes are requested.","HR- Other","Academic Administration"]
[244,"Law","ILJ","ILJ Symposium Management and Online Registration","Not Scored","ILJ","Andrew Courtney Orr - aco37@cornell.edu","Law IT","Dan Jones -  dcj8@cornell.edu",null,null,0,null,"Keep- Grouped with Conference Registration and Management. Conference related. Approx 12 hrs/ year - creating and updating the registration site, and also creating and updating the event site on the Law School website","Academic Administration"]
[245,"Law","International","JSD admitted database","Not Scored","International","Charlie Cramton-cdc7@cornell.edu","Law IT","Maren Herman -  mh103@cornell.edu",null,null,0,"Total cost < unit threshold","Approx 24 hrs/ year","Academic Administration"]
[246,"Law","International","Semester Abroad Application and Management pages","Not Scored","International","Larry Bush -  lsb13@cornell.edu","Law IT","Dan Jones -  dcj8@cornell.edu",null,null,0,"Other(add comment)","keep- new app being developed currently. - Thus far it's taken about 40 hours total, with further development time to come. Busness contact declined to participate.","Academic Administration"]
[247,"Law","International ","LLM admitted database","Not Scored","International ","Charlie Cramton-cdc7@cornell.edu","Law IT","Maren Herman -  mh103@cornell.edu",null,null,0,"Total cost < unit threshold","Approx 2 hrs/ year","Academic Administration"]
[248,"Law","International ","Paris","Not Scored","International ","Larry Bush - lsb13@cornell.edu","Law IT","Maren Herman -  mh103@cornell.edu",null,null,0,"Other(add comment)","keep -  Approx 3 weeks/year - plans to redevelop for web. Business contact declined to participate.","Academic Administration"]
[249,"Law","Law IT","Imail Server ","Not Scored","Law IT","Ben Lem - bl46@cornell.edu","Law IT","Ben Lem - bl46@cornell.edu",null,null,null,"IT staff use only"," Listserve - 1 week/year + $895 license/year","IT Utility"]
[250,"Law","Law IT","AV Online Requests","Not Scored","Law IT","Cari Jean - clj25@cornell.edu","Law IT","Dan Jones -  dcj8@cornell.edu",null,null,0,"IT staff use only","keep","IT Utility"]
[251,"Law","Law IT","Exam 4  software (Extegrity, Inc.)","BV Complete","Law IT","Nan Colvin - nac7@cornell.edu","Law IT","Juan Lube -  jgl23@cornell.edu",68,null,0,null,"Exam support  4weeks/year for 3 techs. Juan would like to change from the current PDF form to an online web form.","Academic Administration"]
[252,"Law","Law IT","AntiSpam/Web Inspector, Comp Assoc","Not Scored","Law IT","Paul Weber prw1@cornell.edu","Law IT","Juan Lube -  jgl23@cornell.edu",null,null,0,"IT staff use only","Keep","IT Utility"]
[253,"Law","Law IT","Apple  Rstudio for Mac","Not Scored","Law IT","Paul Weber prw1@cornell.edu","Law IT","Juan Lube -  jgl23@cornell.edu",null,null,0,"IT staff use only","Also under the unit's cost threshold","IT Utility"]
[254,"Law","Law IT","Apple Remote Desktop","Not Scored","Law IT","Paul Weber prw1@cornell.edu","Law IT","Juan Lube -  jgl23@cornell.edu",null,null,0,"IT staff use only","Also under the unit's cost threshold","IT Utility"]
[255,"Law","Law IT","Camtasia Studio 6 ","Not Scored","Law IT","Paul Weber prw1@cornell.edu","Law IT","Dan Jones -  dcj8@cornell.edu",null,null,0,"IT staff use only","Videos from desktop and put it online - used to create tutorials (18 hours/year for dcj8)- Prof Mollencamp ","IT Utility"]
[256,"Law","Law IT","Coda","Not Scored","Law IT","Paul Weber prw1@cornell.edu","Law IT","Paul Weber - prw1@cornell.edu",null,null,0,"IT staff use only","Also under the unit's cost threshold","IT Utility"]
[257,"Law","Law IT","DeepFreeze","Not Scored","Law IT","Paul Weber prw1@cornell.edu","Law IT","Juan Lube -  jgl23@cornell.edu",null,null,0,"IT staff use only",null,"IT Utility"]
[{"$f":"ROW(259:259)-1","v":258},"Law","Law IT","Disk Warrior","Not Scored","Law IT","Paul Weber prw1@cornell.edu","Law IT","Juan Lube -  jgl23@cornell.edu",null,null,0,"IT staff use only","Used to partition disks","IT Utility"]
[259,"Law","Law IT","Dr Detective ","Not Scored","Law IT","Paul Weber prw1@cornell.edu","Law IT","Michale d'Estries -  md262@cornell.edu",null,null,0,"IT staff use only",null,"IT Utility"]
[260,"Law","Law IT","Export Address Book","Not Scored","Law IT","Paul Weber prw1@cornell.edu","Law IT","Juan Lube -  jgl23@cornell.edu",null,null,0,"IT staff use only",null,"IT Utility"]
[261,"Law","Law IT","Filemaker Pro 11","Not Scored","Law IT","Paul Weber prw1@cornell.edu","Law IT","Juan Lube -  jgl23@cornell.edu",null,null,0,"IT staff use only",null,"IT Utility"]
[262,"Law","Law IT","GeSWall Pro","Not Scored","Law IT","Paul Weber prw1@cornell.edu","Law IT","Juan Lube -  jgl23@cornell.edu",null,null,null,"IT staff use only","Sandboxes applications to keep virus off","IT Utility"]
[263,"Law","Law IT","JW Player ","Not Scored","Law IT","Paul Weber prw1@cornell.edu","Law IT","Juan Lube -  jgl23@cornell.edu",null,null,null,"IT staff use only","Play videos on HTML files on server so can be used on any platform","IT Utility"]
[264,"Law","Law IT","Perfect Installer     ","Not Scored","Law IT","Paul Weber prw1@cornell.edu","Law IT","Ben Lem - bl46@cornell.edu",null,null,null,"IT staff use only","Also under the unit's cost threshold","IT Utility"]
[265,"Law","Law IT","PowerMapper Pro4","Not Scored","Law IT","Paul Weber prw1@cornell.edu","Law IT","Juan Lube -  jgl23@cornell.edu",null,null,null,"IT staff use only",null,"IT Utility"]
[266,"Law","Law IT","RichTextBox Pro","Not Scored","Law IT","Paul Weber prw1@cornell.edu","Law IT","Juan Lube -  jgl23@cornell.edu",null,null,null,"IT staff use only","Also under the unit's cost threshold","IT Utility"]
[267,"Law","Law IT","SearchandReplace","Not Scored","Law IT","Paul Weber prw1@cornell.edu","Law IT","Juan Lube -  jgl23@cornell.edu",null,null,null,"IT staff use only",null,"IT Utility"]
[268,"Law","Law IT","Snagit!","Not Scored","Law IT","Paul Weber prw1@cornell.edu","Law IT","Juan Lube -  jgl23@cornell.edu",null,null,null,"IT staff use only",null,"IT Utility"]
[269,"Law","Law IT","Squeeze","Not Scored","Law IT","Paul Weber prw1@cornell.edu","Law IT","Michale d'Estries -  md262@cornell.edu",null,null,null,"IT staff use only",null,"IT Utility"]
[270,"Law","Law IT","Stopzilla","Not Scored","Law IT","Paul Weber prw1@cornell.edu","Law IT","Juan Lube -  jgl23@cornell.edu",null,null,null,"IT staff use only",null,"IT Utility"]
[271,"Law","Law IT","TeamViewer","Not Scored","Law IT","Paul Weber prw1@cornell.edu","Law IT","Juan Lube -  jgl23@cornell.edu",null,null,0,"IT staff use only","remote desktop","IT Utility"]
[272,"Law","Law IT","Textmate","Not Scored","Law IT","Paul Weber prw1@cornell.edu","Law IT","Juan Lube -  jgl23@cornell.edu",null,null,null,"IT staff use only",null,"IT Utility"]
[273,"Law","Law IT","VMFusion","Not Scored","Law IT","Paul Weber prw1@cornell.edu","Law IT","Juan Lube -  jgl23@cornell.edu",null,null,null,"IT staff use only",null,"IT Utility"]
[274,"Law","Law IT","Wondershare Video Converter","Not Scored","Law IT","Paul Weber prw1@cornell.edu","Law IT","Michale d'Estries -  md262@cornell.edu",null,null,null,"IT staff use only",null,"IT Utility"]
[275,"Law","Law IT","Detection Master Thumbs","Not Scored","Law IT","Paul Weber prw1@cornell.edu","Law IT","Juan Lube -  jgl23@cornell.edu",null,null,0,"Not in use","Software package used once","IT Utility"]
[276,"Law","Law IT","Vbrick","Not Scored","Law IT","Paul Weber prw1@cornell.edu","Law IT","Michale d'Estries -  md262@cornell.edu",null,null,null,"Not in use",null,"IT Utility"]
[277,"Law","Law IT","CounterSpy Ent Renewal","Not Scored","Law IT","Paul Weber prw1@cornell.edu","Law IT","Gail Howser -  gmr3@cornell.edu",null,null,0,"Total cost < unit threshold","Security software for minimize malware","IT Utility"]
[278,"Law","Law IT","DiscLabel","Not Scored","Law IT","Paul Weber prw1@cornell.edu","Law IT","Michale d'Estries -  md262@cornell.edu",null,null,0,"Total cost < unit threshold","Recordings eg for convocation, CD copies sold. CD disc duplicator.","IT Utility"]
[279,"Law","Law IT","Dragon","Not Scored","Law IT","Paul Weber prw1@cornell.edu","Law IT","Juan Lube -  jgl23@cornell.edu",null,null,0,"Total cost < unit threshold","Speech software- few users eg Dean","IT Utility"]
[280,"Law","Law IT","Endnote X3","Not Scored","Law IT","Paul Weber prw1@cornell.edu","Law IT","Juan Lube -  jgl23@cornell.edu",null,null,0,"Total cost < unit threshold",null,"IT Utility"]
[281,"Law","Law IT","ExamBuster","Not Scored","Law IT","Paul Weber prw1@cornell.edu","Law IT","Juan Lube -  jgl23@cornell.edu",null,null,0,"Total cost < unit threshold",null,"IT Utility"]
[282,"Law","Law IT","Flash Server","Not Scored","Law IT","Paul Weber prw1@cornell.edu","Law IT","Michale d'Estries -  md262@cornell.edu",null,null,null,"Total cost < unit threshold","May be upgrading the hardware. Used for streaming videos.","IT Utility"]
[283,"Law","Law IT","Flip4Mac wmv player Pro","Not Scored","Law IT","Paul Weber prw1@cornell.edu","Law IT","Juan Lube -  jgl23@cornell.edu",null,null,null,"Total cost < unit threshold",null,"IT Utility"]
[284,"Law","Law IT","Ghost","Not Scored","Law IT","Paul Weber prw1@cornell.edu","Law IT","Paul Weber prw1@cornell.edu",null,null,null,"Total cost < unit threshold","University license, about $1800/ year currently.","IT Utility"]
[285,"Law","Law IT","Kace Tools","Not Scored","Law IT","Paul Weber prw1@cornell.edu","Law IT","Ben Lem - bl46@cornell.edu",null,null,0,"Total cost < unit threshold","already purchased, ticketing system and for software- low cost in next 3 years.","IT Utility"]
[286,"Law","Law IT","Keyboard Maestro","Not Scored","Law IT","Paul Weber prw1@cornell.edu","Law IT","Juan Lube -  jgl23@cornell.edu",null,null,null,"Total cost < unit threshold",null,"IT Utility"]
[287,"Law","Law IT","Mac Parallels Desktop ","Not Scored","Law IT","Paul Weber prw1@cornell.edu","Law IT","Juan Lube -  jgl23@cornell.edu",null,null,null,"Total cost < unit threshold","Allos running different OS in Mac","IT Utility"]
[288,"Law","Law IT","Quickbooks Accounting Pro 2012 ","Not Scored","Law IT","Paul Weber prw1@cornell.edu","Law IT","Barbar Holden-Smith -  bjh12@cornell.edu",null,null,null,"Total cost < unit threshold","Manage intl law association used by Vice Dean","IT Utility"]
[289,"Law","Law IT","Skype","Not Scored","Law IT","Paul Weber prw1@cornell.edu","Law IT","Michale d'Estries -  md262@cornell.edu",null,null,null,"Total cost < unit threshold",null,"IT Utility"]
[290,"Law","Law IT","Web Crusher","Not Scored","Law IT","Paul Weber prw1@cornell.edu","Law IT","Paul Weber prw1@cornell.edu",null,null,null,"Total cost < unit threshold","Used to reduce the size of images","IT Utility"]
[291,"Law","Law IT","XScope","Not Scored","Law IT","Paul Weber prw1@cornell.edu","Law IT","Paul Weber prw1@cornell.edu",null,null,null,"Total cost < unit threshold",null,"IT Utility"]
[292,"Law","Law IT","Final Cut Studio /Adobe CS5 Production Premium ","BV Complete","Law IT","Michale d'Estries -  md262","Law IT","Michale d'Estries -  md262@cornell.edu",65,{"$error":"#N/A"},null,null,"Keep. Process videos","Academic Administration"]
[293,"Law","Law IT","Mediasite ","BV Complete","Law IT","Michale d'Estries -  md262","Law IT","Michale d'Estries -  md262@cornell.edu",65,{"$error":"#N/A"},null,null,"Keep. $18,000/ year license. Records classes for students and faculty and accessed through Blackboard.","Academic Administration"]
[294,"Law","Law IT","WordPerfect Office ","Not Scored","Law IT","Paul Weber prw1@cornell.edu","Law IT","Paul Weber prw1@cornell.edu",null,null,null,null,"Keep. Talk to Barbara Holden-Smith. Costs are above threshold.","Academic Administration"]
[295,"Law","Legal Aid","Legal Aid Client database","BV Complete","Legal Aid","Susan Tosto","Law IT","Dave Semo - djs16@cornell.edu",78,{"$error":"#N/A"},null,null,"Keep. Going forward will need support. 1 hr per year;  Will require several weeks if it is determined tha the application needs to be redesigned for new clinic.","Academic Administration"]
[296,"Law","Public Service","Connect program","BV Complete","Public Service","Karen Comstock -  kvc2@cornell.edu","Law IT","Dave Semo -  djs16@cornell.edu",70,{"$error":"#N/A"},0,null,"Keep. In progress.  Will probably require 1 week more, then 1 day/year","Academic Administration"]
[297,"Law","Public Service","PSANominations","Not Scored","Public Service","Karen Comstock - kvc2@cornell.edu","Law IT","Dan Jones -  dcj8@cornell.edu",null,null,0,"total cost < unit threshold","Requires about 8 hours/year to maintain","Academic Administration"]
[298,"Law","Public Service","Graduate Fellowship Grant","BV Complete","Public Service","Karen Comstock - kvc2@cornell.edu","Law IT","Dan Jones -  dcj8@cornell.edu",75,{"$error":"#N/A"},0,null,"Keep. Probably only used for 2011 - 2012 - custom application for graduated law students - approx. 60 hours to create and maintain to this point","Academic Administration"]
[299,"Law","Public Service","PIF Grant","BV Complete","Public Service","Karen Comstock - kvc2@cornell.edu","Law IT","Dan Jones -  dcj8@cornell.edu",90,{"$error":"#N/A"},0,null,"Keep. Close to threshold, may need maintenance eg. When rules are changed. Created for 2009-2010 year, used yearly since then.  Approx 16 hours/year to maintain","Academic Administration"]
[300,"Law","Registrar","Meeting Room Manager (NetSimplicity, Inc.)",null,"Registrar","Lisa Carberry","Law IT","Dave Semo -  djs16@cornell.edu",68,{"$error":"#N/A"},0,null,"Keep. Approximately 2 weeks per year to be spent managing data, users and background programming + $3,850 license/year","Facilities & Space Management"]
[301,"Law","Registrar","Bar Exam Spreadsheets","Not Scored","Registrar","Nan Colvin - nac7@cornell.edu","Law IT","Dan Jones -  dcj8@cornell.edu",null,null,0,"Total cost < unit threshold","This is a mature and stable application, and requires about 4 hours/year to maintain","Academic Administration"]
[302,"Law","Registrar","BookList","Not Scored","Registrar","Nan Colvin - nac7@cornell.edu","Law IT","Dan Jones -  dcj8@cornell.edu",null,null,0,"Total cost < unit threshold","This is a stable application, and requires 4 hours/year to maintain","Academic Administration"]
[303,"Law","Registrar","Class Year Email Lists","Not Scored","Registrar","Nan Colvin - nac7@cornell.edu","Law IT","Dan Jones -  dcj8@cornell.edu",null,null,0,"Total cost < unit threshold","This is a mature and stable application, and requires about 4 hours/year to maintain","Academic Administration"]
[304,"Law","Registrar","CLSA Course Evaluations","Not Scored","Registrar","Nan Colvin - nac7@cornell.edu","Law IT","Dave Semo -  djs16@cornell.edu",null,null,0,"Total cost < unit threshold","3 days per year","Academic Administration"]
[305,"Law","Registrar","Concentration Declarations","Not Scored","Registrar","Nan Colvin - nac7@cornell.edu","Law IT","Dan Jones -  dcj8@cornell.edu",null,null,0,"Total cost < unit threshold","This is a mature and stable application, and requires about 4 hours/year to maintain","Academic Administration"]
[306,"Law","Registrar","Course Evaluations","Not Scored","Registrar","Nan Colvin - nac7@cornell.edu","Law IT","Dan Jones -  dcj8@cornell.edu",null,null,0,"Total cost < unit threshold","This is a mature and stable application, and requires about 8 hours/year to maintain","Academic Administration"]
[307,"Law","Registrar","Dean's List MPR/Rank","Not Scored","Registrar","Nan Colvin - nac7@cornell.edu","Law IT","Dave Semo -  djs16@cornell.edu",null,null,0,"Total cost < unit threshold","1 day/year","Academic Administration"]
[308,"Law","Registrar","Lockers","Not Scored","Registrar","Nan Colvin - nac7@cornell.edu","Law IT","Dan Jones -  dcj8@cornell.edu",null,null,0,"Total cost < unit threshold","This is a stable and mature application, and requires about 4 hours/year to maintain and update","Academic Administration"]
[309,"Law","Registrar","Move PreRegistration/Add/Drop data to StuCourse","Not Scored","Registrar","Nan Colvin - nac7@cornell.edu","Law IT","Dave Semo -  djs16@cornell.edu",null,null,0,"Total cost < unit threshold","2 days/year","Academic Administration"]
[310,"Law","Registrar","PreRegistration","Not Scored","Registrar","Nan Colvin - nac7@cornell.edu","Law IT","Dan Jones -  dcj8@cornell.edu",null,null,0,"Total cost < unit threshold","This is a mature application, and requires about 16 hours/year to maintain and make minor updates","Academic Administration"]
[311,"Law","Registrar","Registrar Pinkforms","Not Scored","Registrar","Nan Colvin - nac7@cornell.edu","Law IT","Dan Jones -  dcj8@cornell.edu",null,null,0,"Total cost < unit threshold","This is a mature and stable application, and requires about 8 hours/year to maintain","Academic Administration"]
[312,"Law","Registrar","Schedule Book/Course List","Not Scored","Registrar","Nan Colvin - nac7@cornell.edu","Law IT","Dave Semo -  djs16@cornell.edu",null,null,0,"Total cost < unit threshold","1 day/year","Academic Administration"]
[313,"Law","Registrar","Special Emails","Not Scored","Registrar","Nan Colvin - nac7@cornell.edu","Law IT","Dan Jones -  dcj8@cornell.edu",null,null,0,"Total cost < unit threshold","This is a stable and mature application, and requires about 4 hours/year to maintain and update","Academic Administration"]
[314,"Law","Registrar","SpecialNotices","Not Scored","Registrar","Nan Colvin - nac7@cornell.edu","Law IT","Dan Jones -  dcj8@cornell.edu",null,null,0,"Total cost < unit threshold","This is a stable application, and requires 4 hours/year to maintain","Academic Administration"]
[315,"Law","Registrar","StuCourse","Not Scored","Registrar","Nan Colvin - nac7@cornell.edu","Law IT","Dan Jones -  dcj8@cornell.edu",null,null,0,"Total cost < unit threshold","This is a mature and stable application, and unless changes are required (as happened for Spring 2012!), requires about 16 hours/year to maintain","Academic Administration"]
[316,"Law","Registrar","Student Actions","Not Scored","Registrar","Nan Colvin - nac7@cornell.edu","Law IT","Dave Semo -  djs16@cornell.edu",null,null,0,"Total cost < unit threshold","1 day/year","Academic Administration"]
[317,"Law","Registrar","Student Address Management","Not Scored","Registrar","Nan Colvin - nac7@cornell.edu","Law IT","Dan Jones -  dcj8@cornell.edu",null,null,0,"Total cost < unit threshold","This is a mature and stable application, and requires about 4 hours/year to maintain","Academic Administration"]
[318,"Law","Registrar","Student Course Questionnaire","Not Scored","Registrar","Nan Colvin - nac7@cornell.edu","Law IT","Dave Semo -  djs16@cornell.edu",null,null,0,"Total cost < unit threshold","1 day/year","Academic Administration"]
[319,"Law","Registrar","Update Class Year Status for New Academic Year","Not Scored","Registrar","Nan Colvin - nac7@cornell.edu","Law IT","Dave Semo -  djs16@cornell.edu",null,null,0,"Total cost < unit threshold","1 hr per year","Academic Administration"]
[320,"Law","Registrar","Lottery, Pre-registration and Add-Drop systems (Combined)","BV Complete","Registrar","Nan Colvin - nac7@cornell.edu","Law IT","Dan Jones -  dcj8@cornell.edu",93,{"$error":"#N/A"},0,null,"Keep. This is a mature and stable application, and unless changes are required, requires about 16 hours/year to maintain","Academic Administration"]
[321,"Law","Registrar","Upload new students to University PeopleSoft App","Not Scored","Registrar","Nan Colvin - nac7@cornell.edu","Law IT","Dave Semo -  djs16@cornell.edu",null,null,0,"Total cost < unit threshold","3 days/ year","Academic Administration"]
[{"$f":"ROW(323:323)-1","v":322},"Law","Registrar","Blackboard -  Populate with Courses","BV Complete","Registrar","Nan Colvin - nac7@cornell.edu","Law IT","Dan Jones -  dcj8@cornell.edu",43,{"$error":"#N/A"},0,null,"Keep. Supporting the Law School Blackboard requirements consumes on average 80 hours/semester - this includes updating the programs that generate the batch files used to update enrollments, and also creating new student/TA/Instructor accounts, and creating new course sites.  It also includes creating, storing, and restoring archive files.","Academic Administration"]
[323,"Law","Registrar","Course  Management System","BV Complete","Registrar","Nan Colvin - nac7@cornell.edu","Law IT","Dan Jones -  dcj8@cornell.edu",100,{"$error":"#N/A"},0,null,"Keep. Check with Nan on opportunity to combine with other course management related apps. This is a stable and mature application, and requires about 16 hours/year to maintain and update","Academic Administration"]
[324,"Law","Registrar","Grade Portal","BV Complete","Registrar","Nan Colvin - nac7@cornell.edu","Law IT","Dave Semo -  djs16@cornell.edu",97,{"$error":"#N/A"},0,null,"Keep. Approximately 1 week per year required for programming and support","Academic Administration"]
[325,"Law","Registrar","Lottery","BV Complete","Registrar","Nan Colvin - nac7@cornell.edu","Law IT","Dave Semo - djs16@cornell.edu",null,null,null,null,"Keep. 3 weeks to redevelop from scratch","Academic Administration"]
[326,"Law","Registrar","Personalized Letters App",null,"Registrar","Nan Colvin - nac7@cornell.edu","Law IT","Dave Semo -  djs16@cornell.edu",null,{"$error":"#REF!"},0,null,"Keep. Between 1 and 2 weeks required","Academic Administration"]
[327,"Law","Registrar","Database Application Query Tool and Reports (MS Access)","BV Complete","Registrar","Nan Colvin - nac7@cornell.edu","Law IT","Maren Herman -  mh103@cornell.edu",91,{"$error":"#REF!"},0,null,"Keep. Approx  2weeks/year - special requests","Academic Administration"]
[328,"Law","Registrar","SeatGen seating chart software (AppointLink, Inc.)","BV Complete","Registrar","Nan Colvin - nac7@cornell.edu","Law IT","Maren Herman -  mh103@cornell.edu",43,{"$error":"#N/A"},0,null,"Keep. Approx 3 weeks/year  + $1,560 license/year","Academic Administration"]
[329,"Law","Registrar","Unofficial Grade Reports","BV Complete","Registrar","Nan Colvin - nac7@cornell.edu","Law IT","Maren Herman -  mh103@cornell.edu",85,{"$error":"#N/A"},0,null,"Keep. Currently redeveloping in ColdFusion - possible 1-2 week/year to maintain, depending on change requests","Academic Administration"]
[330,"Law","Registrar","Room Scheduler",null,"Registrar","Nancy Osborn - no23@cornell.edu","Law IT","Dave Semo - djs16@cornell.edu/Maren Herman -  mh103@cornell.edu",{"$error":"#REF!"},{"$error":"#N/A"},0,null,"Keep. 1 to 2 weeks to redevelop","Academic Administration"]
[331,"Law","Registrar"," Exam Archives","Not Scored","Registrar","Pat Halstead - paf7@cornell.edu","Law IT","Dan Jones -  dcj8@cornell.edu",91,{"$error":"#N/A"},0,"Total cost < unit threshold","This is a mature and stable application, and requires about 4 hours/year to maintain","Academic Administration"]
[332,"CIT","SUPPORT","Blogs",null,"Diane Sempler","Benoit McNicoll ",null,null,38,20,1.9,null,null,"Collaboration Tool"]
[333,"CIT","SUPPORT","CCAB Tool",null,"Jim Haustein","Jim Haustein",null,null,82,20,4.0999999999999996,null,null,"IT Utility"]
[334,"CIT","SUPPORT","Confluence",null,"Diane Sempler","Benoit McNicoll ",null,null,67,25,2.68,null,null,"Collaboration Tool"]
[335,"CIT","SUPPORT","HDInternal",null,"Ron Seccia","Ron Seccia",null,null,35,15,2.3333333333333335,null,null,"IT Utility"]
[336,"CIT","SUPPORT","HDWiki",null,"Ron Seccia","Ron Seccia",null,null,36,15,2.4,null,null,"IT Utility","Collaboration Tool"]
[337,"CIT","SUPPORT","HP Quality Center",null,"Jan Clayton","Jan Clayton",null,null,46,20,2.2999999999999998,null,null,"IT Utility"]
[338,"CIT","SUPPORT","HP Quick Test Pro",null,"Jan Clayton","Jan Clayton",null,null,56,20,2.8,null,null,"IT Utility"]
[339,"CIT","SUPPORT","IBM Rationalizer Tester",null,"Jan Clayton","Jan Clayton",null,null,56,25,2.2400000000000002,null,null,"IT Utility"]
[340,"CIT","SUPPORT","Intermapper",null,"Bryan Benning","Bryan Benning",null,null,90,20,4.5,null,null,"IT Utility"]
[341,"CIT","SUPPORT","Line Card Pro",null,"Michelle Reynolds","Michelle Reynolds",null,null,48,20,2.4,null,null,"IT Utility"]
[342,"CIT","SUPPORT","MEGA",null,"Ron Seccia","Ron Seccia",null,null,44,15,2.9333333333333331,null,null,"IT Utility"]
[343,"CIT","SUPPORT","myCornell",null,"Diane Sempler","Jon Atherton",null,null,58,45,1.288888888888889,null,null,"Collaboration Tool"]
[344,"CIT","SUPPORT","Pinnacle",null,"Michelle Reynolds","Michelle Reynolds",null,null,96,60,1.6,null,null,"IT Utility","Finance- Other"]
[345,"CIT","SUPPORT","Queue Monitor",null,"Ron Seccia","Ron Seccia",null,null,44,15,2.9333333333333331,null,null,"IT Utility"]
[346,"CIT","SUPPORT","Remedy",null,"Diane Sempler","Benoit McNicoll ",null,null,78,40,1.95,null,null,"IT Utility"]
[347,"CIT","SUPPORT","SMS",null,"Ron Seccia","Ron Seccia",null,null,40,15,2.6666666666666665,null,null,"IT Utility"]
[348,"CIT","SUPPORT","SourceForge",null,"Diane Sempler","Benoit McNicoll ",null,null,77,40,1.925,null,null,"Collaboration Tool"]
[349,"CIT","SUPPORT","Titrax",null,"Bryan Benning","Bryan Benning",null,null,47,20,2.35,null,null,"IT Utility"]
[350,"CIT","SUPPORT","Bomgar",null,"Dan Elswit","Dan Elswit",null,null,null,null,0,null,null,"IT Utility"]
[351,"DFA","Accounting","Account Management",null,"as57","ccs1","gh17","gh17",48,20,2.4,null,null,"Finance- Other"]
[352,"DFA","Accounting","Account Stop/Delete request","Not Scored","as57","ccs1","gh17","gh17",10,20,0.5,null,null,"Finance- Other"]
[353,"DFA","Accounting","AP/ACH (direct deposit)","Not Scored","as57","ccs1","gh17","gh17",10,20,0.5,null,null,"Finance- Other"]
[354,"DFA","Accounting","APPS Dept. Profile","Not Scored","as57","ccs1","gh17","gh17",{"$error":"#N/A"},20,0,"Other(add comment)","Mainframe application","Finance- Other"]
[355,"DFA","Accounting","APPS Pcard Update","Not Scored","as57","ccs1","gh17","gh17",{"$error":"#N/A"},20,0,"Other(add comment)","Mainframe application","Finance- Other"]
[356,"DFA","Accounting","APPS request for solicitation","Not Scored","as57","ccs1","gh17","gh17",{"$error":"#N/A"},20,0,"Other(add comment)","Mainframe application","Finance- Other"]
[357,"DFA","Payroll","ATX Tax Software","Not Scored","as57","ccs1","gh17","gh17",47,20,2.35,null,null,"Finance- Other"]
[358,"DFA","Accounting","Authorization Management 1 (JEMS, Payment Request)","Not Scored","as57","ccs1","gh17","gh17",58,20,2.9,null,null,"Finance- Other"]
[359,"DFA","Accounting","Authorization Management 2 (Groups, Roles, Users, etc.)","Not Scored","as57","ccs1","gh17","gh17",43,20,2.15,null,null,"Finance- Other"]
[360,"DFA","Bursar","Bursar Item type request","Not Scored","as57","ccs1","gh17","gh17",{"$error":"#N/A"},20,0,"Other(add comment)","This is a Cynergy app","Finance- Other"]
[361,"DFA","Accounts Payable","CD Search","Not Scored","as57","mo14","gh17","gh17",43,15,2.8666666666666667,null,null,"Finance- Other"]
[362,"DFA","SMS Payroll","Extng Vndr Addr Upd Req","Not Scored","as57","ccs1","gh17","gh17",{"$error":"#N/A"},20,0,"Not in use",null,"Finance- Other"]
[363,"DFA","Reporting","Hyperion Enterprise 6.11","Not Scored","as57","ccs1","gh17","gh17",74,35,2.1142857142857143,null,null,"Finance- Other"]
[364,"DFA","DFA","Identity Finder Enterprise","Not Scored","gh17","gh17","gh17","gh17",74,20,3.7,null,null,"IT Utility"]
[365,"DFA","Accounting","JEMS","Not Scored","as57","ccs1","gh17","gh17",78,20,3.9,null,null,"Finance- Other"]
[366,"DFA","Capital Assets","MACAMS","Not Scored","as57","ccs1","gh17","gh17",73,20,3.65,null,null,"Finance- Other"]
[367,"DFA","SMS ","Mantis","Not Scored","db18","db18","gh17","gh17",20,20,1,null,null,"Finance- Other"]
[368,"DFA","Accounting Payroll","Metastorm ework","Not Scored","as57","ccs1","gh17","gh17",63,20,3.15,null,null,"Finance- Other"]
[369,"DFA","Accounting SMS","Modcomp ineterface with Invoices","Not Scored","as57","gh17","gh17","gh17",58,20,2.9,null,null,"Finance- Other"]
[370,"DFA","Accounting","NAR (new account request)","Not Scored","as57","ccs1","gh17","gh17",58,20,2.9,null,null,"Finance- Other"]
[371,"DFA","Accounting","Payment Request Reimbursement","Not Scored","as57","ccs1","gh17","gh17",80,20,4,null,null,"Finance- Other"]
[372,"DFA","Accounts Payable","Piracle createacheck","Not Scored","mo14","mo14","gh17","gh17",47,15,3.1333333333333333,null,null,"Finance- Other"]
[373,"DFA","UBSC","SharePoint","Not Scored","rmy1","rmy1","mjk276","mjk276",79,15,5.2666666666666666,null,null,"Collaboration Tool"]
[374,"DFA","Accounting","Travel","Not Scored","as57","ccs1","gh17","gh17",100,20,5,null,null,"Finance- Other"]
[375,"DFA","Payroll","WindStar","Not Scored","as57","gwb7","gh17","gh17",100,25,4,null,null,"Finance- Other"]
[376,"DFA","SMS","Spend Viz","Not Scored","twr2","twr2","twr2/mjk276","twr2/mjk276",85,25,3.4,null,null,"Finance- Other"]
[377,"DFA","SMS","Client Profile duplicate of 51","Not Scored","twr2","twr2","twr2/mjk276","twr2/mjk276",96,15,6.4,"Other(add comment)","Duplicate of 51","Finance- Other"]
[378,"DFA","Cost and Capital Assets","CRIS (Comprehensive Rate Information System)","Not Scored","jas9","nja3","gh17","gh17",96,25,3.84,null,null,"Finance- Other"]
[379,"DFA","Cost and Capital Assets","CATS (Cornell Asset Transfer System)","Not Scored","jas9","nja3","gh17","gh17",81,30,2.7,null,null,"Finance- Other"]
[380,"DFA","Accounts Payable","Check Insight","Not Scored","as57","gwb7","gh17","gh17",20,20,1,null,null,"Finance- Other"]
[381,"DFA","Payroll","CCH","Not Scored","as57","gwb7","gh17","gh17",78,20,3.9,null,null,"Finance- Other"]
[382,"DFA","Accounting","Account search (web tool)",null,"ky16","smh44","smh44","smh44",44,20,2.2000000000000002,null,null,"Finance- Other"]
[383,"DFA","Accounting","Object code search (web tool)",null,"ky16","smh44","smh44","smh44",44,20,2.2000000000000002,null,null,"Finance- Other"]
[384,"DFA","Accounting","Cash Receipts system ",null,"ky16","smh44","smh44","smh44",8,20,0.4,null,null,"Finance- Other"]
[385,"DFA","Accounting","Access databases - bank/cash/creditcard receipts reconciliations",null,"ky16","smh44","smh44","smh44",61,15,4.0666666666666664,null,null,"Finance- Other"]
[{"$f":"ROW(387:387)-1","v":386},"DFA","Accounting","Access databases - LTIP share management",null,"ky16","smh44","smh44","smh44",86,15,5.7333333333333334,null,null,"Finance- Other"]
[387,"DFA","Reporting","Access databases - financial statement details",null,"ky16","rjk7","rjk7","rjk7",81,15,5.4,null,null,"Finance- Other"]
[388,"DFA","Reporting","Access databases - WCMC financial data conversion",null,"ky16","rjk7","rjk7","rjk7",81,15,5.4,null,null,"Finance- Other"]
[389,"DFA","Accounting","Crimson Editor",null,"ky16","smh44","smh44","smh44",65,20,3.25,null,null,"Finance- Other"]
[390,"DFA","The Cornell Store","Credit card billing site","Not Scored","ejb10","kdd6","mjk276","mjk276",82,20,4.0999999999999996,null,null,"Finance- Other"]
[391,"DFA","The Cornell Store","Textbook services - buyback","Not Scored","paw223","gs248","mjk276","mjk276",57,20,2.85,null,null,"Finance- Other"]
[392,"DFA","The Cornell Store","Textbook services - book droplist","Not Scored","paw223","gs248","mjk276","mjk276",52,15,3.4666666666666668,null,null,"Finance- Other"]
[393,"DFA","The Cornell Store","Textbook services - textbook by course","Not Scored","paw223","gs248","mjk276","mjk276",92,15,6.1333333333333337,null,null,"Finance- Other"]
[394,"DFA","The Cornell Store","Textbook services - textbook by schedule","Not Scored","paw223","gs248","mjk276","mjk276",92,15,6.1333333333333337,null,null,"Finance- Other"]
[395,"DFA","The Cornell Store","Textbook services - rental shelving utility","Not Scored","paw223","gs248","mjk276","mjk276",48,15,3.2,null,null,"Finance- Other"]
[396,"DFA","The Cornell Store","Textbook services - course verifications/history","Not Scored","paw223","gs248","mjk276","mjk276",73,15,4.8666666666666663,null,null,"Finance- Other"]
[397,"DFA","The Cornell Store","Textbook services - warehouse shelving","Not Scored","paw223","gs248","mjk276","mjk276",48,15,3.2,null,null,"Finance- Other"]
[398,"DFA","The Cornell Store","E-commerce eRatex","Not Scored","paw223","paw223","kdd6","kdd6",65,15,4.333333333333333,null,null,"Finance- Other"]
[399,"DFA","The Cornell Store","Software licensing","Not Scored","dap26","dap26","mjk276","mjk276",77,15,5.1333333333333337,null,null,"Finance- Other"]
[400,"DFA","The Cornell Store","Customer profile/receipts","Not Scored","paw223","paw223","mjk276","mjk276",47,15,3.1333333333333333,null,null,"Finance- Other"]
[401,"DFA","SMS","SMS customer profile","Not Scored","twr2","twr2","mjk276","mjk276",38,20,1.9,null,null,"Finance- Other"]
[402,"DFA","The Cornell Store","Admissions T-shirt site","Not Scored","paw223","paw223","mjk276","mjk276",43,15,2.8666666666666667,null,null,"Finance- Other"]
[403,"DFA","The Cornell Store","Custom publishing submission forms","Not Scored","paw223","jsl10","mjk276","mjk276",43,15,2.8666666666666667,null,null,"Finance- Other"]
[404,"DFA","The Cornell Store","Visitor sign-up form","Not Scored","paw223","paw223","mjk276","mjk276",43,15,2.8666666666666667,null,null,"Finance- Other"]
[405,"DFA","The Cornell Store","Gift card balance","Not Scored","paw223","paw223","mjk276","mjk276",43,15,2.8666666666666667,null,null,"Finance- Other"]
[406,"DFA","The Cornell Store","Printshop forms - Cornell Chronicle","Not Scored","bll28","bll28","mjk276","mjk276",43,15,2.8666666666666667,null,null,"Finance- Other"]
[407,"DFA","The Cornell Store","Printshop forms - Disseration order","Not Scored","bll28","bll28","mjk276","mjk276",43,15,2.8666666666666667,null,null,"Finance- Other"]
[408,"DFA","The Cornell Store","Printshop forms - Thesis order","Not Scored","bll28","bll28","mjk276","mjk276",48,15,3.2,null,null,"Finance- Other"]
[409,"DFA","The Cornell Store","Printshop forms - business card order forms","Not Scored","bll28","bll28","mjk276","mjk276",43,15,2.8666666666666667,null,null,"Finance- Other"]
[410,"DFA","The Cornell Store","Alto Image Arranger/UltraWeb/UltraPrint","Not Scored","kdd6","bll28","kdd6","kdd6",92,15,6.1333333333333337,null,null,"Finance- Other"]
[411,"DFA","SMS","cardprograms.dfa.cornell.edu","Not Scored","twr2","twr2","mjk276","mjk276",44,15,2.9333333333333331,null,null,"Finance- Other"]
[412,"DFA","The Cornell Store","bugtracker","Not Scored","kdd6","kdd6","mjk276","mjk276",29,15,1.9333333333333333,null,null,"IT Utility"]
[413,"DFA","The Cornell Store","Visual Ratex/POS","Not Scored","paw223","kdd6","kdd6","kdd6",65,55,1.1818181818181819,null,null,"Finance- Other"]
[414,"DFA","Treasury","Application for University Financing (loan application)","Not Scored","cdj4","cdj4","mjk276","mjk276",62,15,4.1333333333333337,null,null,"Finance- Other"]
[415,"DFA","UBSC","Access database - Customer Information",null,"rmy1","lll79","lll79","lll79",38,15,2.5333333333333332,null,null,"Finance- Other"]
[416,"DFA","SMS","SciQuest",null,"twr2","twr2","db18","db18",81,35,2.3142857142857145,null,null,"Finance- Other"]
[417,"DFA","SMS","Procurex",null,"twr2","twr2","mgw3","mgw3",81,30,2.7,null,null,"Finance- Other"]
[418,"UComm","Marketing","OpenAir","Done","kak243","kak243","NetSuite","NetSuite",53,25,2.12,null,"Functional Purpose(s): Time Management, Finanace- Other (billing), & Other (Project Management)","Time Management","Finance- Other"]
[419,"UComm","Marketing","Widen","Done","kak243","kak243","Widen","Widen",70,25,2.8,null,"FP(s): Other (Digital Photo storage and sharing)","Other"]
[420,"UComm","Community Relations","Localist","Done","kak243","kak243","Localist","Localist",90,25,3.6,null,"FP(s): Other (University Event Calendar System)","Other"]
[421,"UComm","VP","Digital Well","Done","zad3","kak243","UComm","zad3",80,20,4,null,"FP(s): Other (Digital Asset Management)","Other"]
[422,"UComm","News","Drupal","Done","zad3","kak243","UComm","zad3",80,20,4,null,"FP(s): Other (backend data tool)","Other"]
[423,"UComm","Marketing","4D","Done","kak243","kak243","4D","4D",47,20,2.35,null,"FP(s): Finance- Other (billing), & Other (Project Management)","Finance- Other","Other"]
[424,"UComm","Public Affairs","Vocus","Done","kak243","kak243","Vocus","Vocus",85,25,3.4,null,"FP(s): Other (Media Metrics collecting & reporting)","Other"]
[425,"UComm","VP","FileMaker","Done","kak243","kak243","CIT","CIT",60,20,3,null,"FP(s): Other (backend data tool)","Other"]
[426,"UComm","VP","Adobe Suite","Done","kak243","kak243","Adobe","Adobe",65,25,2.6,null,"FP(s): Other (creative production tools)","Other"]
[427,"UComm","Marketing","Font Agent Pro","Done","kak243","kak243","UComm","n/a",51,15,3.4,null,"FP(s): Other (backend data tool)","Other"]
[428,"UComm","Public Affairs","Kaltura/Level3","Done","kak243","kak243","CIT","CIT",75,20,3.75,null,"FP(s): Other (Digital Asset Management)","Other"]
[429,"UComm","Assemblies","OTRS","Done","ate2","kak243","UComm","ate2",52,20,2.6,null,"FP(s): Issue Tracking (non-IT)","Other"]
[430,"UComm","Assemblies","PmWiki","Done","ate2","kak243","UComm","ate2",50,20,2.5,null,"FP(s): Collaboration Tool, & Other (content management)","Collaboration Tool"]
[431,"UComm","Assemblies","Ruby on Rails","Done","ate2","kak243","UComm","ate2",68,20,3.4,null,"FP(s): Other (backend data tool)","Other"]
[432,"UComm","Assemblies","Sympa","Done","ate2","kak243","UComm","ate2",26,15,1.7333333333333334,null,"FP(s): Other (Bulk E-mail Utility)","Other"]
[433,"SHA","Business Affairs","Microsoft Exchange 2007","BV Complete","Tim Durnford","Tim Durnford","Mark Maxian","Doug Parry",95,20,4.75,null,"Collaboration Tool","Collaboration Tool"]
[434,"SHA","Hotel and School","Microsoft SharePoint 2010","BV Complete","Tim Durnford","Tim Durnford","Mark Maxian","Peggy Settle",73,15,4.8666666666666663,null,"Collaboration Tool","Collaboration Tool"]
[435,"SHA","Executive Education","Microsoft Dynamics CRM 2010 (on premise)","BV Complete","Tom Kline","Nancy Weislogel","Mark Maxian","Michael Fraker",68,15,4.5333333333333332,null,"Other","Other"]
[436,"SHA","Student Services","Microsoft Dynamics CRM 2010 (hosted)","Not Scored","Lisa Shaffer","Lisa Shaffer","Mark Maxian","Michael Fraker",null,null,0,"Not in use","Other","Other"]
[437,"SHA","Hotel","Delphi Sales and Catering","BV Complete","Cyndee Wild","Cyndee Wild","Mark Maxian","Peggy Settle",80,25,3.2,null,"Other","Other"]
[438,"SHA","Hotel","Micros Opera PMS","BV Complete","Nicole Boosembark-Baker","Nicole Boosembark-Baker","Mark Maxian","Joel Cisne",88,30,2.9333333333333331,null,"Other","Other"]
[439,"SHA","Hotel","Micros 9700 POS","BV Complete","Greg Mezey","Greg Mezey","Mark Maxian","Joel Cisne",76,30,2.5333333333333332,null,"Other","Other"]
[440,"SHA","Hotel","Infor/Sunsystems Accounting","BV Complete","Tracy Cary","Tracy Cary","Mark Maxian","Peggy Settle",60,20,3,null,"Finance-Other","Finance- Other"]
[441,"SHA","Hotel","IDeaS RMS","BV Complete","Rick Adie","Nicole Boosembark-Baker","Mark Maxian","Joel Cisne",56,20,2.8,null,"Other","Other"]
[442,"SHA","Hotel","IDT Guest Marketing","BV Complete","Rick Adie","Nicole Boosembark-Baker","Mark Maxian","Joel Cisne",75,20,3.75,null,"Other","Other"]
[443,"SHA","Hotel","SynXis Web Reservations","Not Scored","Nicole Boosembark-Baker","Nicole Boosembark-Baker","Mark Maxian","Joel Cisne",null,null,0,"Total cost < unit threshold","Other","Other"]
[444,"SHA","Hotel","Adaco Purchasing","BV Complete","Tracy Cary","Tracy Cary","Mark Maxian","Peggy Settle",80,15,5.333333333333333,null,"Other","Other"]
[445,"SHA","Hotel and School","Timelox ","BV Complete","Tim Durnford","Tim Durnford","Mark Maxian","Joel Cisne",65,20,3.25,null,"Other","Other"]
[446,"SHA","Hotel","Call Accounting","BV Complete","Rick Adie","Nicole Boosembark-Baker","Mark Maxian","Joel Cisne",53,20,2.65,null,"Other","Other"]
[447,"SHA","Hotel","CSGold Payments Interface","Not Scored","Rick Adie","Greg Mezey","Mark Maxian","Joel Cisne",null,null,0,"Total cost < unit threshold","Other","Other"]
[448,"SHA","Hotel","Unifocus Guest Comments","Not Scored","Rick Adie","Nicole Boosembark-Baker","Mark Maxian","Joel Cisne",null,null,0,"Total cost < unit threshold","Other","Other"]
[449,"SHA","Hotel","Avero Slingshot Sales Analysis","Not Scored","Rick Adie","Greg Mezey","Mark Maxian","Joel Cisne",null,null,0,"Total cost < unit threshold","Other","Other"]
[{"$f":"ROW(451:451)-1","v":450},"SHA","Hotel","OpenTable Restaurant Reservations","Not Scored","Rick Adie","Greg Mezey","Mark Maxian","Joel Cisne",null,null,0,"Total cost < unit threshold","Other","Other"]
[451,"SHA","Hotel and School","Workoderama","BV Complete","Peter Meixell","Peter Meixell","Mark Maxian","Eric Fitchette",58,25,2.3199999999999998,null,"Facilities & Space Management","Facilities & Space Management"]
[452,"SHA","Hotel","Protobase Credit Card Processing","Not Scored","Rick Adie","Rick Adie","Mark Maxian","Joel Cisne",null,null,0,"Total cost < unit threshold","Other","Other"]
[453,"SHA","School","Cvent Event Registation","BV Complete","Tim Durnford","Tim Durnford","Mark Maxian","Michael Fraker",91,20,4.55,null,"Other","Student- Other"]
[454,"SHA","Student Services","Admissions Interview MMH","Not Scored","Lisa Shaffer","Heather Fortenberry","David DeHaan","Wioletta Holownia",null,null,0,"Total cost < unit threshold","Admissions","Admissions"]
[455,"SHA","Student Services","Admissions Interview Undergrad","Not Scored","Lisa Shaffer","Heather Fortenberry","David DeHaan","Wioletta Holownia",null,null,0,"Total cost < unit threshold","Admissions","Admissions"]
[456,"SHA","Binenkorb","BlackBoard Roster Uploads","BV Complete","Rob Miettunen","Jamie Duong","David DeHaan","John Cowan",60,20,3,null,"Academic Administration","Academic Administration"]
[457,"SHA","Communications","Blue Sky (bulk email)","BV Complete","Tim Durnford","Tim Durnford","Mark Maxian","Michael Fraker",91,20,4.55,null,"Other","Other"]
[458,"SHA","Student Services","Career Day online Registration system","Not Scored","Molly de Roos","Pam Davis","David DeHaan","Steven Halasz",null,null,0,"Total cost < unit threshold","Career Services","Career Services"]
[459,"SHA","CHR","CHR PDF access control and tracking system","BV Complete","Jenn Macera","Jenn Macera","David DeHaan","Wioletta Holownia",81,20,4.05,null,"Other","Other"]
[460,"SHA","Alumni Affairs","CHS Events system","BV Complete","Christine Natsios","Christine Natsios","David DeHaan","Wioletta Holownia",65,20,3.25,null,"Alumni Development","Alumni Development"]
[461,"SHA","Alumni Affairs","CHS Region and Chapter web site hosting system","Not Scored","Christine Natsios","Christine Natsios","David DeHaan","Jason Woodward",null,null,0,"Total cost < unit threshold","Alumni Development","Alumni Development"]
[462,"SHA","School","Content and Application Management System (CAMS/Enki)","BV Complete","Joe Strodel","Michael Fraker","David DeHaan","Jason Woodward",60,15,4,null,"Other","Other"]
[463,"SHA","Alumni Affairs","Cornell Hotel Society (CHS) Leadership database","Not Scored","Christine Natsios","Christine Natsios","David DeHaan","John Cowan",null,null,0,"Total cost < unit threshold","Alumni Development","Alumni Development"]
[464,"SHA","Academic Affairs","Digital Measures Activity Insight","BV Complete","Steven Carvell","Cindy Allen","Vendor","Vendor",88,20,4.4000000000000004,null,"Academic Administration","Alumni Development"]
[465,"SHA","Human Resources","Electronic Time Off Request system (eTOR)","Not Scored","Rick Kuhar","Judi Novitzki","David DeHaan","Jason Woodward",null,null,0,"Total cost < unit threshold","HR- Other","HR- Other"]
[466,"SHA","Business Affairs","eReq System (purchase authorization & tracking)","BV Complete","Tim Durnford","Tracy Cary","David DeHaan","John Cowan",87,20,4.3499999999999996,null,"Finance- Other","Finance- Other"]
[467,"SHA","Executive Education","EXCEED (Executive Education system)","BV Complete","Tom Kline","Nancy Weislogel","Tricia Edgecomb ","Tricia Edgecomb ",63,20,3.15,null,"Academic Administration","Academic Administration"]
[468,"SHA","Executive Education","Executive Education Promotional URL tracking system","Not Scored","Tom Kline","Nancy Weislogel","David DeHaan","Steven Halasz",null,null,0,"Total cost < unit threshold","Other","Other"]
[469,"SHA","Executive Education","Executive Education Shopping Cart system","Not Scored","Tom Kline","Nancy Weislogel","David DeHaan","Steven Halasz",null,null,0,"Total cost < unit threshold","Finance- Other","Finance- Other"]
[470,"SHA","Academic Affairs","Faculty Recognition Survey system (Ye Hosts)","Not Scored","Steven Carvell","Cindy Allen","David DeHaan","Steven Halasz",null,null,0,"Total cost < unit threshold","Academic Administration","Academic Administration"]
[471,"SHA","Academic Affairs","Faculty Review (Tenure) survey system","Not Scored","Steven Carvell","Cindy Allen","David DeHaan","Steven Halasz",null,null,0,"Total cost < unit threshold","Academic Administration","Academic Administration"]
[472,"SHA","Binenkorb","FoxPro Binenkorb Check-in System","Not Scored","Rob Miettunen","Rob Miettunen","David DeHaan","David DeHaan",null,null,0,"Total cost < unit threshold","Other","Other"]
[473,"SHA","Alumni Affairs","FoxPro CHS Database","BV Complete","Jon Denison","Christine Natsios","David DeHaan","David DeHaan",40,20,2,null,"Alumni Development","Alumni Development"]
[474,"SHA","Student Services","FoxPro Company Contacts/Jobs/Practice Credit Database + Online","BV Complete","Molly de Roos","Ann Marie Kaminski , Pam Davis","David DeHaan","David DeHaan",68,20,3.4,null,"Career Services","Career Services"]
[475,"SHA","Human Resources","FoxPro Human Resources Database","Not Scored","Rick Kuhar","Wendi Hawkins","David DeHaan","David DeHaan",null,null,0,"Total cost < unit threshold","HR- Other","HR- Other"]
[476,"SHA","Academic Affairs","FoxPro SSO Database","BV Complete","Lisa Shaffer + Steven Carvell","Dina Kristof , Cindy Allen","David DeHaan","David DeHaan",60,20,3,null,"Student- Other","Student- Other"]
[477,"SHA","Business Affairs","Image Archive","Not Scored","Tim Durnford","Tim Durnford","David DeHaan","John Cowan",null,null,0,"Not in use","Other","Other"]
[478,"SHA","Nestle Library","Library Restaurant Menus database","BV Complete","Don Schnedeker","Ken Bolton","David DeHaan","John Cowan",41,20,2.0499999999999998,null,"Other","Other"]
[479,"SHA","Nestle Library","Library Workshop Registration system","Not Scored","Don Schnedeker","Ken Bolton","David DeHaan","John Cowan",null,null,0,"Not in use","Other","Other"]
[480,"SHA","Human Resources","New/Departing/Transitioning Employee notification system","Not Scored","Rick Kuhar","Wendi Hawkins","David DeHaan","Wioletta Holownia",null,null,0,"Total cost < unit threshold","HR- Other","HR- Other"]
[481,"SHA","Alumni Affairs","Online CHS Book sales application","Not Scored","Jon Denison","Christine Natsios","David DeHaan","Steven Halasz",null,null,0,"Total cost < unit threshold","Alumni Development","Alumni Development"]
[482,"SHA","Alumni Affairs","Online CHS/Alumni Directory","Not Scored","Jon Denison","Christine Natsios","David DeHaan","Steven Halasz",null,null,0,"Total cost < unit threshold","Alumni Development","Alumni Development"]
[483,"SHA","Alumni Affairs","Online CHS Dues Payment system","BV Complete","Jon Denison","Christine Natsios","David DeHaan","Steven Halasz",60,20,3,null,"Alumni Development","Alumni Development"]
[484,"SHA","Academic Affairs","Online Course & Faculty Directory","Not Scored","Lisa Shaffer + Steven Carvell","Dina Kristof , Cindy Allen","David DeHaan","Steven Halasz",null,null,0,"Total cost < unit threshold","Academic Administration","Academic Administration"]
[485,"SHA","Academic Affairs","Online Course Evaluation system","BV Complete","Steven Carvell","Cindy Allen","David DeHaan","Steven Halasz",83,20,4.1500000000000004,null,"Academic Administration","Academic Administration"]
[486,"SHA","Communications","Online SHA Events Calendar System","Not Scored","Joseph Strodel","Michael Fraker","David DeHaan","Wioletta Holownia",null,null,0,"Total cost < unit threshold","Other","Other"]
[487,"SHA","Academic Affairs","Online Faculty Profiles Database","Not Scored","Steven Carvell","Cindy Allen","David DeHaan","John Cowan",null,null,0,"Total cost < unit threshold","Academic Administration","Academic Administration"]
[488,"SHA","Human Resources","Online Job Description Database","Not Scored","Rick Kuhar","Wendi Hawkins","David DeHaan","Steven Halasz",null,null,0,"Total cost < unit threshold","HR- Other","HR- Other"]
[489,"SHA","Communications","Online News Releases","BV Complete","Joseph Strodel","Michael Fraker","David DeHaan","Wioletta Holownia",48,20,2.4,null,"Other","Other"]
[490,"SHA","Human Resources","Online Performance Evaluation system","Not Scored","Rick Kuhar","Wendi Hawkins","David DeHaan","Aaron Hill",null,null,0,"Total cost < unit threshold","HR- Other","HR- Other"]
[491,"SHA","Student Services","Online Practice Credit submission system","Not Scored","Molly de Roos","Pam Davis","David DeHaan","Wioletta Holownia",null,null,0,"Total cost < unit threshold","Academic Administration","Academic Administration"]
[492,"SHA","Human Resources","Online SHA Department and Employee directory","Not Scored","Rick Kuhar","Wendi Hawkins","David DeHaan","Wioletta Holownia",null,null,0,"Total cost < unit threshold","HR- Other","HR- Other"]
[493,"SHA","Student Services","Online Student Pre-enrollment (scheduling) system","BV Complete","Lisa Shaffer","Dina Kristof","David DeHaan","Wioletta Holownia",61,20,3.05,null,"Academic Administration","Academic Administration"]
[494,"SHA","Student Services","Online Student Record Card (Degree Audit)","Not Scored","Lisa Shaffer","Dina Kristof","David DeHaan","John Cowan",null,null,0,"Total cost < unit threshold","Academic Administration","Academic Administration"]
[495,"SHA","Nestle Library","Online Theses database","BV Complete","Don Schnedeker","Ken Bolton","David DeHaan","John Cowan",51,20,2.5499999999999998,null,"Other","Other"]
[496,"SHA","Executive Education","PDP Pre Course system online ","Not Scored","Tom Kline","Nancy Weislogel","David DeHaan","John Cowan",null,null,0,"Total cost < unit threshold","Academic Administration","Academic Administration"]
[497,"SHA","Human Resources","Student Employment hiring and tracking system","Not Scored","Rick Kuhar","Judi Novitzki","David DeHaan","Steven Halasz",null,null,0,"Total cost < unit threshold","HR- Other","HR- Other"]
[498,"SHA","Statler IT","Temporary Account Management System (TAMS)","Not Scored","Mark Maxian","Mark Maxian","David DeHaan","Jason Woodward",null,null,0,"Total cost < unit threshold","IT Utility","IT Utility"]
[499,"SHA","Human Resources","TIPS Database","BV Complete","Rick Kuhar","Judi Novitzki","David DeHaan","John Cowan",92,20,4.5999999999999996,null,"HR- Other","HR- Other"]
[500,"SHA","Communications","Online Alumni Class Notes system","BV Complete","Joe Strodel","Jeanne Griffith","David DeHaan","Aaron Hill",75,20,3.75,null,"Alumni Development","Alumni Development"]
[501,"SHA","Human Resources","Employee Room and Phone Update system","Not Scored","Rick Kuhar","Wendi Hawkins","David DeHaan","Wioletta Holownia",null,null,0,"Total cost < unit threshold","HR- Other","HR- Other"]
[502,"SHA","Business Affairs","Adaco - Kuali converter","Not Scored","Tracy Cary","Peggy Settel","David DeHaan","Aaron Hill",null,null,0,"Total cost < unit threshold","Finance- Other","Finance- Other"]
[503,"SHA","Nestle Library","Hospitality Links","BV Complete","Don Schnedeker","Ken Bolton","David DeHaan","John Cowan",41,20,2.0499999999999998,null,"Other","Other"]
[504,"SHA","Web Programming","TaskMaster","Not Scored","David DeHaan","David DeHaan","David DeHaan","David DeHaan",null,null,0,"Total cost < unit threshold","Collaboration Tool","Collaboration Tool"]
[505,"Engr","EN-Ugrad","OAR","Done","Scott Cambell (Undergrad admissions director)",null,"Mike Hammer","Mike Hammer",80,20,4,null,null,"Admissions"]
[506,"Engr","EN-Dean","Activity Insight","Done","Cathy Dove","Paul Davis","Mike Hammer","Paul Davis",55,15,3.6666666666666665,null,null,"Academic Administration"]
[507,"Engr","EN-Ugrad","Course Evaluation","Done","Charlie Seylor, Kathy Dimiduk",null,"Rose Seibold","Mike Hammer",72,15,4.8,null,null,"Student- Other"]
[508,"CIS","OCIS","CISIS-Financial research admin; comprehensive PI reports(budgets/actuals; detailed  S&W encumber, grad data)","Done","Pat Musa, Claudia (crw1)","Pat Musa","Manuel Calimlim","Paul Davis",68,20,3.4,null,null,"Research Administration"]
[509,"Engr","EN-Ugrad","Fall Freshmen & Orientation","Done","Fran Shumway(Advising  director)",null,"Mike Hammer","Mike Hammer",80,20,4,null,null,"Student- Other"]
[510,"Engr","EN-DEAN","COE/CIS helpdesk for facilities and IT tickets (Kayako)","Done","Scott Yoest, Bill Bader","Paul Davis","Manuel Calimlim","Paul Davis",52,15,3.4666666666666668,null,null,"IT Utility"]
[511,"Engr","EN-Ugrad","TA eval","Done","Lisa Schneider",null,"Mike Hammer","Mike Hammer",72,15,4.8,null,null,"Student- Other"]
[512,"Engr","EN-Dean","Engineering Web site Content Management System (CommonSpot and managed interfaces)","Done","Dawn McWilliams",null,"IWS staff","Paul Davis",63,30,2.1,null,null,"Other (website automation)"]
[513,"Engr","EN-Ugrad","ENGRG 1050 evaluation","Done","Fran Shumway (Advising  director), Mike Hammer",null,"Mike Hammer","Mike Hammer",41,15,2.7333333333333334,null,null,"Student- Other"]
[{"$f":"ROW(515:515)-1","v":514},"Engr","EN-Ugrad","CASPAC (ugrad) - Committee for Academic Standards, Policies and Credits","Done","Charlie Seylor (Assoc Dean for undergrad student programs)",null,"Mike Hammer","Mike Hammer",70,20,3.5,null,null,"Student- Other"]
[515,"Engr","ECE","Door Access/Key Request Form","Done","Jed Dove (ECE), Patty Gonyea (ECE), Bill Bader (COE, CIS)","Jed Dove","Edward Klimowicz","Paul Davis",42,20,2.1,null,null,"Facilities & Space Management"]
[516,"CIS","COMS","CIS course management software, customized for CS courses (used by ECE, IS, CS)","Done","Andrew Meyers, Tammy Gardner","Tammy Gardner","Dora Abdullah, Student programmers","Paul Davis",57,20,2.85,null,null,"Other (Instruction)"]
[517,"Engr","EN-Dean","COE SIP tool","Done","Julie Delay",null,"Paul Davis","Paul Davis",68,20,3.4,null,null,"SIP Awards"]
[518,"Engr","EN-Ugrad","Academic Excellence Workshops eval","Done","Linda Tompkins",null,"Mike Hammer","Mike Hammer",42,15,2.8,null,null,"Student- Other"]
[519,"Engr","EN-Dean","GAPS - Graduate application Processing System","Done","Yoanna Ferara",null,"World Design (contractors)","Paul Davis",35,20,1.75,null,null,"Academic Administration"]
[520,"Engr","EN-Dean","Contact hours dbase\nCapture contact hour information for TA allocation","Done","Himani Mewar","Paul Davis","Rose Seibold","Paul Davis",52,20,2.6,null,null,"Finance - Other"]
[521,"Engr","EN-Dean","Resource 25 Room Database\nCapture AV functionality for each classroom. Also support information. Publish it to the web for room users, Registrar.","Done","Kathy Dimiduk","Paul Davis","Paul Davis","Paul Davis",26,20,1.3,null,null,"Other (Instruction)"]
[522,"Engr","EN-Ugrad","Undergrad Research Grant applications","Done","Lisa Schneider",null,"Mike Hammer","Mike Hammer",62,20,3.1,null,null,"Research Administration"]
[523,"Engr","EN-Ugrad","Online coop hiring aplication system","Done","Kim Swartz",null,"Mike Hammer","Mike Hammer",57,15,3.8,null,null,"Student- Other"]
[524,"Engr","EN-Ugrad","Student Filemaker libraries (current, historical, frozen, admissions)","Done","Duncan Bell",null,"Mike Hammer","Mike Hammer",70,15,4.666666666666667,null,null,"Student- Other"]
[525,"Engr","EN-Ugrad","Undergrad Admissions Prospects","Done","Scott Cambell (Undergrad admissions director)",null,"Mike Hammer","Mike Hammer",53,20,2.65,null,null,"Admissions"]
[526,"Engr","EN-Ugrad","ENGR Petitions (ugrad) - Tracks ENGR student academic petitions","Done","Fran Shumway and Duncan Bell (Advising and Registrar directors)",null,"Mike Hammer","Mike Hammer",56,20,2.8,null,null,"Student- Other"]
[527,"Engr","EN-Ugrad","Internal Transfers (ugrad)","Done","Fran Shumway (Advising  director)",null,"Mike Hammer","Mike Hammer",57,20,2.85,null,null,"Student- Other"]
[528,"CIS","COMS","Scripts that support digital sign and internal talks publication","Done","Tammy Gardner","Tammy Gardner","Manuel Calimlim","Paul Davis",40,15,2.6666666666666665,null,null,"Other (Website automation)"]
[529,"Engr","ECE","SPACE MANAGEMENT TOOL: Rooms/Space, people","Done","Jed Dove","Jed Dove","Edward Klimowicz","Paul Davis",27,20,1.35,null,null,"Facilities & Space Management"]
[530,"Engr","EN-Dean","Employee database\nLists current employees. Used for mailing lists, phone lists, populates email lists, emergency contact lists, etc.","Done","Cathy Dove, Julie Delay, Front office staff, Paul Davis","Paul Davis","Paul Davis","Paul Davis",60,20,3,null,null,"Other (Emergency Preparations)"]
[531,"CIS","COMS","CS Course lists on their website (1 page)","Done","Tammy, Laurie Buck","Tammy Gardner","Manuel Calimlim","Paul Davis",52,20,2.6,null,null,"Other (Website automation)"]
[532,"CIS","IS","IS Course lists on their website (4 pages)","Done","Amy Sindone","Tammy Gardner","Manuel Calimlim","Paul Davis",52,20,2.6,null,null,"Other (Website automation)"]
[533,"Engr","EN-Ugrad","Advising Notes (grad, ugrad, out of college stus)","Done","Fran Shumway and Sarah Hernandez (Advising and Diversity office directors)",null,"Mike Hammer","Mike Hammer",53,20,2.65,null,null,"Student- Other"]
[534,"Engr","EN-Ugrad","Dean's List (ugrad)","Done","Duncan Bell",null,"Mike Hammer","Mike Hammer",47,20,2.35,null,null,"Student- Other"]
[535,"Engr","EN-Ugrad","F/U/INC Grades Tracking","Done","Duncan Bell",null,"Mike Hammer","Mike Hammer",58,20,2.9,null,null,"Student- Other"]
[536,"Engr","EN-Dean","5 yr alumni survey","Done","Debbie Guisado (Dean's office)",null,"Mike Hammer","Mike Hammer",41,20,2.0499999999999998,null,null,"Other"]
[537,"Engr","EN-Dean","Hiring request form","Done","Julie Delay","Mike Hammer","Mike Hammer","Paul Davis",34,20,1.7,null,null,"HR- Other"]
[538,"Engr","ECE","TA Management forms","Done","Scott Coldren, Sheila Hemami","Scott Coldren, Sheila Hemami","Edward Klimowicz","Paul Davis",20,20,1,null,null,"Academic Administration"]
[539,"CIS","IS","IS Check list for faculty and student advising","Done","Amy Sindone",null,"Manuel Calimlim","Paul Davis",48,15,3.2,null,null,"Other (Instruction)"]
[540,"Engr","EN-Ugrad","Advising & Diversity login/visit system","Done","Fran Shumway and Sarah Hernandez",null,"Mike Hammer","Mike Hammer",33,20,1.65,null,null,"Student- Other"]
[541,"Engr","EN-Ugrad","CCGB Motions","Done","Charlie Seylor (Assoc Dean for undergrad student programs)",null,"Mike Hammer","Mike Hammer",73,20,3.65,null,null,"Student- Other"]
[542,"CIS","OCIS","GUMBI - CIS IT group/user account management and billing systems for IT user charges (tied to users, groups, phone, directory, keys, AD/LDAP feeds)","Done","Scott Yoest","Manuel Calimlim","Manuel Calimlim","Paul Davis",85,15,5.666666666666667,null,null,"IT Utility"]
[543,"CIS","COMS","CS Website Content Management System","Done","Tammy Gardner","Tammy Gardner","Manuel Calimlim","Paul Davis",63,15,4.2,null,null,"Other (website automation)"]
[544,"Engr","EN-Ugrad","Online Student Team Funding","Done","Betsy East",null,"Mike Hammer","Mike Hammer",68,20,3.4,null,null,"Student- Other"]
[545,"Engr","EN-Dean","Sales Force for corporate and foundation Relations","Done","Abby Westervelt",null,"SalesForce","Paul Davis",72,20,3.6,null,null,"Alumni Development"]
[546,"Engr","COMS","CS Check list for faculty and student advising","Done","Nicole Roy","Amy Sindone","Manuel Calimlim","Paul Davis",48,15,3.2,null,null,"Other"]
[547,"Engr","EN-Dean","Academic Jobs Online","Done","Julie Delay",null,"SAAS","Paul Davis",74,15,4.9333333333333336,null,null,"HR- Other"]
[548,"CHE","Administration","Faculty Annual Report (FAR)","Done","Craig Higgins","Craig Higgins","Kevin Murphy","Kevin Murphy",75,15,5,null,null,"Academic Administration"]
[549,"CHE","Career Services","Moc Interview administration","Not Scored",null,null,"Kevin Murphy","Kevin Murphy",{"$error":"#REF!"},{"$error":"#REF!"},0,"Not in use","This tool is not currnetly in use"]
[550,"CHE","Career Services","Alumnet","Done","Paula Jacobs","Paula Jacobs","Charles Hunt","Charles Hunt",55,15,3.6666666666666665,null,null,"Career Services"]
[551,"CHE","Academic Affairs","Course Evaluations","Done","Craig Higgins","Craig Higgins","Charles Hunt","Charles Hunt",75,15,5,null,null,"Student- Other"]
[552,"CHE","Administration","Event Manangement System (EMS)","Done","Craig Higgins","Diana Brinckman","Kevin Murphy","Kevin Murphy",65,15,4.333333333333333,null,null,"Other"]
[553,"CHE","Administration","Endowment Database","Done","Sharon Tuttle","Sharon Tuttle","Charles Hunt","Charles Hunt",73,15,4.8666666666666663,null,null,"Finance- Other"]
[554,"CHE","Computing Services Group","Equipment Database","Done","Mary Miller","Mary Miller","Charles Hunt","Charles Hunt",54,15,3.6,null,null,"IT Utility"]
[555,"CHE","Human Resources","Local HR Tool","Done","Sandy Dhimitri","Kathy Carpenter","Charles Hunt","Charles Hunt",75,15,5,null,null,"HR- Other"]
[556,"CHE","Administration","New Hire Form","Not Scored","Craig Higgins","Craig Higgins","Kevin Murphy","Kevin Murphy",{"$error":"#REF!"},{"$error":"#REF!"},0,"Not in use","This tool is not currnetly in use","HR - Other"]
[557,"CHE","Academic Affairs","Course Assessment","Not Scored","Craig Higgins","Craig Higgins","Charles Hunt","Charles Hunt",{"$error":"#REF!"},{"$error":"#REF!"},0,"Total cost < unit threshold"]
[558,"CHE","Administration","Plan Confirmation/Effort Certification","Done","Michelle Lyon","Michelle Lyon","Kevin Murphy","Kevin Murphy",77,15,5.1333333333333337,null,null,"Finance- Other"]
[559,"CHE","Administration","Salary Improvement Process (SIP)","Done","Sandy Dhimitri","Lucy Pola","Kevin Murphy","Kevin Murphy",80,15,5.333333333333333,null,null,"SIP Awards"]
[560,"CHE","Human Resources","Student Appointments","Done","Sandy Dhimitri","Kathy Carpenter","Charles Hunt","Charles Hunt",95,15,6.333333333333333,null,null,"HR - Other"]
[561,"CHE","Urban Semester","Urban Semester applications","Done","Craig Higgins","Peter Farly","Charles Hunt","Charles Hunt",42,15,2.8,null,null,"Student- Other"]
[{"$f":"ROW(563:563)-1","v":562},"CHE","CIPA","Graduate Management System","Done","Judy Metzgar","Judy Metzgar","Kevin Murphy","Kevin Murphy",85,15,5.666666666666667,null,null,"Student- Other"]
[563,"CHE","CIPA","Course Guide","Done","Judy Metzgar","Judy Metzgar","Kevin Murphy","Kevin Murphy",50,15,3.3333333333333335,null,null,"Student- Other"]
[564,"CHE","CIPA","Student Management","Not Scored","Judy Metzgar","Judy Metzgar","Charles Hunt","Charles Hunt",{"$error":"#REF!"},{"$error":"#REF!"},null,"Not in use","This tool is not currnetly in use","Student- Other"]
[565,"CHE","DNS","Graduate Management System","Done","Rich Duell","Emily Markes","Kevin Murphy","Kevin Murphy",77,15,5.1333333333333337,null,null,"Student- Other"]
[566,"CHE","DNS","DI Evaluations","Done","Jennifer Wilkins","Jennifer Wilkins","Kevin Murphy","Kevin Murphy",77,15,5.1333333333333337,null,null,"Student- Other"]
[567,"CHE","DNS","About You","Done","Rich Duell","Terry Mingle","Kevin Murphy","Kevin Murphy",80,15,5.333333333333333,null,null,"Student- Other"]
[568,"CHE","DNS","Senior Survey","Done","Rich Duell","Terry Mingle","Kevin Murphy","Kevin Murphy",70,15,4.666666666666667,null,null,"Student- Other"]
[569,"CHE","DNS","Graduation Information","Done","Rich Duell","Terry Mingle","Kevin Murphy","Kevin Murphy",60,15,4,null,null,"Student- Other"]
[570,"CHE","Alumni Affairs","Chronus Mentor","Done","Marybeth Tarzian","Marybeth Tarzian","Kevin Murphy","Kevin Murphy",66,15,4.4000000000000004,null,null,"Alumni Development"]
[571,"CHE","Admission","Admissions Management","Done","Craig Higgins","Mary Lee Truesdail","Charles Hunt","Charles Hunt",85,15,5.666666666666667,null,null,"Admissions"]
[572,"CHE","Admission","Transfer Option Offer","Done","Craig Higgins","Mary Lee Truesdail","Charles Hunt","Charles Hunt",65,15,4.333333333333333,null,null,"Admissions"]
[573,"CHE","Registrar","Graduation Summary","Done","Tracey Thompson","Tracey Thompson","Charles Hunt","Charles Hunt",67,15,4.4666666666666668,null,null,"Student- Other"]
[574,"CHE","Registrar","Apply to Graduate","Done","Tracey Thompson","Tracey Thompson","Charles Hunt","Charles Hunt",48,15,3.2,null,null,"Student- Other"]
[575,"CHE","Registrar","Committee on Academic Standing (CAS)","Done","Tracey Thompson","Tracey Thompson","Charles Hunt","Charles Hunt",75,15,5,null,null,"Student- Other"]
[576,"CHE","Registrar","Transfer Student","Done","Tracey Thompson","Tracey Thompson","Charles Hunt","Charles Hunt",67,15,4.4666666666666668,null,null,"Student- Other"]
[577,"CHE","Registrar","Student Management","Done","Tracey Thompson","Tracey Thompson","Charles Hunt","Charles Hunt",51,15,3.4,null,null,"Student- Other"]
[{"$f":"ROW(579:579)-1","v":578},"CHE","Finance","Blackbooks","Done","Michelle Lyon","Michelle Lyon","Kevin Murphy","Kevin Murphy",60,15,4,null,null,"Finance- Other"]
[579,"CHE","Finance","Budget Database","Done","Michelle Lyon","Michelle Lyon","Charles Hunt","Charles Hunt",75,15,5,null,null,"Finance- Other"]
[580,"CHE","Administration","College Annual Reports","Not Scored","Craig Higgins","Craig Higgins","Kevin Murphy","Kevin Murphy",{"$error":"#REF!"},{"$error":"#REF!"},0,"Total cost < unit threshold",null,"Finance- Other"]
[581,"CHE","FSAD","Fashion Design Award","Done","Susan Ashdown","Karen Steffy","Kevin Murphy","Kevin Murphy",45,15,3,null,null,"Other"]
[582,"CHE","Career Services","Communecology","Done","Paula Jacobs","Paula Jacobs","Charles Hunt","Charles Hunt",75,15,5,null,null,"Career Services"]
[583,"CHE","Administration","Help Desk","Not Scored","Mary Miller","Mary Miller","Kevin Murphy","Kevin Murphy",{"$error":"#REF!"},{"$error":"#REF!"},0,"No ongoing cost",null,"IT Utility"]
[584,"CHE","Human Development","HD Publications","Done","Karene Booker","Karene Booker","Kevin Murphy","Kevin Murphy",65,15,4.333333333333333,null,null,"Other"]
[585,"CHE","Academic","Multimedia","Done","Craig Higgins","Craig Higgins","Kevin Murphy","Kevin Murphy",47,15,3.1333333333333333,null,null,"Other"]
[586,"CE","SCE","SCE Student System",null,"Abby Eller (ae12), Catherine Penner (csp34), Mary Adie (mea36), Cathy Pace (cmp2), Diane Sheridan (des5)","Janna Bugliosi (jlb34), Hap Bradley(hhb49)  ,Ruby Brown (rdb6), Carol Hall (clh15)","Graham Dobson (gd11)","Graham Dobson (gd11)",93,25,3.72,null,"Also HR and Finance,  Current the most valued system in SCE which is not reflected in the Score","Academic Administration","Budget Planning"]
[587,"CE","Registrar","Certificates",null,"Cathy Pace (cmp2)","Cathy Pace (cmp2)","Graham Dobson (gd11)","Graham Dobson (gd11)",78,20,3.9,null,null,"Academic Administration","Finance- Other"]
[588,"CE","Registrar","On-line Enrollment",null,"Cathy Pace (cmp2),  Catherine Penner (csp34), Mary Adie (mea36)","Cathy Pace (cmp2),  Catherine Penner (csp34), Mary Adie (mea36)","Graham Dobson (gd11)","Mitch Wiedemann (mtw7)",95,20,4.75,null,null,"Student- Other","Finance- Other"]
[589,"CE","Registrar","Student/Faculty Portal",null,"Cathy Pace (cmp2)","Cathy Pace (cmp2)","Graham Dobson (gd11)","Graham Dobson (gd11)",68,20,3.4,null,null,"Student- Other","Academic Administration"]
[590,"CE","Finance and Acct.","Course Proposal",null,"Ruby Brown (rdb6)","Ruby Brown (rdb6), Carol Hall (clh15)","Graham Dobson (gd11)","Graham Dobson (gd11)",100,20,5,null,null,"Academic Administration","HR- Other"]
[591,"CE","Summer College","Summer College Self Service",null,"Abby Eller (ae12)","Janna Bugliosi (jlb34)","Graham Dobson (gd11)","Graham Dobson (gd11)",73,20,3.65,null,null,"Admissions","Student- Other"]
[592,"CE","Registrar","Course Evaluations ",null,"Cathy Pace (cmp2)","Cathy Pace (cmp2), Ruby Brown (rdb6)","Graham Dobson (gd11)","Graham Dobson (gd11)",82,20,4.0999999999999996,null,null,"Student- Other"]
[593,"CE","Finance and Acct.","Course Budget",null,"Ruby Brown (rdb6)","Ruby Brown (rdb6), Carol Hall (clh15)","Graham Dobson (gd11)","Graham Dobson (gd11)",85,20,4.25,null,null,"HR- Other","Finance- Other"]
[594,"CE","SCE","Prospector",null,"Abby Eller (ae12), Catherine Penner (csp34), Mary Adie (mea36), Cathy Pace (cmp2)","Janna Bugliosi (jlb34), Catherine Penner (csp34), Mary Adie (mea36)","Mitch Wiedemann (mtw7)","Mitch Wiedemann (mtw7)",88,20,4.4000000000000004,null,null,"Other","Admissions"]
[595,"CE","Media","Web Content Management System",null,"Ann Morse (alm21)","Mitch Wiedemann (mtw7)","Mitch Wiedemann (mtw7)","Mitch Wiedemann (mtw7)",91,20,4.55,null,"Risk Management","Other","Academic Administration"]
[596,"CE","IT","SCE IT Inventory Tracking System",null,"Graham Dobson (gd11)","Graham Dobson (gd11)","Graham Dobson (gd11)","Graham Dobson (gd11)",63,20,3.15,null,null,"IT Utility","Other"]
[597,"CE","CIW","CIW Student Records",null,"Carol Hagen (cfh2)","Carol Hagen (cfh2)","Kim Niefer (kan28)","Kim Niefer (kan28)",92,20,4.5999999999999996,null,null,"Academic Administration"]
[598,"CE","CIW","CIW Building Maintenance  Inventory",null,"Carol Hagen (cfh2)","Carol Hagen (cfh2)","Kim Niefer (kan28)","Kim Niefer (kan28)",78,20,3.9,null,null,"Facilities & Space Management"]
[599,"CE","CIW","CIW Key Inventory",null,"Carol Hagen (cfh2)","Carol Hagen (cfh2)","Kim Niefer (kan28)","Kim Niefer (kan28)",83,20,4.1500000000000004,null,null,"Facilities & Space Management"]
[600,"CE","CIW","CIW Library Inventory",null,"Carol Hagen (cfh2)","Carol Hagen (cfh2)","Kim Niefer (kan28)","Kim Niefer (kan28)",43,20,2.15,null,null,"Other"]
[601,"CE","CIW","CIW Faculty and Staff ",null,"Carol Hagen (cfh2)","Carol Hagen (cfh2)","Kim Niefer (kan28)","Kim Niefer (kan28)",63,20,3.15,null,null,"HR- Other","Finance- Other"]
[602,"CE","CIW","CIW Internships",null,"Carol Hagen (cfh2)","Carol Hagen (cfh2)","Kim Niefer (kan28)","Kim Niefer (kan28)",92,20,4.5999999999999996,null,null,"Student- Other"]
[603,"CE","CIW","CIW Course Inventory",null,"Carol Hagen (cfh2)","Carol Hagen (cfh2)","Kim Niefer (kan28)","Kim Niefer (kan28)",62,20,3.1,null,null,"Academic Administration"]
[604,"CE","Summer College","ApplyWeb CollegeNet",null,"Abby Eller (ae12)","Janna Bugliosi (jlb34)","Graham Dobson (gd11)","Graham Dobson (gd11)",91,20,4.55,null,"Software as Service","Admissions","Finance- Other"]
[605,"CE ","SCE","Staff database",null,"Diane Sheridan (des5)","Beth Howard (eh85)","Mitch Wiedemann (mtw7)","Mitch Wiedemann (mtw7)",40,20,2,null,null,"HR- Other"]
[606,"CE","Finance and Acct.","Classroom Assignments",null,"Ruby Brown (rdb6)","Ruby Brown (rdb6), Carol Hall (clh15)","Graham Dobson (gd11)","Graham Dobson (gd11)",68,20,3.4,null,null,"Facilities & Space Management"]
[607,"CE ","CIW","Topaz Access Control System",null,"Carol Hagen (cfh2)","Carol Hagen (cfh2)","Kim Niefer (kan28)","Kim Niefer (kan28)",{"$error":"#N/A"},{"$error":"#N/A"},0,null,null,"Facilities & Space Management"]
[608]
[609]
[610]
[611]
[612]
[613]
[614]
[615]
[616]
[617]
[618]
[619]
[620]
[621]
[622]
[623]
[624]
[625]
[626]
[627]
[628]
[629]
[630]
[631]
[632]
[633]
[634]
[635]
[636]
[637]
[638]
[639]
[640]
[641]
[{"$f":"ROW(643:643)-1","v":642}]
[643]
[644]
[645]
[646]
[647]
[648]
[649]
[650]
[651]
[652]
[653]
[654]
[655]
[656]
[657]
[658]
[659]
[660]
[661]
[662]
[663]
[664]
[665]
[666]
[667]
[668]
[669]
[670]
[671]
[672]
[673]
[674]
[675]
[676]
[677]
[678]
[679]
[680]
[681]
[682]
[683]
[684]
[685]
[686]
[687]
[688]
[689]
[690]
[691]
[692]
[693]
[694]
[695]
[696]
[697]
[698]
[699]
[700]
[701]
[702]
[703]
[704]
[705]
[{"$f":"ROW(707:707)-1","v":706}]
[707]
[708]
[709]
[710]
[711]
[712]
[713]
[714]
[715]
[716]
[717]
[718]
[719]
[720]
[721]
[722]
[723]
[724]
[725]
[726]
[727]
[728]
[729]
[730]
[731]
[732]
[733]
[734]
[735]
[736]
[737]
[738]
[739]
[740]
[741]
[742]
[743]
[744]
[745]
[746]
[747]
[748]
[749]
[750]
[751]
[752]
[753]
[754]
[755]
[756]
[757]
[758]
[759]
[760]
[761]
[762]
[763]
[764]
[765]
[766]
[767]
[768]
[769]
[{"$f":"ROW(771:771)-1","v":770}]
[771]
[772]
[773]
[774]
[775]
[776]
[777]
[778]
[779]
[780]
[781]
[782]
[783]
[784]
[785]
[786]
[787]
[788]
[789]
[790]
[791]
[792]
[793]
[794]
[795]
[796]
[797]
[798]
[799]
[800]
[801]
[802]
[803]
[804]
[805]
[806]
[807]
[808]
[809]
[810]
[811]
[812]
[813]
[814]
[815]
[816]
[817]
[818]
[819]
[820]
[821]
[822]
[823]
[824]
[825]
[826]
[827]
[828]
[829]
[830]
[831]
[832]
[833]
[{"$f":"ROW(835:835)-1","v":834}]
[835]
[836]
[837]
[838]
[839]
[840]
[841]
[842]
[843]
[844]
[845]
[846]
[847]
[848]
[849]
[850]
[851]
[852]
[853]
[854]
[855]
[856]
[857]
[858]
[859]
[860]
[861]
[862]
[863]
[864]
[865]
[866]
[867]
[868]
[869]
[870]
[871]
[872]
[873]
[874]
[875]
[876]
[877]
[878]
[879]
[880]
[881]
[882]
[883]
[884]
[885]
[886]
[887]
[888]
[889]
[890]
[891]
[892]
[893]
[894]
[895]
[896]
[897]
[{"$f":"ROW(899:899)-1","v":898}]
[899]
[900]
[901]
[902]
[903]
[904]
[905]
[906]
[907]
[908]
[909]
[910]
[911]
[912]
[913]
[914]
[915]
[916]
[917]
[918]
[919]
[920]
[921]
[922]
[923]
[924]
[925]
[926]
[927]
[928]
[929]
[930]
[931]
[932]
[933]
[934]
[935]
[936]
[937]
[938]
[939]
[940]
[941]
[942]
[943]
[944]
[945]
[946]
[947]
[948]
[949]
[950]
[951]
[952]
[953]
[954]
[955]
[956]
[957]
[958]
[959]
[960]
[961]
[{"$f":"ROW(963:963)-1","v":962}]
[963]
[964]
[965]
[966]
[967]
[968]
[969]
[970]
[971]
[972]
[973]
[974]
[975]
[976]
[977]
[978]
[979]
[980]
[981]
[982]
[983]
[984]
[985]
[986]
[987]
[988]
[989]
[990]
[991]
[992]
[993]
[994]
[995]
[996]
[997]
[998]
[999]
[1000]
[1001]
[1002]
[1003]
[1004]
[1005]
[1006]
[1007]
[1008]
[1009]
[1010]
[1011]
[1012]
[1013]
[1014]
[1015]
[1016]
[1017]
[1018]
[1019]
[1020]
[1021]
[1022]
[1023]
[1024]
[1025]
[{"$f":"ROW(1027:1027)-1","v":1026}]
[1027]
[1028]
[1029]
[1030]
[1031]
[1032]
[1033]
[1034]
[1035]
[1036]
[1037]
[1038]
[1039]
[1040]
[1041]
[1042]
[1043]
[1044]
[1045]
[1046]
[1047]
[1048]
[1049]
[1050]
[1051]
[1052]
[1053]
[1054]
[1055]
[1056]
[1057]
[1058]
[1059]
[1060]
[1061]
[1062]
[1063]
[1064]
[1065]
[1066]
[1067]
[1068]
[1069]
[1070]
[1071]
[1072]
[1073]
[1074]
[1075]
[1076]
[1077]
[1078]
[1079]
[1080]
[1081]
[1082]
[1083]
[1084]
[1085]
[1086]
[1087]
[1088]
[1089]
[{"$f":"ROW(1091:1091)-1","v":1090}]
[1091]
[1092]
[1093]
[1094]
[1095]
[1096]
[1097]
[1098]
[1099]
[1100]
[1101]
[1102]
[1103]
[1104]
[1105]
[1106]
[1107]
[1108]
[1109]
[1110]
[1111]
[1112]
[1113]
[1114]
[1115]
[1116]
[1117]
[1118]
[1119]
[1120]
[1121]
[1122]
[1123]
[1124]
[1125]
[1126]
[1127]
[1128]
[1129]
[1130]
[1131]
[1132]
[1133]
[1134]
[1135]
[1136]
[1137]
[1138]
[1139]
[1140]
[1141]
[1142]
[1143]
[1144]
[1145]
[1146]
[1147]
[1148]
[1149]
[1150]
[1151]
[1152]
[1153]
[{"$f":"ROW(1155:1155)-1","v":1154}]
[1155]
[1156]
[1157]
[1158]
[1159]
[1160]
[1161]
[1162]
[1163]
[1164]
[1165]
[1166]
[1167]
[1168]
[1169]
[1170]
[1171]
[1172]
[1173]
[1174]
[1175]
[1176]
[1177]
[1178]
[1179]
[1180]
[1181]
[1182]
[1183]
[1184]
[1185]
[1186]
[1187]
[1188]
[1189]
[1190]
[1191]
[1192]
[1193]
[1194]
[1195]
[1196]
[1197]
[1198]
[1199]
[1200]
[1201]
[1202]
[1203]
[1204]
[1205]
[1206]
[1207]
[1208]
[1209]
[1210]
[1211]
[1212]
[1213]
[1214]
[1215]
[1216]
[1217]
[{"$f":"ROW(1219:1219)-1","v":1218}]
[1219]
[1220]
[1221]
[1222]
[1223]
[1224]
[1225]
[1226]
[1227]
[1228]
[1229]
[1230]
[1231]
[1232]
[1233]
[1234]
[1235]
[1236]
[1237]
[1238]
[1239]
[1240]
[1241]
[1242]
[1243]
[1244]
[1245]
[1246]
[1247]
[1248]
[1249]
[1250]
[1251]
[1252]
[1253]
[1254]
[1255]
[1256]
[1257]
[1258]
[1259]
[1260]
[1261]
[1262]
[1263]
[1264]
[1265]
[1266]
[1267]
[1268]
[1269]
[1270]
[1271]
[1272]
[1273]
[1274]
[1275]
[1276]
[1277]
[1278]
[1279]
[1280]
[1281]
[{"$f":"ROW(1283:1283)-1","v":1282}]
[1283]
[1284]
[1285]
[1286]
[1287]
[1288]
[1289]
[1290]
[1291]
[1292]
[1293]
[1294]
[1295]
[1296]
[1297]
[1298]
[1299]
[1300]
[1301]
[1302]
[1303]
[1304]
[1305]
[1306]
[1307]
[1308]
[1309]
[1310]
[1311]
[1312]
[1313]
[1314]
[1315]
[1316]
[1317]
[1318]
[1319]
[1320]
[1321]
[1322]
[1323]
[1324]
[1325]
[1326]
[1327]
[1328]
[1329]
[1330]
[1331]
[1332]
[1333]
[1334]
[1335]
[1336]
[1337]
[1338]
[1339]
[1340]
[1341]
[1342]
[1343]
[1344]
[1345]
[{"$f":"ROW(1347:1347)-1","v":1346}]
[1347]
[1348]
[1349]
[1350]
[1351]
[1352]
[1353]
[1354]
[1355]
[1356]
[1357]
[1358]
[1359]
[1360]
[1361]
[1362]
[1363]
[1364]
[1365]
[1366]
[1367]
[1368]
[1369]
[1370]
[1371]
[1372]
[1373]
[1374]
[1375]
[1376]
[1377]
[1378]
[1379]
[1380]
[1381]
[1382]
[1383]
[1384]
[1385]
[1386]
[1387]
[1388]
[1389]
[1390]
[1391]
[1392]
[1393]
[1394]
[1395]
[1396]
[1397]
[1398]
[1399]
[1400]
[1401]
[1402]
[1403]
[1404]
[1405]
[1406]
[1407]
[1408]
[1409]
[{"$f":"ROW(1411:1411)-1","v":1410}]
[1411]
[1412]
[1413]
[1414]
[1415]
[1416]
[1417]
[1418]
[1419]
[1420]
[1421]
[1422]
[1423]
[1424]
[1425]
[1426]
[1427]
[1428]
[1429]
[1430]
[1431]
[1432]
[1433]
[1434]
[1435]
[1436]
[1437]
[1438]
[1439]
[1440]
[1441]
[1442]
[1443]
[1444]
[1445]
[1446]
[1447]
[1448]
[1449]
[1450]
[1451]
[1452]
[1453]
[1454]
[1455]
[1456]
[1457]
[1458]
[1459]
[1460]
[1461]
[1462]
[1463]
[1464]
[1465]
[1466]
[1467]
[1468]
[1469]
[1470]
[1471]
[1472]
[1473]
[{"$f":"ROW(1475:1475)-1","v":1474}]
[1475]
[1476]
[1477]
[1478]
[1479]
[1480]
[1481]
[1482]
[1483]
[1484]
[1485]
[1486]
[1487]
[1488]
[1489]
[1490]
[1491]
[1492]
[1493]
[1494]
[1495]
[1496]
[1497]
[1498]
[1499]
[1500]
[1501]
[1502]
[1503]
[1504]
[1505]
[1506]
[1507]
[1508]
[1509]
[1510]
[1511]
[1512]
[1513]
[1514]
[1515]
[1516]
[1517]
[1518]
[1519]
[1520]
[1521]
[1522]
[1523]
[1524]
[1525]
[1526]
[1527]
[1528]
[1529]
[1530]
[1531]
[1532]
[1533]
[1534]
[1535]
[1536]
[1537]
[{"$f":"ROW(1539:1539)-1","v":1538}]
[1539]
[1540]
[1541]
[1542]
[1543]
[1544]
[1545]
[1546]
[1547]
[1548]
[1549]
[1550]
[1551]
[1552]
[1553]
[1554]
[1555]
[1556]
[1557]
[1558]
[1559]
[1560]
[1561]
[1562]
[1563]
[1564]
[1565]
[1566]
[1567]
[1568]
[1569]
[1570]
[1571]
[1572]
[1573]
[1574]
[1575]
[1576]
[1577]
[1578]
[1579]
[1580]
[1581]
[1582]
[1583]
[1584]
[1585]
[1586]
[1587]
[1588]
[1589]
[1590]
[1591]
[1592]
[1593]
[1594]
[1595]
[1596]
[1597]
[1598]
[1599]
[1600]
[1601]
[{"$f":"ROW(1603:1603)-1","v":1602}]
[1603]
[1604]
[1605]
[1606]
[1607]
[1608]
[1609]
[1610]
[1611]
[1612]
[1613]
[1614]
[1615]
[1616]
[1617]
[1618]
[1619]
[1620]
[1621]
[1622]
[1623]
[1624]
[1625]
[1626]
[1627]
[1628]
[1629]
[1630]
[1631]
[1632]
[1633]
[1634]
[1635]
[1636]
[1637]
[1638]
[1639]
[1640]
[1641]
[1642]
[1643]
[1644]
[1645]
[1646]
[1647]
[1648]
[1649]
[1650]
[1651]
[1652]
[1653]
[1654]
[1655]
[1656]
[1657]
[1658]
[1659]
[1660]
[1661]
[1662]
[1663]
[1664]
[1665]
[{"$f":"ROW(1667:1667)-1","v":1666}]
[1667]
[1668]
[1669]
[1670]
[1671]
[1672]
[1673]
[1674]
[1675]
[1676]
[1677]
[1678]
[1679]
[1680]
[1681]
[1682]
[1683]
[1684]
[1685]
[1686]
[1687]
[1688]
[1689]
[1690]
[1691]
[1692]
[1693]
[1694]
[1695]
[1696]
[1697]
[1698]
[1699]
[1700]
[1701]
[1702]
[1703]
[1704]
[1705]
[1706]
[1707]
[1708]
[1709]
[1710]
[1711]
[1712]
[1713]
[1714]
[1715]
[1716]
[1717]
[1718]
[1719]
[1720]
[1721]
[1722]
[1723]
[1724]
[1725]
[1726]
[1727]
[1728]
[1729]
[{"$f":"ROW(1731:1731)-1","v":1730}]
[1731]
[1732]
[1733]
[1734]
[1735]
[1736]
[1737]
[1738]
[1739]
[1740]
[1741]
[1742]
[1743]
[1744]
[1745]
[1746]
[1747]
[1748]
[1749]
[1750]
[1751]
[1752]
[1753]
[1754]
[1755]
[1756]
[1757]
[1758]
[1759]
[1760]
[1761]
[1762]
[1763]
[1764]
[1765]
[1766]
[1767]
[1768]
[1769]
[1770]
[1771]
[1772]
[1773]
[1774]
[1775]
[1776]
[1777]
[1778]
[1779]
[1780]
[1781]
[1782]
[1783]
[1784]
[1785]
[1786]
[1787]
[1788]
[1789]
[1790]
[1791]
[1792]
[1793]
[{"$f":"ROW(1795:1795)-1","v":1794}]
[1795]
[1796]
[1797]
[1798]
[1799]
[1800]
[1801]
[1802]
[1803]
[1804]
[1805]
[1806]
[1807]
[1808]
[1809]
[1810]
[1811]
[1812]
[1813]
[1814]
[1815]
[1816]
[1817]
[1818]
[1819]
[1820]
[1821]
[1822]
[1823]
[1824]
[1825]
[1826]
[1827]
[1828]
[1829]
[1830]
[1831]
[1832]
[1833]
[1834]
[1835]
[1836]
[1837]
[1838]
[1839]
[1840]
[1841]
[1842]
[1843]
[1844]
[1845]
[1846]
[1847]
[1848]
[1849]
[1850]
[1851]
[1852]
[1853]
[1854]
[1855]
[1856]
[1857]
[{"$f":"ROW(1859:1859)-1","v":1858}]
[1859]
[1860]
[1861]
[1862]
[1863]
[1864]
[1865]
[1866]
[1867]
[1868]
[1869]
[1870]
[1871]
[1872]
[1873]
[1874]
[1875]
[1876]
[1877]
[1878]
[1879]
[1880]
[1881]
[1882]
[1883]
[1884]
[1885]
[1886]
[1887]
[1888]
[1889]
[1890]
[1891]
[1892]
[1893]
[1894]
[1895]
[1896]
[1897]
[1898]
[1899]
[1900]
[1901]
[1902]
[1903]
[1904]
[1905]
[1906]
[1907]
[1908]
[1909]
[1910]
[1911]
[1912]
[1913]
[1914]
[1915]
[1916]
[1917]
[1918]
[1919]
[1920]
[1921]
[{"$f":"ROW(1923:1923)-1","v":1922}]
[1923]
[1924]
[1925]
[1926]
[1927]
[1928]
[1929]
[1930]
[1931]
[1932]
[1933]
[1934]
[1935]
[1936]
[1937]
[1938]
[1939]
[1940]
[1941]
[1942]
[1943]
[1944]
[1945]
[1946]
[1947]
[1948]
[1949]
[1950]
[1951]
[1952]
[1953]
[1954]
[1955]
[1956]
[1957]
[1958]
[1959]
[1960]
[1961]
[1962]
[1963]
[1964]
[1965]
[1966]
[1967]
[1968]
[1969]
[1970]
[1971]
[1972]
[1973]
[1974]
[1975]
[1976]
[1977]
[1978]
[1979]
[1980]
[1981]
[1982]
[1983]
[1984]
[1985]
[{"$f":"ROW(1987:1987)-1","v":1986}]
[1987]
[1988]
[1989]
[1990]
[1991]
[1992]
[1993]
[1994]
[1995]
[1996]
[1997]
[1998]
[1999]

{"sheet":"Data availability","index":3,"n_rows":31,"n_cols":5,"rows_kept":31,"cut":false,"hidden":false,"merged":[]}
["#","Unit","Unit Inventory with Functional Purpose","Summary Sheet","Funding Source"]
[3,"Admissions and Enrollment","3/26- Done","3/26- Done"]
[4,"CIO Office, IT Administration","N/A","N/A"]
[5,"CIO Office, Planning & Program Management","N/A","N/A"]
[6,"CIT Academic Applications"]
[7,"CIT Applications","3/26- Done","3/26- Done"]
[8,"CIT Infrastructure"]
[9,"CIT Support","3/26- Done","3/26- Done"]
[10,"Division of Financial Affairs","3/26- Done","3/26- Done"]
[11,"Research Division"]
[12,"Student and Academic Services"]
[13,"College of Architecture, Art and Planning"]
[14,"College of Arts and Sciences"]
[15,"College of Engineering","3/29-Done","3/29-Done"]
[16,"College of Human Ecology","3/29-Done","3/29-Done"]
[17,"Computing and Information Science","3/29-Done","3/29-Done"]
[18,"Facilities Services"]
[19,"Office of Human Resources","N/A","N/A"]
[20,"Alumni Affairs and Development"]
[21,"College of Veterinary Medicine"]
[22,"Hotel","3/29-Done","3/29-Done"]
[23,"ILR School","3/26- Done","3/26- Done"]
[24,"University Communications","3/29-Done","3/29-Done"]
[25,"College of Agriculture and Life Sciences"]
[26,"Continuing Education","3/30-Done","3/30- Done"]
[27,"Division of Planning and Budget","3/26- Done","3/26- Done"]
[28,"Graduate School","3/26- Done","3/26- Done"]
[29,"Johnson Graduate School of Management"]
[30,"Law School","Re-do later"]
[31,"Library","3/26- Done","3/26- Done"]
[32,"Vice Provost for Social Science","3/26- Done","3/26- Done"]